{"text_format":"1","workbook":"xlsx","n_sheets":11,"sheets":["Forside","Jobformidlere og teams","Ark1","Oversigt over borgere","Oversigt over mål og milepæle","Statistik for jobformidlere","Mellemregning_TEAM","Statistik for teamledelse","Mellemregninger","Statistik overordnet ledelse","Lookup"],"not_rendered":{"charts":26,"images":0,"macros":1,"external_links":0,"defined_names":9,"comments":0,"pivot_tables":32},"unopened":[],"bounds":{"document_bytes":16777216,"sheet_cells":100000,"rows_first":2000,"rows_last":500,"rows_between":2000,"halvings":0,"cell_chars":16384,"cell_head_chars":4096},"cells_cut":0,"cells_raw":0,"read":"whole","date_system":"1900"}

{"sheet":"Forside","index":0,"n_rows":0,"n_cols":0,"rows_kept":0,"cut":false,"hidden":false,"merged":[]}

{"sheet":"Jobformidlere og teams","index":1,"n_rows":11,"n_cols":4,"rows_kept":11,"cut":false,"hidden":false,"merged":[]}
[]
[]
[]
[]
[]
[]
[]
[]
[null,"Indfør navne på jobformidlere i projektet.",null,"Indfør navne på det/de team(s), jobformidlerne sidder i i projektet."]
[null,"Jobformidler",null,"Teams (jobformidler)"]
[null,"Ingen jobformidler",null,"Team 1"]

{"sheet":"Ark1","index":2,"n_rows":0,"n_cols":0,"rows_kept":0,"cut":false,"hidden":false,"merged":[]}

{"sheet":"Oversigt over borgere","index":3,"n_rows":303,"n_cols":12,"rows_kept":303,"cut":false,"hidden":false,"merged":[]}
[]
[]
[]
[]
[]
[]
[]
[]
[]
[]
[]
[]
[]
[null,null,"Oversigtsliste"]
[]
[null,null,"Borgers CPR","Borgers navn","Jobformidler","Teams (jobformidler)","Produktionstrin","Statuskategori","Step-up-indsats","Har borger CV og jobmål?","Egen kommentar","Team"]
[null,null,null,null,null,null,null,{"$f":"_xlfn.IFNA(VLOOKUP(Table2[[#This Row],[Produktionstrin]],Table8[],2,FALSE),\"\")","v":""},null,null,null,{"$f":"IF(VLOOKUP(Table2[[#This Row],[Teams (jobformidler)]],Table15[#All],2,FALSE)=1,1,0)","v":{"$error":"#N/A"}}]
[null,null,null,null,null,null,null,{"$f":"_xlfn.IFNA(VLOOKUP(Table2[[#This Row],[Produktionstrin]],Table8[],2,FALSE),\"\")","v":""},null,null,null,{"$f":"IF(VLOOKUP(Table2[[#This Row],[Teams (jobformidler)]],Table15[#All],2,FALSE)=1,1,0)","v":{"$error":"#N/A"}}]
[null,null,null,null,null,null,null,{"$f":"_xlfn.IFNA(VLOOKUP(Table2[[#This Row],[Produktionstrin]],Table8[],2,FALSE),\"\")","v":""},null,null,null,{"$f":"IF(VLOOKUP(Table2[[#This Row],[Teams (jobformidler)]],Table15[#All],2,FALSE)=1,1,0)","v":{"$error":"#N/A"}}]
[null,null,null,null,null,null,null,{"$f":"_xlfn.IFNA(VLOOKUP(Table2[[#This Row],[Produktionstrin]],Table8[],2,FALSE),\"\")","v":""},null,null,null,{"$f":"IF(VLOOKUP(Table2[[#This Row],[Teams (jobformidler)]],Table15[#All],2,FALSE)=1,1,0)","v":{"$error":"#N/A"}}]
[null,null,null,null,null,null,null,{"$f":"_xlfn.IFNA(VLOOKUP(Table2[[#This Row],[Produktionstrin]],Table8[],2,FALSE),\"\")","v":""},null,null,null,{"$f":"IF(VLOOKUP(Table2[[#This Row],[Teams (jobformidler)]],Table15[#All],2,FALSE)=1,1,0)","v":{"$error":"#N/A"}}]
[null,null,null,null,null,null,null,{"$f":"_xlfn.IFNA(VLOOKUP(Table2[[#This Row],[Produktionstrin]],Table8[],2,FALSE),\"\")","v":""},null,null,null,{"$f":"IF(VLOOKUP(Table2[[#This Row],[Teams (jobformidler)]],Table15[#All],2,FALSE)=1,1,0)","v":{"$error":"#N/A"}}]
[null,null,null,null,null,null,null,{"$f":"_xlfn.IFNA(VLOOKUP(Table2[[#This Row],[Produktionstrin]],Table8[],2,FALSE),\"\")","v":""},null,null,null,{"$f":"IF(VLOOKUP(Table2[[#This Row],[Teams (jobformidler)]],Table15[#All],2,FALSE)=1,1,0)","v":{"$error":"#N/A"}}]
[null,null,null,null,null,null,null,{"$f":"_xlfn.IFNA(VLOOKUP(Table2[[#This Row],[Produktionstrin]],Table8[],2,FALSE),\"\")","v":""},null,null,null,{"$f":"IF(VLOOKUP(Table2[[#This Row],[Teams (jobformidler)]],Table15[#All],2,FALSE)=1,1,0)","v":{"$error":"#N/A"}}]
[null,null,null,null,null,null,null,{"$f":"_xlfn.IFNA(VLOOKUP(Table2[[#This Row],[Produktionstrin]],Table8[],2,FALSE),\"\")","v":""},null,null,null,{"$f":"IF(VLOOKUP(Table2[[#This Row],[Teams (jobformidler)]],Table15[#All],2,FALSE)=1,1,0)","v":{"$error":"#N/A"}}]
[null,null,null,null,null,null,null,{"$f":"_xlfn.IFNA(VLOOKUP(Table2[[#This Row],[Produktionstrin]],Table8[],2,FALSE),\"\")","v":""},null,null,null,{"$f":"IF(VLOOKUP(Table2[[#This Row],[Teams (jobformidler)]],Table15[#All],2,FALSE)=1,1,0)","v":{"$error":"#N/A"}}]
[null,null,null,null,null,null,null,{"$f":"_xlfn.IFNA(VLOOKUP(Table2[[#This Row],[Produktionstrin]],Table8[],2,FALSE),\"\")","v":""},null,null,null,{"$f":"IF(VLOOKUP(Table2[[#This Row],[Teams (jobformidler)]],Table15[#All],2,FALSE)=1,1,0)","v":{"$error":"#N/A"}}]
[null,null,null,null,null,null,null,{"$f":"_xlfn.IFNA(VLOOKUP(Table2[[#This Row],[Produktionstrin]],Table8[],2,FALSE),\"\")","v":""},null,null,null,{"$f":"IF(VLOOKUP(Table2[[#This Row],[Teams (jobformidler)]],Table15[#All],2,FALSE)=1,1,0)","v":{"$error":"#N/A"}}]
[null,null,null,null,null,null,null,{"$f":"_xlfn.IFNA(VLOOKUP(Table2[[#This Row],[Produktionstrin]],Table8[],2,FALSE),\"\")","v":""},null,null,null,{"$f":"IF(VLOOKUP(Table2[[#This Row],[Teams (jobformidler)]],Table15[#All],2,FALSE)=1,1,0)","v":{"$error":"#N/A"}}]
[null,null,null,null,null,null,null,{"$f":"_xlfn.IFNA(VLOOKUP(Table2[[#This Row],[Produktionstrin]],Table8[],2,FALSE),\"\")","v":""},null,null,null,{"$f":"IF(VLOOKUP(Table2[[#This Row],[Teams (jobformidler)]],Table15[#All],2,FALSE)=1,1,0)","v":{"$error":"#N/A"}}]
[null,null,null,null,null,null,null,{"$f":"_xlfn.IFNA(VLOOKUP(Table2[[#This Row],[Produktionstrin]],Table8[],2,FALSE),\"\")","v":""},null,null,null,{"$f":"IF(VLOOKUP(Table2[[#This Row],[Teams (jobformidler)]],Table15[#All],2,FALSE)=1,1,0)","v":{"$error":"#N/A"}}]
[null,null,null,null,null,null,null,{"$f":"_xlfn.IFNA(VLOOKUP(Table2[[#This Row],[Produktionstrin]],Table8[],2,FALSE),\"\")","v":""},null,null,null,{"$f":"IF(VLOOKUP(Table2[[#This Row],[Teams (jobformidler)]],Table15[#All],2,FALSE)=1,1,0)","v":{"$error":"#N/A"}}]
[null,null,null,null,null,null,null,{"$f":"_xlfn.IFNA(VLOOKUP(Table2[[#This Row],[Produktionstrin]],Table8[],2,FALSE),\"\")","v":""},null,null,null,{"$f":"IF(VLOOKUP(Table2[[#This Row],[Teams (jobformidler)]],Table15[#All],2,FALSE)=1,1,0)","v":{"$error":"#N/A"}}]
[null,null,null,null,null,null,null,{"$f":"_xlfn.IFNA(VLOOKUP(Table2[[#This Row],[Produktionstrin]],Table8[],2,FALSE),\"\")","v":""},null,null,null,{"$f":"IF(VLOOKUP(Table2[[#This Row],[Teams (jobformidler)]],Table15[#All],2,FALSE)=1,1,0)","v":{"$error":"#N/A"}}]
[null,null,null,null,null,null,null,{"$f":"_xlfn.IFNA(VLOOKUP(Table2[[#This Row],[Produktionstrin]],Table8[],2,FALSE),\"\")","v":""},null,null,null,{"$f":"IF(VLOOKUP(Table2[[#This Row],[Teams (jobformidler)]],Table15[#All],2,FALSE)=1,1,0)","v":{"$error":"#N/A"}}]
[null,null,null,null,null,null,null,{"$f":"_xlfn.IFNA(VLOOKUP(Table2[[#This Row],[Produktionstrin]],Table8[],2,FALSE),\"\")","v":""},null,null,null,{"$f":"IF(VLOOKUP(Table2[[#This Row],[Teams (jobformidler)]],Table15[#All],2,FALSE)=1,1,0)","v":{"$error":"#N/A"}}]
[null,null,null,null,null,null,null,{"$f":"_xlfn.IFNA(VLOOKUP(Table2[[#This Row],[Produktionstrin]],Table8[],2,FALSE),\"\")","v":""},null,null,null,{"$f":"IF(VLOOKUP(Table2[[#This Row],[Teams (jobformidler)]],Table15[#All],2,FALSE)=1,1,0)","v":{"$error":"#N/A"}}]
[null,null,null,null,null,null,null,{"$f":"_xlfn.IFNA(VLOOKUP(Table2[[#This Row],[Produktionstrin]],Table8[],2,FALSE),\"\")","v":""},null,null,null,{"$f":"IF(VLOOKUP(Table2[[#This Row],[Teams (jobformidler)]],Table15[#All],2,FALSE)=1,1,0)","v":{"$error":"#N/A"}}]
[null,null,null,null,null,null,null,{"$f":"_xlfn.IFNA(VLOOKUP(Table2[[#This Row],[Produktionstrin]],Table8[],2,FALSE),\"\")","v":""},null,null,null,{"$f":"IF(VLOOKUP(Table2[[#This Row],[Teams (jobformidler)]],Table15[#All],2,FALSE)=1,1,0)","v":{"$error":"#N/A"}}]
[null,null,null,null,null,null,null,{"$f":"_xlfn.IFNA(VLOOKUP(Table2[[#This Row],[Produktionstrin]],Table8[],2,FALSE),\"\")","v":""},null,null,null,{"$f":"IF(VLOOKUP(Table2[[#This Row],[Teams (jobformidler)]],Table15[#All],2,FALSE)=1,1,0)","v":{"$error":"#N/A"}}]
[null,null,null,null,null,null,null,{"$f":"_xlfn.IFNA(VLOOKUP(Table2[[#This Row],[Produktionstrin]],Table8[],2,FALSE),\"\")","v":""},null,null,null,{"$f":"IF(VLOOKUP(Table2[[#This Row],[Teams (jobformidler)]],Table15[#All],2,FALSE)=1,1,0)","v":{"$error":"#N/A"}}]
[null,null,null,null,null,null,null,{"$f":"_xlfn.IFNA(VLOOKUP(Table2[[#This Row],[Produktionstrin]],Table8[],2,FALSE),\"\")","v":""},null,null,null,{"$f":"IF(VLOOKUP(Table2[[#This Row],[Teams (jobformidler)]],Table15[#All],2,FALSE)=1,1,0)","v":{"$error":"#N/A"}}]
[null,null,null,null,null,null,null,{"$f":"_xlfn.IFNA(VLOOKUP(Table2[[#This Row],[Produktionstrin]],Table8[],2,FALSE),\"\")","v":""},null,null,null,{"$f":"IF(VLOOKUP(Table2[[#This Row],[Teams (jobformidler)]],Table15[#All],2,FALSE)=1,1,0)","v":{"$error":"#N/A"}}]
[null,null,null,null,null,null,null,{"$f":"_xlfn.IFNA(VLOOKUP(Table2[[#This Row],[Produktionstrin]],Table8[],2,FALSE),\"\")","v":""},null,null,null,{"$f":"IF(VLOOKUP(Table2[[#This Row],[Teams (jobformidler)]],Table15[#All],2,FALSE)=1,1,0)","v":{"$error":"#N/A"}}]
[null,null,null,null,null,null,null,{"$f":"_xlfn.IFNA(VLOOKUP(Table2[[#This Row],[Produktionstrin]],Table8[],2,FALSE),\"\")","v":""},null,null,null,{"$f":"IF(VLOOKUP(Table2[[#This Row],[Teams (jobformidler)]],Table15[#All],2,FALSE)=1,1,0)","v":{"$error":"#N/A"}}]
[null,null,null,null,null,null,null,{"$f":"_xlfn.IFNA(VLOOKUP(Table2[[#This Row],[Produktionstrin]],Table8[],2,FALSE),\"\")","v":""},null,null,null,{"$f":"IF(VLOOKUP(Table2[[#This Row],[Teams (jobformidler)]],Table15[#All],2,FALSE)=1,1,0)","v":{"$error":"#N/A"}}]
[null,null,null,null,null,null,null,{"$f":"_xlfn.IFNA(VLOOKUP(Table2[[#This Row],[Produktionstrin]],Table8[],2,FALSE),\"\")","v":""},null,null,null,{"$f":"IF(VLOOKUP(Table2[[#This Row],[Teams (jobformidler)]],Table15[#All],2,FALSE)=1,1,0)","v":{"$error":"#N/A"}}]
[null,null,null,null,null,null,null,{"$f":"_xlfn.IFNA(VLOOKUP(Table2[[#This Row],[Produktionstrin]],Table8[],2,FALSE),\"\")","v":""},null,null,null,{"$f":"IF(VLOOKUP(Table2[[#This Row],[Teams (jobformidler)]],Table15[#All],2,FALSE)=1,1,0)","v":{"$error":"#N/A"}}]
[null,null,null,null,null,null,null,{"$f":"_xlfn.IFNA(VLOOKUP(Table2[[#This Row],[Produktionstrin]],Table8[],2,FALSE),\"\")","v":""},null,null,null,{"$f":"IF(VLOOKUP(Table2[[#This Row],[Teams (jobformidler)]],Table15[#All],2,FALSE)=1,1,0)","v":{"$error":"#N/A"}}]
[null,null,null,null,null,null,null,{"$f":"_xlfn.IFNA(VLOOKUP(Table2[[#This Row],[Produktionstrin]],Table8[],2,FALSE),\"\")","v":""},null,null,null,{"$f":"IF(VLOOKUP(Table2[[#This Row],[Teams (jobformidler)]],Table15[#All],2,FALSE)=1,1,0)","v":{"$error":"#N/A"}}]
[null,null,null,null,null,null,null,{"$f":"_xlfn.IFNA(VLOOKUP(Table2[[#This Row],[Produktionstrin]],Table8[],2,FALSE),\"\")","v":""},null,null,null,{"$f":"IF(VLOOKUP(Table2[[#This Row],[Teams (jobformidler)]],Table15[#All],2,FALSE)=1,1,0)","v":{"$error":"#N/A"}}]
[null,null,null,null,null,null,null,{"$f":"_xlfn.IFNA(VLOOKUP(Table2[[#This Row],[Produktionstrin]],Table8[],2,FALSE),\"\")","v":""},null,null,null,{"$f":"IF(VLOOKUP(Table2[[#This Row],[Teams (jobformidler)]],Table15[#All],2,FALSE)=1,1,0)","v":{"$error":"#N/A"}}]
[null,null,null,null,null,null,null,{"$f":"_xlfn.IFNA(VLOOKUP(Table2[[#This Row],[Produktionstrin]],Table8[],2,FALSE),\"\")","v":""},null,null,null,{"$f":"IF(VLOOKUP(Table2[[#This Row],[Teams (jobformidler)]],Table15[#All],2,FALSE)=1,1,0)","v":{"$error":"#N/A"}}]
[null,null,null,null,null,null,null,{"$f":"_xlfn.IFNA(VLOOKUP(Table2[[#This Row],[Produktionstrin]],Table8[],2,FALSE),\"\")","v":""},null,null,null,{"$f":"IF(VLOOKUP(Table2[[#This Row],[Teams (jobformidler)]],Table15[#All],2,FALSE)=1,1,0)","v":{"$error":"#N/A"}}]
[null,null,null,null,null,null,null,{"$f":"_xlfn.IFNA(VLOOKUP(Table2[[#This Row],[Produktionstrin]],Table8[],2,FALSE),\"\")","v":""},null,null,null,{"$f":"IF(VLOOKUP(Table2[[#This Row],[Teams (jobformidler)]],Table15[#All],2,FALSE)=1,1,0)","v":{"$error":"#N/A"}}]
[null,null,null,null,null,null,null,{"$f":"_xlfn.IFNA(VLOOKUP(Table2[[#This Row],[Produktionstrin]],Table8[],2,FALSE),\"\")","v":""},null,null,null,{"$f":"IF(VLOOKUP(Table2[[#This Row],[Teams (jobformidler)]],Table15[#All],2,FALSE)=1,1,0)","v":{"$error":"#N/A"}}]
[null,null,null,null,null,null,null,{"$f":"_xlfn.IFNA(VLOOKUP(Table2[[#This Row],[Produktionstrin]],Table8[],2,FALSE),\"\")","v":""},null,null,null,{"$f":"IF(VLOOKUP(Table2[[#This Row],[Teams (jobformidler)]],Table15[#All],2,FALSE)=1,1,0)","v":{"$error":"#N/A"}}]
[null,null,null,null,null,null,null,{"$f":"_xlfn.IFNA(VLOOKUP(Table2[[#This Row],[Produktionstrin]],Table8[],2,FALSE),\"\")","v":""},null,null,null,{"$f":"IF(VLOOKUP(Table2[[#This Row],[Teams (jobformidler)]],Table15[#All],2,FALSE)=1,1,0)","v":{"$error":"#N/A"}}]
[null,null,null,null,null,null,null,{"$f":"_xlfn.IFNA(VLOOKUP(Table2[[#This Row],[Produktionstrin]],Table8[],2,FALSE),\"\")","v":""},null,null,null,{"$f":"IF(VLOOKUP(Table2[[#This Row],[Teams (jobformidler)]],Table15[#All],2,FALSE)=1,1,0)","v":{"$error":"#N/A"}}]
[null,null,null,null,null,null,null,{"$f":"_xlfn.IFNA(VLOOKUP(Table2[[#This Row],[Produktionstrin]],Table8[],2,FALSE),\"\")","v":""},null,null,null,{"$f":"IF(VLOOKUP(Table2[[#This Row],[Teams (jobformidler)]],Table15[#All],2,FALSE)=1,1,0)","v":{"$error":"#N/A"}}]
[null,null,null,null,null,null,null,{"$f":"_xlfn.IFNA(VLOOKUP(Table2[[#This Row],[Produktionstrin]],Table8[],2,FALSE),\"\")","v":""},null,null,null,{"$f":"IF(VLOOKUP(Table2[[#This Row],[Teams (jobformidler)]],Table15[#All],2,FALSE)=1,1,0)","v":{"$error":"#N/A"}}]
[null,null,null,null,null,null,null,{"$f":"_xlfn.IFNA(VLOOKUP(Table2[[#This Row],[Produktionstrin]],Table8[],2,FALSE),\"\")","v":""},null,null,null,{"$f":"IF(VLOOKUP(Table2[[#This Row],[Teams (jobformidler)]],Table15[#All],2,FALSE)=1,1,0)","v":{"$error":"#N/A"}}]
[null,null,null,null,null,null,null,{"$f":"_xlfn.IFNA(VLOOKUP(Table2[[#This Row],[Produktionstrin]],Table8[],2,FALSE),\"\")","v":""},null,null,null,{"$f":"IF(VLOOKUP(Table2[[#This Row],[Teams (jobformidler)]],Table15[#All],2,FALSE)=1,1,0)","v":{"$error":"#N/A"}}]
[null,null,null,null,null,null,null,{"$f":"_xlfn.IFNA(VLOOKUP(Table2[[#This Row],[Produktionstrin]],Table8[],2,FALSE),\"\")","v":""},null,null,null,{"$f":"IF(VLOOKUP(Table2[[#This Row],[Teams (jobformidler)]],Table15[#All],2,FALSE)=1,1,0)","v":{"$error":"#N/A"}}]
[null,null,null,null,null,null,null,{"$f":"_xlfn.IFNA(VLOOKUP(Table2[[#This Row],[Produktionstrin]],Table8[],2,FALSE),\"\")","v":""},null,null,null,{"$f":"IF(VLOOKUP(Table2[[#This Row],[Teams (jobformidler)]],Table15[#All],2,FALSE)=1,1,0)","v":{"$error":"#N/A"}}]
[null,null,null,null,null,null,null,{"$f":"_xlfn.IFNA(VLOOKUP(Table2[[#This Row],[Produktionstrin]],Table8[],2,FALSE),\"\")","v":""},null,null,null,{"$f":"IF(VLOOKUP(Table2[[#This Row],[Teams (jobformidler)]],Table15[#All],2,FALSE)=1,1,0)","v":{"$error":"#N/A"}}]
[null,null,null,null,null,null,null,{"$f":"_xlfn.IFNA(VLOOKUP(Table2[[#This Row],[Produktionstrin]],Table8[],2,FALSE),\"\")","v":""},null,null,null,{"$f":"IF(VLOOKUP(Table2[[#This Row],[Teams (jobformidler)]],Table15[#All],2,FALSE)=1,1,0)","v":{"$error":"#N/A"}}]
[null,null,null,null,null,null,null,{"$f":"_xlfn.IFNA(VLOOKUP(Table2[[#This Row],[Produktionstrin]],Table8[],2,FALSE),\"\")","v":""},null,null,null,{"$f":"IF(VLOOKUP(Table2[[#This Row],[Teams (jobformidler)]],Table15[#All],2,FALSE)=1,1,0)","v":{"$error":"#N/A"}}]
[null,null,null,null,null,null,null,{"$f":"_xlfn.IFNA(VLOOKUP(Table2[[#This Row],[Produktionstrin]],Table8[],2,FALSE),\"\")","v":""},null,null,null,{"$f":"IF(VLOOKUP(Table2[[#This Row],[Teams (jobformidler)]],Table15[#All],2,FALSE)=1,1,0)","v":{"$error":"#N/A"}}]
[null,null,null,null,null,null,null,{"$f":"_xlfn.IFNA(VLOOKUP(Table2[[#This Row],[Produktionstrin]],Table8[],2,FALSE),\"\")","v":""},null,null,null,{"$f":"IF(VLOOKUP(Table2[[#This Row],[Teams (jobformidler)]],Table15[#All],2,FALSE)=1,1,0)","v":{"$error":"#N/A"}}]
[null,null,null,null,null,null,null,{"$f":"_xlfn.IFNA(VLOOKUP(Table2[[#This Row],[Produktionstrin]],Table8[],2,FALSE),\"\")","v":""},null,null,null,{"$f":"IF(VLOOKUP(Table2[[#This Row],[Teams (jobformidler)]],Table15[#All],2,FALSE)=1,1,0)","v":{"$error":"#N/A"}}]
[null,null,null,null,null,null,null,{"$f":"_xlfn.IFNA(VLOOKUP(Table2[[#This Row],[Produktionstrin]],Table8[],2,FALSE),\"\")","v":""},null,null,null,{"$f":"IF(VLOOKUP(Table2[[#This Row],[Teams (jobformidler)]],Table15[#All],2,FALSE)=1,1,0)","v":{"$error":"#N/A"}}]
[null,null,null,null,null,null,null,{"$f":"_xlfn.IFNA(VLOOKUP(Table2[[#This Row],[Produktionstrin]],Table8[],2,FALSE),\"\")","v":""},null,null,null,{"$f":"IF(VLOOKUP(Table2[[#This Row],[Teams (jobformidler)]],Table15[#All],2,FALSE)=1,1,0)","v":{"$error":"#N/A"}}]
[null,null,null,null,null,null,null,{"$f":"_xlfn.IFNA(VLOOKUP(Table2[[#This Row],[Produktionstrin]],Table8[],2,FALSE),\"\")","v":""},null,null,null,{"$f":"IF(VLOOKUP(Table2[[#This Row],[Teams (jobformidler)]],Table15[#All],2,FALSE)=1,1,0)","v":{"$error":"#N/A"}}]
[null,null,null,null,null,null,null,{"$f":"_xlfn.IFNA(VLOOKUP(Table2[[#This Row],[Produktionstrin]],Table8[],2,FALSE),\"\")","v":""},null,null,null,{"$f":"IF(VLOOKUP(Table2[[#This Row],[Teams (jobformidler)]],Table15[#All],2,FALSE)=1,1,0)","v":{"$error":"#N/A"}}]
[null,null,null,null,null,null,null,{"$f":"_xlfn.IFNA(VLOOKUP(Table2[[#This Row],[Produktionstrin]],Table8[],2,FALSE),\"\")","v":""},null,null,null,{"$f":"IF(VLOOKUP(Table2[[#This Row],[Teams (jobformidler)]],Table15[#All],2,FALSE)=1,1,0)","v":{"$error":"#N/A"}}]
[null,null,null,null,null,null,null,{"$f":"_xlfn.IFNA(VLOOKUP(Table2[[#This Row],[Produktionstrin]],Table8[],2,FALSE),\"\")","v":""},null,null,null,{"$f":"IF(VLOOKUP(Table2[[#This Row],[Teams (jobformidler)]],Table15[#All],2,FALSE)=1,1,0)","v":{"$error":"#N/A"}}]
[null,null,null,null,null,null,null,{"$f":"_xlfn.IFNA(VLOOKUP(Table2[[#This Row],[Produktionstrin]],Table8[],2,FALSE),\"\")","v":""},null,null,null,{"$f":"IF(VLOOKUP(Table2[[#This Row],[Teams (jobformidler)]],Table15[#All],2,FALSE)=1,1,0)","v":{"$error":"#N/A"}}]
[null,null,null,null,null,null,null,{"$f":"_xlfn.IFNA(VLOOKUP(Table2[[#This Row],[Produktionstrin]],Table8[],2,FALSE),\"\")","v":""},null,null,null,{"$f":"IF(VLOOKUP(Table2[[#This Row],[Teams (jobformidler)]],Table15[#All],2,FALSE)=1,1,0)","v":{"$error":"#N/A"}}]
[null,null,null,null,null,null,null,{"$f":"_xlfn.IFNA(VLOOKUP(Table2[[#This Row],[Produktionstrin]],Table8[],2,FALSE),\"\")","v":""},null,null,null,{"$f":"IF(VLOOKUP(Table2[[#This Row],[Teams (jobformidler)]],Table15[#All],2,FALSE)=1,1,0)","v":{"$error":"#N/A"}}]
[null,null,null,null,null,null,null,{"$f":"_xlfn.IFNA(VLOOKUP(Table2[[#This Row],[Produktionstrin]],Table8[],2,FALSE),\"\")","v":""},null,null,null,{"$f":"IF(VLOOKUP(Table2[[#This Row],[Teams (jobformidler)]],Table15[#All],2,FALSE)=1,1,0)","v":{"$error":"#N/A"}}]
[null,null,null,null,null,null,null,{"$f":"_xlfn.IFNA(VLOOKUP(Table2[[#This Row],[Produktionstrin]],Table8[],2,FALSE),\"\")","v":""},null,null,null,{"$f":"IF(VLOOKUP(Table2[[#This Row],[Teams (jobformidler)]],Table15[#All],2,FALSE)=1,1,0)","v":{"$error":"#N/A"}}]
[null,null,null,null,null,null,null,{"$f":"_xlfn.IFNA(VLOOKUP(Table2[[#This Row],[Produktionstrin]],Table8[],2,FALSE),\"\")","v":""},null,null,null,{"$f":"IF(VLOOKUP(Table2[[#This Row],[Teams (jobformidler)]],Table15[#All],2,FALSE)=1,1,0)","v":{"$error":"#N/A"}}]
[null,null,null,null,null,null,null,{"$f":"_xlfn.IFNA(VLOOKUP(Table2[[#This Row],[Produktionstrin]],Table8[],2,FALSE),\"\")","v":""},null,null,null,{"$f":"IF(VLOOKUP(Table2[[#This Row],[Teams (jobformidler)]],Table15[#All],2,FALSE)=1,1,0)","v":{"$error":"#N/A"}}]
[null,null,null,null,null,null,null,{"$f":"_xlfn.IFNA(VLOOKUP(Table2[[#This Row],[Produktionstrin]],Table8[],2,FALSE),\"\")","v":""},null,null,null,{"$f":"IF(VLOOKUP(Table2[[#This Row],[Teams (jobformidler)]],Table15[#All],2,FALSE)=1,1,0)","v":{"$error":"#N/A"}}]
[null,null,null,null,null,null,null,{"$f":"_xlfn.IFNA(VLOOKUP(Table2[[#This Row],[Produktionstrin]],Table8[],2,FALSE),\"\")","v":""},null,null,null,{"$f":"IF(VLOOKUP(Table2[[#This Row],[Teams (jobformidler)]],Table15[#All],2,FALSE)=1,1,0)","v":{"$error":"#N/A"}}]
[null,null,null,null,null,null,null,{"$f":"_xlfn.IFNA(VLOOKUP(Table2[[#This Row],[Produktionstrin]],Table8[],2,FALSE),\"\")","v":""},null,null,null,{"$f":"IF(VLOOKUP(Table2[[#This Row],[Teams (jobformidler)]],Table15[#All],2,FALSE)=1,1,0)","v":{"$error":"#N/A"}}]
[null,null,null,null,null,null,null,{"$f":"_xlfn.IFNA(VLOOKUP(Table2[[#This Row],[Produktionstrin]],Table8[],2,FALSE),\"\")","v":""},null,null,null,{"$f":"IF(VLOOKUP(Table2[[#This Row],[Teams (jobformidler)]],Table15[#All],2,FALSE)=1,1,0)","v":{"$error":"#N/A"}}]
[null,null,null,null,null,null,null,{"$f":"_xlfn.IFNA(VLOOKUP(Table2[[#This Row],[Produktionstrin]],Table8[],2,FALSE),\"\")","v":""},null,null,null,{"$f":"IF(VLOOKUP(Table2[[#This Row],[Teams (jobformidler)]],Table15[#All],2,FALSE)=1,1,0)","v":{"$error":"#N/A"}}]
[null,null,null,null,null,null,null,{"$f":"_xlfn.IFNA(VLOOKUP(Table2[[#This Row],[Produktionstrin]],Table8[],2,FALSE),\"\")","v":""},null,null,null,{"$f":"IF(VLOOKUP(Table2[[#This Row],[Teams (jobformidler)]],Table15[#All],2,FALSE)=1,1,0)","v":{"$error":"#N/A"}}]
[null,null,null,null,null,null,null,{"$f":"_xlfn.IFNA(VLOOKUP(Table2[[#This Row],[Produktionstrin]],Table8[],2,FALSE),\"\")","v":""},null,null,null,{"$f":"IF(VLOOKUP(Table2[[#This Row],[Teams (jobformidler)]],Table15[#All],2,FALSE)=1,1,0)","v":{"$error":"#N/A"}}]
[null,null,null,null,null,null,null,{"$f":"_xlfn.IFNA(VLOOKUP(Table2[[#This Row],[Produktionstrin]],Table8[],2,FALSE),\"\")","v":""},null,null,null,{"$f":"IF(VLOOKUP(Table2[[#This Row],[Teams (jobformidler)]],Table15[#All],2,FALSE)=1,1,0)","v":{"$error":"#N/A"}}]
[null,null,null,null,null,null,null,{"$f":"_xlfn.IFNA(VLOOKUP(Table2[[#This Row],[Produktionstrin]],Table8[],2,FALSE),\"\")","v":""},null,null,null,{"$f":"IF(VLOOKUP(Table2[[#This Row],[Teams (jobformidler)]],Table15[#All],2,FALSE)=1,1,0)","v":{"$error":"#N/A"}}]
[null,null,null,null,null,null,null,{"$f":"_xlfn.IFNA(VLOOKUP(Table2[[#This Row],[Produktionstrin]],Table8[],2,FALSE),\"\")","v":""},null,null,null,{"$f":"IF(VLOOKUP(Table2[[#This Row],[Teams (jobformidler)]],Table15[#All],2,FALSE)=1,1,0)","v":{"$error":"#N/A"}}]
[null,null,null,null,null,null,null,{"$f":"_xlfn.IFNA(VLOOKUP(Table2[[#This Row],[Produktionstrin]],Table8[],2,FALSE),\"\")","v":""},null,null,null,{"$f":"IF(VLOOKUP(Table2[[#This Row],[Teams (jobformidler)]],Table15[#All],2,FALSE)=1,1,0)","v":{"$error":"#N/A"}}]
[null,null,null,null,null,null,null,{"$f":"_xlfn.IFNA(VLOOKUP(Table2[[#This Row],[Produktionstrin]],Table8[],2,FALSE),\"\")","v":""},null,null,null,{"$f":"IF(VLOOKUP(Table2[[#This Row],[Teams (jobformidler)]],Table15[#All],2,FALSE)=1,1,0)","v":{"$error":"#N/A"}}]
[null,null,null,null,null,null,null,{"$f":"_xlfn.IFNA(VLOOKUP(Table2[[#This Row],[Produktionstrin]],Table8[],2,FALSE),\"\")","v":""},null,null,null,{"$f":"IF(VLOOKUP(Table2[[#This Row],[Teams (jobformidler)]],Table15[#All],2,FALSE)=1,1,0)","v":{"$error":"#N/A"}}]
[null,null,null,null,null,null,null,{"$f":"_xlfn.IFNA(VLOOKUP(Table2[[#This Row],[Produktionstrin]],Table8[],2,FALSE),\"\")","v":""},null,null,null,{"$f":"IF(VLOOKUP(Table2[[#This Row],[Teams (jobformidler)]],Table15[#All],2,FALSE)=1,1,0)","v":{"$error":"#N/A"}}]
[null,null,null,null,null,null,null,{"$f":"_xlfn.IFNA(VLOOKUP(Table2[[#This Row],[Produktionstrin]],Table8[],2,FALSE),\"\")","v":""},null,null,null,{"$f":"IF(VLOOKUP(Table2[[#This Row],[Teams (jobformidler)]],Table15[#All],2,FALSE)=1,1,0)","v":{"$error":"#N/A"}}]
[null,null,null,null,null,null,null,{"$f":"_xlfn.IFNA(VLOOKUP(Table2[[#This Row],[Produktionstrin]],Table8[],2,FALSE),\"\")","v":""},null,null,null,{"$f":"IF(VLOOKUP(Table2[[#This Row],[Teams (jobformidler)]],Table15[#All],2,FALSE)=1,1,0)","v":{"$error":"#N/A"}}]
[null,null,null,null,null,null,null,{"$f":"_xlfn.IFNA(VLOOKUP(Table2[[#This Row],[Produktionstrin]],Table8[],2,FALSE),\"\")","v":""},null,null,null,{"$f":"IF(VLOOKUP(Table2[[#This Row],[Teams (jobformidler)]],Table15[#All],2,FALSE)=1,1,0)","v":{"$error":"#N/A"}}]
[null,null,null,null,null,null,null,{"$f":"_xlfn.IFNA(VLOOKUP(Table2[[#This Row],[Produktionstrin]],Table8[],2,FALSE),\"\")","v":""},null,null,null,{"$f":"IF(VLOOKUP(Table2[[#This Row],[Teams (jobformidler)]],Table15[#All],2,FALSE)=1,1,0)","v":{"$error":"#N/A"}}]
[null,null,null,null,null,null,null,{"$f":"_xlfn.IFNA(VLOOKUP(Table2[[#This Row],[Produktionstrin]],Table8[],2,FALSE),\"\")","v":""},null,null,null,{"$f":"IF(VLOOKUP(Table2[[#This Row],[Teams (jobformidler)]],Table15[#All],2,FALSE)=1,1,0)","v":{"$error":"#N/A"}}]
[null,null,null,null,null,null,null,{"$f":"_xlfn.IFNA(VLOOKUP(Table2[[#This Row],[Produktionstrin]],Table8[],2,FALSE),\"\")","v":""},null,null,null,{"$f":"IF(VLOOKUP(Table2[[#This Row],[Teams (jobformidler)]],Table15[#All],2,FALSE)=1,1,0)","v":{"$error":"#N/A"}}]
[null,null,null,null,null,null,null,{"$f":"_xlfn.IFNA(VLOOKUP(Table2[[#This Row],[Produktionstrin]],Table8[],2,FALSE),\"\")","v":""},null,null,null,{"$f":"IF(VLOOKUP(Table2[[#This Row],[Teams (jobformidler)]],Table15[#All],2,FALSE)=1,1,0)","v":{"$error":"#N/A"}}]
[null,null,null,null,null,null,null,{"$f":"_xlfn.IFNA(VLOOKUP(Table2[[#This Row],[Produktionstrin]],Table8[],2,FALSE),\"\")","v":""},null,null,null,{"$f":"IF(VLOOKUP(Table2[[#This Row],[Teams (jobformidler)]],Table15[#All],2,FALSE)=1,1,0)","v":{"$error":"#N/A"}}]
[null,null,null,null,null,null,null,{"$f":"_xlfn.IFNA(VLOOKUP(Table2[[#This Row],[Produktionstrin]],Table8[],2,FALSE),\"\")","v":""},null,null,null,{"$f":"IF(VLOOKUP(Table2[[#This Row],[Teams (jobformidler)]],Table15[#All],2,FALSE)=1,1,0)","v":{"$error":"#N/A"}}]
[null,null,null,null,null,null,null,{"$f":"_xlfn.IFNA(VLOOKUP(Table2[[#This Row],[Produktionstrin]],Table8[],2,FALSE),\"\")","v":""},null,null,null,{"$f":"IF(VLOOKUP(Table2[[#This Row],[Teams (jobformidler)]],Table15[#All],2,FALSE)=1,1,0)","v":{"$error":"#N/A"}}]
[null,null,null,null,null,null,null,{"$f":"_xlfn.IFNA(VLOOKUP(Table2[[#This Row],[Produktionstrin]],Table8[],2,FALSE),\"\")","v":""},null,null,null,{"$f":"IF(VLOOKUP(Table2[[#This Row],[Teams (jobformidler)]],Table15[#All],2,FALSE)=1,1,0)","v":{"$error":"#N/A"}}]
[null,null,null,null,null,null,null,{"$f":"_xlfn.IFNA(VLOOKUP(Table2[[#This Row],[Produktionstrin]],Table8[],2,FALSE),\"\")","v":""},null,null,null,{"$f":"IF(VLOOKUP(Table2[[#This Row],[Teams (jobformidler)]],Table15[#All],2,FALSE)=1,1,0)","v":{"$error":"#N/A"}}]
[null,null,null,null,null,null,null,{"$f":"_xlfn.IFNA(VLOOKUP(Table2[[#This Row],[Produktionstrin]],Table8[],2,FALSE),\"\")","v":""},null,null,null,{"$f":"IF(VLOOKUP(Table2[[#This Row],[Teams (jobformidler)]],Table15[#All],2,FALSE)=1,1,0)","v":{"$error":"#N/A"}}]
[null,null,null,null,null,null,null,{"$f":"_xlfn.IFNA(VLOOKUP(Table2[[#This Row],[Produktionstrin]],Table8[],2,FALSE),\"\")","v":""},null,null,null,{"$f":"IF(VLOOKUP(Table2[[#This Row],[Teams (jobformidler)]],Table15[#All],2,FALSE)=1,1,0)","v":{"$error":"#N/A"}}]
[null,null,null,null,null,null,null,{"$f":"_xlfn.IFNA(VLOOKUP(Table2[[#This Row],[Produktionstrin]],Table8[],2,FALSE),\"\")","v":""},null,null,null,{"$f":"IF(VLOOKUP(Table2[[#This Row],[Teams (jobformidler)]],Table15[#All],2,FALSE)=1,1,0)","v":{"$error":"#N/A"}}]
[null,null,null,null,null,null,null,{"$f":"_xlfn.IFNA(VLOOKUP(Table2[[#This Row],[Produktionstrin]],Table8[],2,FALSE),\"\")","v":""},null,null,null,{"$f":"IF(VLOOKUP(Table2[[#This Row],[Teams (jobformidler)]],Table15[#All],2,FALSE)=1,1,0)","v":{"$error":"#N/A"}}]
[null,null,null,null,null,null,null,{"$f":"_xlfn.IFNA(VLOOKUP(Table2[[#This Row],[Produktionstrin]],Table8[],2,FALSE),\"\")","v":""},null,null,null,{"$f":"IF(VLOOKUP(Table2[[#This Row],[Teams (jobformidler)]],Table15[#All],2,FALSE)=1,1,0)","v":{"$error":"#N/A"}}]
[null,null,null,null,null,null,null,{"$f":"_xlfn.IFNA(VLOOKUP(Table2[[#This Row],[Produktionstrin]],Table8[],2,FALSE),\"\")","v":""},null,null,null,{"$f":"IF(VLOOKUP(Table2[[#This Row],[Teams (jobformidler)]],Table15[#All],2,FALSE)=1,1,0)","v":{"$error":"#N/A"}}]
[null,null,null,null,null,null,null,{"$f":"_xlfn.IFNA(VLOOKUP(Table2[[#This Row],[Produktionstrin]],Table8[],2,FALSE),\"\")","v":""},null,null,null,{"$f":"IF(VLOOKUP(Table2[[#This Row],[Teams (jobformidler)]],Table15[#All],2,FALSE)=1,1,0)","v":{"$error":"#N/A"}}]
[null,null,null,null,null,null,null,{"$f":"_xlfn.IFNA(VLOOKUP(Table2[[#This Row],[Produktionstrin]],Table8[],2,FALSE),\"\")","v":""},null,null,null,{"$f":"IF(VLOOKUP(Table2[[#This Row],[Teams (jobformidler)]],Table15[#All],2,FALSE)=1,1,0)","v":{"$error":"#N/A"}}]
[null,null,null,null,null,null,null,{"$f":"_xlfn.IFNA(VLOOKUP(Table2[[#This Row],[Produktionstrin]],Table8[],2,FALSE),\"\")","v":""},null,null,null,{"$f":"IF(VLOOKUP(Table2[[#This Row],[Teams (jobformidler)]],Table15[#All],2,FALSE)=1,1,0)","v":{"$error":"#N/A"}}]
[null,null,null,null,null,null,null,{"$f":"_xlfn.IFNA(VLOOKUP(Table2[[#This Row],[Produktionstrin]],Table8[],2,FALSE),\"\")","v":""},null,null,null,{"$f":"IF(VLOOKUP(Table2[[#This Row],[Teams (jobformidler)]],Table15[#All],2,FALSE)=1,1,0)","v":{"$error":"#N/A"}}]
[null,null,null,null,null,null,null,{"$f":"_xlfn.IFNA(VLOOKUP(Table2[[#This Row],[Produktionstrin]],Table8[],2,FALSE),\"\")","v":""},null,null,null,{"$f":"IF(VLOOKUP(Table2[[#This Row],[Teams (jobformidler)]],Table15[#All],2,FALSE)=1,1,0)","v":{"$error":"#N/A"}}]
[null,null,null,null,null,null,null,{"$f":"_xlfn.IFNA(VLOOKUP(Table2[[#This Row],[Produktionstrin]],Table8[],2,FALSE),\"\")","v":""},null,null,null,{"$f":"IF(VLOOKUP(Table2[[#This Row],[Teams (jobformidler)]],Table15[#All],2,FALSE)=1,1,0)","v":{"$error":"#N/A"}}]
[null,null,null,null,null,null,null,{"$f":"_xlfn.IFNA(VLOOKUP(Table2[[#This Row],[Produktionstrin]],Table8[],2,FALSE),\"\")","v":""},null,null,null,{"$f":"IF(VLOOKUP(Table2[[#This Row],[Teams (jobformidler)]],Table15[#All],2,FALSE)=1,1,0)","v":{"$error":"#N/A"}}]
[null,null,null,null,null,null,null,{"$f":"_xlfn.IFNA(VLOOKUP(Table2[[#This Row],[Produktionstrin]],Table8[],2,FALSE),\"\")","v":""},null,null,null,{"$f":"IF(VLOOKUP(Table2[[#This Row],[Teams (jobformidler)]],Table15[#All],2,FALSE)=1,1,0)","v":{"$error":"#N/A"}}]
[null,null,null,null,null,null,null,{"$f":"_xlfn.IFNA(VLOOKUP(Table2[[#This Row],[Produktionstrin]],Table8[],2,FALSE),\"\")","v":""},null,null,null,{"$f":"IF(VLOOKUP(Table2[[#This Row],[Teams (jobformidler)]],Table15[#All],2,FALSE)=1,1,0)","v":{"$error":"#N/A"}}]
[null,null,null,null,null,null,null,{"$f":"_xlfn.IFNA(VLOOKUP(Table2[[#This Row],[Produktionstrin]],Table8[],2,FALSE),\"\")","v":""},null,null,null,{"$f":"IF(VLOOKUP(Table2[[#This Row],[Teams (jobformidler)]],Table15[#All],2,FALSE)=1,1,0)","v":{"$error":"#N/A"}}]
[null,null,null,null,null,null,null,{"$f":"_xlfn.IFNA(VLOOKUP(Table2[[#This Row],[Produktionstrin]],Table8[],2,FALSE),\"\")","v":""},null,null,null,{"$f":"IF(VLOOKUP(Table2[[#This Row],[Teams (jobformidler)]],Table15[#All],2,FALSE)=1,1,0)","v":{"$error":"#N/A"}}]
[null,null,null,null,null,null,null,{"$f":"_xlfn.IFNA(VLOOKUP(Table2[[#This Row],[Produktionstrin]],Table8[],2,FALSE),\"\")","v":""},null,null,null,{"$f":"IF(VLOOKUP(Table2[[#This Row],[Teams (jobformidler)]],Table15[#All],2,FALSE)=1,1,0)","v":{"$error":"#N/A"}}]
[null,null,null,null,null,null,null,{"$f":"_xlfn.IFNA(VLOOKUP(Table2[[#This Row],[Produktionstrin]],Table8[],2,FALSE),\"\")","v":""},null,null,null,{"$f":"IF(VLOOKUP(Table2[[#This Row],[Teams (jobformidler)]],Table15[#All],2,FALSE)=1,1,0)","v":{"$error":"#N/A"}}]
[null,null,null,null,null,null,null,{"$f":"_xlfn.IFNA(VLOOKUP(Table2[[#This Row],[Produktionstrin]],Table8[],2,FALSE),\"\")","v":""},null,null,null,{"$f":"IF(VLOOKUP(Table2[[#This Row],[Teams (jobformidler)]],Table15[#All],2,FALSE)=1,1,0)","v":{"$error":"#N/A"}}]
[null,null,null,null,null,null,null,{"$f":"_xlfn.IFNA(VLOOKUP(Table2[[#This Row],[Produktionstrin]],Table8[],2,FALSE),\"\")","v":""},null,null,null,{"$f":"IF(VLOOKUP(Table2[[#This Row],[Teams (jobformidler)]],Table15[#All],2,FALSE)=1,1,0)","v":{"$error":"#N/A"}}]
[null,null,null,null,null,null,null,{"$f":"_xlfn.IFNA(VLOOKUP(Table2[[#This Row],[Produktionstrin]],Table8[],2,FALSE),\"\")","v":""},null,null,null,{"$f":"IF(VLOOKUP(Table2[[#This Row],[Teams (jobformidler)]],Table15[#All],2,FALSE)=1,1,0)","v":{"$error":"#N/A"}}]
[null,null,null,null,null,null,null,{"$f":"_xlfn.IFNA(VLOOKUP(Table2[[#This Row],[Produktionstrin]],Table8[],2,FALSE),\"\")","v":""},null,null,null,{"$f":"IF(VLOOKUP(Table2[[#This Row],[Teams (jobformidler)]],Table15[#All],2,FALSE)=1,1,0)","v":{"$error":"#N/A"}}]
[null,null,null,null,null,null,null,{"$f":"_xlfn.IFNA(VLOOKUP(Table2[[#This Row],[Produktionstrin]],Table8[],2,FALSE),\"\")","v":""},null,null,null,{"$f":"IF(VLOOKUP(Table2[[#This Row],[Teams (jobformidler)]],Table15[#All],2,FALSE)=1,1,0)","v":{"$error":"#N/A"}}]
[null,null,null,null,null,null,null,{"$f":"_xlfn.IFNA(VLOOKUP(Table2[[#This Row],[Produktionstrin]],Table8[],2,FALSE),\"\")","v":""},null,null,null,{"$f":"IF(VLOOKUP(Table2[[#This Row],[Teams (jobformidler)]],Table15[#All],2,FALSE)=1,1,0)","v":{"$error":"#N/A"}}]
[null,null,null,null,null,null,null,{"$f":"_xlfn.IFNA(VLOOKUP(Table2[[#This Row],[Produktionstrin]],Table8[],2,FALSE),\"\")","v":""},null,null,null,{"$f":"IF(VLOOKUP(Table2[[#This Row],[Teams (jobformidler)]],Table15[#All],2,FALSE)=1,1,0)","v":{"$error":"#N/A"}}]
[null,null,null,null,null,null,null,{"$f":"_xlfn.IFNA(VLOOKUP(Table2[[#This Row],[Produktionstrin]],Table8[],2,FALSE),\"\")","v":""},null,null,null,{"$f":"IF(VLOOKUP(Table2[[#This Row],[Teams (jobformidler)]],Table15[#All],2,FALSE)=1,1,0)","v":{"$error":"#N/A"}}]
[null,null,null,null,null,null,null,{"$f":"_xlfn.IFNA(VLOOKUP(Table2[[#This Row],[Produktionstrin]],Table8[],2,FALSE),\"\")","v":""},null,null,null,{"$f":"IF(VLOOKUP(Table2[[#This Row],[Teams (jobformidler)]],Table15[#All],2,FALSE)=1,1,0)","v":{"$error":"#N/A"}}]
[null,null,null,null,null,null,null,{"$f":"_xlfn.IFNA(VLOOKUP(Table2[[#This Row],[Produktionstrin]],Table8[],2,FALSE),\"\")","v":""},null,null,null,{"$f":"IF(VLOOKUP(Table2[[#This Row],[Teams (jobformidler)]],Table15[#All],2,FALSE)=1,1,0)","v":{"$error":"#N/A"}}]
[null,null,null,null,null,null,null,{"$f":"_xlfn.IFNA(VLOOKUP(Table2[[#This Row],[Produktionstrin]],Table8[],2,FALSE),\"\")","v":""},null,null,null,{"$f":"IF(VLOOKUP(Table2[[#This Row],[Teams (jobformidler)]],Table15[#All],2,FALSE)=1,1,0)","v":{"$error":"#N/A"}}]
[null,null,null,null,null,null,null,{"$f":"_xlfn.IFNA(VLOOKUP(Table2[[#This Row],[Produktionstrin]],Table8[],2,FALSE),\"\")","v":""},null,null,null,{"$f":"IF(VLOOKUP(Table2[[#This Row],[Teams (jobformidler)]],Table15[#All],2,FALSE)=1,1,0)","v":{"$error":"#N/A"}}]
[null,null,null,null,null,null,null,{"$f":"_xlfn.IFNA(VLOOKUP(Table2[[#This Row],[Produktionstrin]],Table8[],2,FALSE),\"\")","v":""},null,null,null,{"$f":"IF(VLOOKUP(Table2[[#This Row],[Teams (jobformidler)]],Table15[#All],2,FALSE)=1,1,0)","v":{"$error":"#N/A"}}]
[null,null,null,null,null,null,null,{"$f":"_xlfn.IFNA(VLOOKUP(Table2[[#This Row],[Produktionstrin]],Table8[],2,FALSE),\"\")","v":""},null,null,null,{"$f":"IF(VLOOKUP(Table2[[#This Row],[Teams (jobformidler)]],Table15[#All],2,FALSE)=1,1,0)","v":{"$error":"#N/A"}}]
[null,null,null,null,null,null,null,{"$f":"_xlfn.IFNA(VLOOKUP(Table2[[#This Row],[Produktionstrin]],Table8[],2,FALSE),\"\")","v":""},null,null,null,{"$f":"IF(VLOOKUP(Table2[[#This Row],[Teams (jobformidler)]],Table15[#All],2,FALSE)=1,1,0)","v":{"$error":"#N/A"}}]
[null,null,null,null,null,null,null,{"$f":"_xlfn.IFNA(VLOOKUP(Table2[[#This Row],[Produktionstrin]],Table8[],2,FALSE),\"\")","v":""},null,null,null,{"$f":"IF(VLOOKUP(Table2[[#This Row],[Teams (jobformidler)]],Table15[#All],2,FALSE)=1,1,0)","v":{"$error":"#N/A"}}]
[null,null,null,null,null,null,null,{"$f":"_xlfn.IFNA(VLOOKUP(Table2[[#This Row],[Produktionstrin]],Table8[],2,FALSE),\"\")","v":""},null,null,null,{"$f":"IF(VLOOKUP(Table2[[#This Row],[Teams (jobformidler)]],Table15[#All],2,FALSE)=1,1,0)","v":{"$error":"#N/A"}}]
[null,null,null,null,null,null,null,{"$f":"_xlfn.IFNA(VLOOKUP(Table2[[#This Row],[Produktionstrin]],Table8[],2,FALSE),\"\")","v":""},null,null,null,{"$f":"IF(VLOOKUP(Table2[[#This Row],[Teams (jobformidler)]],Table15[#All],2,FALSE)=1,1,0)","v":{"$error":"#N/A"}}]
[null,null,null,null,null,null,null,{"$f":"_xlfn.IFNA(VLOOKUP(Table2[[#This Row],[Produktionstrin]],Table8[],2,FALSE),\"\")","v":""},null,null,null,{"$f":"IF(VLOOKUP(Table2[[#This Row],[Teams (jobformidler)]],Table15[#All],2,FALSE)=1,1,0)","v":{"$error":"#N/A"}}]
[null,null,null,null,null,null,null,{"$f":"_xlfn.IFNA(VLOOKUP(Table2[[#This Row],[Produktionstrin]],Table8[],2,FALSE),\"\")","v":""},null,null,null,{"$f":"IF(VLOOKUP(Table2[[#This Row],[Teams (jobformidler)]],Table15[#All],2,FALSE)=1,1,0)","v":{"$error":"#N/A"}}]
[null,null,null,null,null,null,null,{"$f":"_xlfn.IFNA(VLOOKUP(Table2[[#This Row],[Produktionstrin]],Table8[],2,FALSE),\"\")","v":""},null,null,null,{"$f":"IF(VLOOKUP(Table2[[#This Row],[Teams (jobformidler)]],Table15[#All],2,FALSE)=1,1,0)","v":{"$error":"#N/A"}}]
[null,null,null,null,null,null,null,{"$f":"_xlfn.IFNA(VLOOKUP(Table2[[#This Row],[Produktionstrin]],Table8[],2,FALSE),\"\")","v":""},null,null,null,{"$f":"IF(VLOOKUP(Table2[[#This Row],[Teams (jobformidler)]],Table15[#All],2,FALSE)=1,1,0)","v":{"$error":"#N/A"}}]
[null,null,null,null,null,null,null,{"$f":"_xlfn.IFNA(VLOOKUP(Table2[[#This Row],[Produktionstrin]],Table8[],2,FALSE),\"\")","v":""},null,null,null,{"$f":"IF(VLOOKUP(Table2[[#This Row],[Teams (jobformidler)]],Table15[#All],2,FALSE)=1,1,0)","v":{"$error":"#N/A"}}]
[null,null,null,null,null,null,null,{"$f":"_xlfn.IFNA(VLOOKUP(Table2[[#This Row],[Produktionstrin]],Table8[],2,FALSE),\"\")","v":""},null,null,null,{"$f":"IF(VLOOKUP(Table2[[#This Row],[Teams (jobformidler)]],Table15[#All],2,FALSE)=1,1,0)","v":{"$error":"#N/A"}}]
[null,null,null,null,null,null,null,{"$f":"_xlfn.IFNA(VLOOKUP(Table2[[#This Row],[Produktionstrin]],Table8[],2,FALSE),\"\")","v":""},null,null,null,{"$f":"IF(VLOOKUP(Table2[[#This Row],[Teams (jobformidler)]],Table15[#All],2,FALSE)=1,1,0)","v":{"$error":"#N/A"}}]
[null,null,null,null,null,null,null,{"$f":"_xlfn.IFNA(VLOOKUP(Table2[[#This Row],[Produktionstrin]],Table8[],2,FALSE),\"\")","v":""},null,null,null,{"$f":"IF(VLOOKUP(Table2[[#This Row],[Teams (jobformidler)]],Table15[#All],2,FALSE)=1,1,0)","v":{"$error":"#N/A"}}]
[null,null,null,null,null,null,null,{"$f":"_xlfn.IFNA(VLOOKUP(Table2[[#This Row],[Produktionstrin]],Table8[],2,FALSE),\"\")","v":""},null,null,null,{"$f":"IF(VLOOKUP(Table2[[#This Row],[Teams (jobformidler)]],Table15[#All],2,FALSE)=1,1,0)","v":{"$error":"#N/A"}}]
[null,null,null,null,null,null,null,{"$f":"_xlfn.IFNA(VLOOKUP(Table2[[#This Row],[Produktionstrin]],Table8[],2,FALSE),\"\")","v":""},null,null,null,{"$f":"IF(VLOOKUP(Table2[[#This Row],[Teams (jobformidler)]],Table15[#All],2,FALSE)=1,1,0)","v":{"$error":"#N/A"}}]
[null,null,null,null,null,null,null,{"$f":"_xlfn.IFNA(VLOOKUP(Table2[[#This Row],[Produktionstrin]],Table8[],2,FALSE),\"\")","v":""},null,null,null,{"$f":"IF(VLOOKUP(Table2[[#This Row],[Teams (jobformidler)]],Table15[#All],2,FALSE)=1,1,0)","v":{"$error":"#N/A"}}]
[null,null,null,null,null,null,null,{"$f":"_xlfn.IFNA(VLOOKUP(Table2[[#This Row],[Produktionstrin]],Table8[],2,FALSE),\"\")","v":""},null,null,null,{"$f":"IF(VLOOKUP(Table2[[#This Row],[Teams (jobformidler)]],Table15[#All],2,FALSE)=1,1,0)","v":{"$error":"#N/A"}}]
[null,null,null,null,null,null,null,{"$f":"_xlfn.IFNA(VLOOKUP(Table2[[#This Row],[Produktionstrin]],Table8[],2,FALSE),\"\")","v":""},null,null,null,{"$f":"IF(VLOOKUP(Table2[[#This Row],[Teams (jobformidler)]],Table15[#All],2,FALSE)=1,1,0)","v":{"$error":"#N/A"}}]
[null,null,null,null,null,null,null,{"$f":"_xlfn.IFNA(VLOOKUP(Table2[[#This Row],[Produktionstrin]],Table8[],2,FALSE),\"\")","v":""},null,null,null,{"$f":"IF(VLOOKUP(Table2[[#This Row],[Teams (jobformidler)]],Table15[#All],2,FALSE)=1,1,0)","v":{"$error":"#N/A"}}]
[null,null,null,null,null,null,null,{"$f":"_xlfn.IFNA(VLOOKUP(Table2[[#This Row],[Produktionstrin]],Table8[],2,FALSE),\"\")","v":""},null,null,null,{"$f":"IF(VLOOKUP(Table2[[#This Row],[Teams (jobformidler)]],Table15[#All],2,FALSE)=1,1,0)","v":{"$error":"#N/A"}}]
[null,null,null,null,null,null,null,{"$f":"_xlfn.IFNA(VLOOKUP(Table2[[#This Row],[Produktionstrin]],Table8[],2,FALSE),\"\")","v":""},null,null,null,{"$f":"IF(VLOOKUP(Table2[[#This Row],[Teams (jobformidler)]],Table15[#All],2,FALSE)=1,1,0)","v":{"$error":"#N/A"}}]
[null,null,null,null,null,null,null,{"$f":"_xlfn.IFNA(VLOOKUP(Table2[[#This Row],[Produktionstrin]],Table8[],2,FALSE),\"\")","v":""},null,null,null,{"$f":"IF(VLOOKUP(Table2[[#This Row],[Teams (jobformidler)]],Table15[#All],2,FALSE)=1,1,0)","v":{"$error":"#N/A"}}]
[null,null,null,null,null,null,null,{"$f":"_xlfn.IFNA(VLOOKUP(Table2[[#This Row],[Produktionstrin]],Table8[],2,FALSE),\"\")","v":""},null,null,null,{"$f":"IF(VLOOKUP(Table2[[#This Row],[Teams (jobformidler)]],Table15[#All],2,FALSE)=1,1,0)","v":{"$error":"#N/A"}}]
[null,null,null,null,null,null,null,{"$f":"_xlfn.IFNA(VLOOKUP(Table2[[#This Row],[Produktionstrin]],Table8[],2,FALSE),\"\")","v":""},null,null,null,{"$f":"IF(VLOOKUP(Table2[[#This Row],[Teams (jobformidler)]],Table15[#All],2,FALSE)=1,1,0)","v":{"$error":"#N/A"}}]
[null,null,null,null,null,null,null,{"$f":"_xlfn.IFNA(VLOOKUP(Table2[[#This Row],[Produktionstrin]],Table8[],2,FALSE),\"\")","v":""},null,null,null,{"$f":"IF(VLOOKUP(Table2[[#This Row],[Teams (jobformidler)]],Table15[#All],2,FALSE)=1,1,0)","v":{"$error":"#N/A"}}]
[null,null,null,null,null,null,null,{"$f":"_xlfn.IFNA(VLOOKUP(Table2[[#This Row],[Produktionstrin]],Table8[],2,FALSE),\"\")","v":""},null,null,null,{"$f":"IF(VLOOKUP(Table2[[#This Row],[Teams (jobformidler)]],Table15[#All],2,FALSE)=1,1,0)","v":{"$error":"#N/A"}}]
[null,null,null,null,null,null,null,{"$f":"_xlfn.IFNA(VLOOKUP(Table2[[#This Row],[Produktionstrin]],Table8[],2,FALSE),\"\")","v":""},null,null,null,{"$f":"IF(VLOOKUP(Table2[[#This Row],[Teams (jobformidler)]],Table15[#All],2,FALSE)=1,1,0)","v":{"$error":"#N/A"}}]
[null,null,null,null,null,null,null,{"$f":"_xlfn.IFNA(VLOOKUP(Table2[[#This Row],[Produktionstrin]],Table8[],2,FALSE),\"\")","v":""},null,null,null,{"$f":"IF(VLOOKUP(Table2[[#This Row],[Teams (jobformidler)]],Table15[#All],2,FALSE)=1,1,0)","v":{"$error":"#N/A"}}]
[null,null,null,null,null,null,null,{"$f":"_xlfn.IFNA(VLOOKUP(Table2[[#This Row],[Produktionstrin]],Table8[],2,FALSE),\"\")","v":""},null,null,null,{"$f":"IF(VLOOKUP(Table2[[#This Row],[Teams (jobformidler)]],Table15[#All],2,FALSE)=1,1,0)","v":{"$error":"#N/A"}}]
[null,null,null,null,null,null,null,{"$f":"_xlfn.IFNA(VLOOKUP(Table2[[#This Row],[Produktionstrin]],Table8[],2,FALSE),\"\")","v":""},null,null,null,{"$f":"IF(VLOOKUP(Table2[[#This Row],[Teams (jobformidler)]],Table15[#All],2,FALSE)=1,1,0)","v":{"$error":"#N/A"}}]
[null,null,null,null,null,null,null,{"$f":"_xlfn.IFNA(VLOOKUP(Table2[[#This Row],[Produktionstrin]],Table8[],2,FALSE),\"\")","v":""},null,null,null,{"$f":"IF(VLOOKUP(Table2[[#This Row],[Teams (jobformidler)]],Table15[#All],2,FALSE)=1,1,0)","v":{"$error":"#N/A"}}]
[null,null,null,null,null,null,null,{"$f":"_xlfn.IFNA(VLOOKUP(Table2[[#This Row],[Produktionstrin]],Table8[],2,FALSE),\"\")","v":""},null,null,null,{"$f":"IF(VLOOKUP(Table2[[#This Row],[Teams (jobformidler)]],Table15[#All],2,FALSE)=1,1,0)","v":{"$error":"#N/A"}}]
[null,null,null,null,null,null,null,{"$f":"_xlfn.IFNA(VLOOKUP(Table2[[#This Row],[Produktionstrin]],Table8[],2,FALSE),\"\")","v":""},null,null,null,{"$f":"IF(VLOOKUP(Table2[[#This Row],[Teams (jobformidler)]],Table15[#All],2,FALSE)=1,1,0)","v":{"$error":"#N/A"}}]
[null,null,null,null,null,null,null,{"$f":"_xlfn.IFNA(VLOOKUP(Table2[[#This Row],[Produktionstrin]],Table8[],2,FALSE),\"\")","v":""},null,null,null,{"$f":"IF(VLOOKUP(Table2[[#This Row],[Teams (jobformidler)]],Table15[#All],2,FALSE)=1,1,0)","v":{"$error":"#N/A"}}]
[null,null,null,null,null,null,null,{"$f":"_xlfn.IFNA(VLOOKUP(Table2[[#This Row],[Produktionstrin]],Table8[],2,FALSE),\"\")","v":""},null,null,null,{"$f":"IF(VLOOKUP(Table2[[#This Row],[Teams (jobformidler)]],Table15[#All],2,FALSE)=1,1,0)","v":{"$error":"#N/A"}}]
[null,null,null,null,null,null,null,{"$f":"_xlfn.IFNA(VLOOKUP(Table2[[#This Row],[Produktionstrin]],Table8[],2,FALSE),\"\")","v":""},null,null,null,{"$f":"IF(VLOOKUP(Table2[[#This Row],[Teams (jobformidler)]],Table15[#All],2,FALSE)=1,1,0)","v":{"$error":"#N/A"}}]
[null,null,null,null,null,null,null,{"$f":"_xlfn.IFNA(VLOOKUP(Table2[[#This Row],[Produktionstrin]],Table8[],2,FALSE),\"\")","v":""},null,null,null,{"$f":"IF(VLOOKUP(Table2[[#This Row],[Teams (jobformidler)]],Table15[#All],2,FALSE)=1,1,0)","v":{"$error":"#N/A"}}]
[null,null,null,null,null,null,null,{"$f":"_xlfn.IFNA(VLOOKUP(Table2[[#This Row],[Produktionstrin]],Table8[],2,FALSE),\"\")","v":""},null,null,null,{"$f":"IF(VLOOKUP(Table2[[#This Row],[Teams (jobformidler)]],Table15[#All],2,FALSE)=1,1,0)","v":{"$error":"#N/A"}}]
[null,null,null,null,null,null,null,{"$f":"_xlfn.IFNA(VLOOKUP(Table2[[#This Row],[Produktionstrin]],Table8[],2,FALSE),\"\")","v":""},null,null,null,{"$f":"IF(VLOOKUP(Table2[[#This Row],[Teams (jobformidler)]],Table15[#All],2,FALSE)=1,1,0)","v":{"$error":"#N/A"}}]
[null,null,null,null,null,null,null,{"$f":"_xlfn.IFNA(VLOOKUP(Table2[[#This Row],[Produktionstrin]],Table8[],2,FALSE),\"\")","v":""},null,null,null,{"$f":"IF(VLOOKUP(Table2[[#This Row],[Teams (jobformidler)]],Table15[#All],2,FALSE)=1,1,0)","v":{"$error":"#N/A"}}]
[null,null,null,null,null,null,null,{"$f":"_xlfn.IFNA(VLOOKUP(Table2[[#This Row],[Produktionstrin]],Table8[],2,FALSE),\"\")","v":""},null,null,null,{"$f":"IF(VLOOKUP(Table2[[#This Row],[Teams (jobformidler)]],Table15[#All],2,FALSE)=1,1,0)","v":{"$error":"#N/A"}}]
[null,null,null,null,null,null,null,{"$f":"_xlfn.IFNA(VLOOKUP(Table2[[#This Row],[Produktionstrin]],Table8[],2,FALSE),\"\")","v":""},null,null,null,{"$f":"IF(VLOOKUP(Table2[[#This Row],[Teams (jobformidler)]],Table15[#All],2,FALSE)=1,1,0)","v":{"$error":"#N/A"}}]
[null,null,null,null,null,null,null,{"$f":"_xlfn.IFNA(VLOOKUP(Table2[[#This Row],[Produktionstrin]],Table8[],2,FALSE),\"\")","v":""},null,null,null,{"$f":"IF(VLOOKUP(Table2[[#This Row],[Teams (jobformidler)]],Table15[#All],2,FALSE)=1,1,0)","v":{"$error":"#N/A"}}]
[null,null,null,null,null,null,null,{"$f":"_xlfn.IFNA(VLOOKUP(Table2[[#This Row],[Produktionstrin]],Table8[],2,FALSE),\"\")","v":""},null,null,null,{"$f":"IF(VLOOKUP(Table2[[#This Row],[Teams (jobformidler)]],Table15[#All],2,FALSE)=1,1,0)","v":{"$error":"#N/A"}}]
[null,null,null,null,null,null,null,{"$f":"_xlfn.IFNA(VLOOKUP(Table2[[#This Row],[Produktionstrin]],Table8[],2,FALSE),\"\")","v":""},null,null,null,{"$f":"IF(VLOOKUP(Table2[[#This Row],[Teams (jobformidler)]],Table15[#All],2,FALSE)=1,1,0)","v":{"$error":"#N/A"}}]
[null,null,null,null,null,null,null,{"$f":"_xlfn.IFNA(VLOOKUP(Table2[[#This Row],[Produktionstrin]],Table8[],2,FALSE),\"\")","v":""},null,null,null,{"$f":"IF(VLOOKUP(Table2[[#This Row],[Teams (jobformidler)]],Table15[#All],2,FALSE)=1,1,0)","v":{"$error":"#N/A"}}]
[null,null,null,null,null,null,null,{"$f":"_xlfn.IFNA(VLOOKUP(Table2[[#This Row],[Produktionstrin]],Table8[],2,FALSE),\"\")","v":""},null,null,null,{"$f":"IF(VLOOKUP(Table2[[#This Row],[Teams (jobformidler)]],Table15[#All],2,FALSE)=1,1,0)","v":{"$error":"#N/A"}}]
[null,null,null,null,null,null,null,{"$f":"_xlfn.IFNA(VLOOKUP(Table2[[#This Row],[Produktionstrin]],Table8[],2,FALSE),\"\")","v":""},null,null,null,{"$f":"IF(VLOOKUP(Table2[[#This Row],[Teams (jobformidler)]],Table15[#All],2,FALSE)=1,1,0)","v":{"$error":"#N/A"}}]
[null,null,null,null,null,null,null,{"$f":"_xlfn.IFNA(VLOOKUP(Table2[[#This Row],[Produktionstrin]],Table8[],2,FALSE),\"\")","v":""},null,null,null,{"$f":"IF(VLOOKUP(Table2[[#This Row],[Teams (jobformidler)]],Table15[#All],2,FALSE)=1,1,0)","v":{"$error":"#N/A"}}]
[null,null,null,null,null,null,null,{"$f":"_xlfn.IFNA(VLOOKUP(Table2[[#This Row],[Produktionstrin]],Table8[],2,FALSE),\"\")","v":""},null,null,null,{"$f":"IF(VLOOKUP(Table2[[#This Row],[Teams (jobformidler)]],Table15[#All],2,FALSE)=1,1,0)","v":{"$error":"#N/A"}}]
[null,null,null,null,null,null,null,{"$f":"_xlfn.IFNA(VLOOKUP(Table2[[#This Row],[Produktionstrin]],Table8[],2,FALSE),\"\")","v":""},null,null,null,{"$f":"IF(VLOOKUP(Table2[[#This Row],[Teams (jobformidler)]],Table15[#All],2,FALSE)=1,1,0)","v":{"$error":"#N/A"}}]
[null,null,null,null,null,null,null,{"$f":"_xlfn.IFNA(VLOOKUP(Table2[[#This Row],[Produktionstrin]],Table8[],2,FALSE),\"\")","v":""},null,null,null,{"$f":"IF(VLOOKUP(Table2[[#This Row],[Teams (jobformidler)]],Table15[#All],2,FALSE)=1,1,0)","v":{"$error":"#N/A"}}]
[null,null,null,null,null,null,null,{"$f":"_xlfn.IFNA(VLOOKUP(Table2[[#This Row],[Produktionstrin]],Table8[],2,FALSE),\"\")","v":""},null,null,null,{"$f":"IF(VLOOKUP(Table2[[#This Row],[Teams (jobformidler)]],Table15[#All],2,FALSE)=1,1,0)","v":{"$error":"#N/A"}}]
[null,null,null,null,null,null,null,{"$f":"_xlfn.IFNA(VLOOKUP(Table2[[#This Row],[Produktionstrin]],Table8[],2,FALSE),\"\")","v":""},null,null,null,{"$f":"IF(VLOOKUP(Table2[[#This Row],[Teams (jobformidler)]],Table15[#All],2,FALSE)=1,1,0)","v":{"$error":"#N/A"}}]
[null,null,null,null,null,null,null,{"$f":"_xlfn.IFNA(VLOOKUP(Table2[[#This Row],[Produktionstrin]],Table8[],2,FALSE),\"\")","v":""},null,null,null,{"$f":"IF(VLOOKUP(Table2[[#This Row],[Teams (jobformidler)]],Table15[#All],2,FALSE)=1,1,0)","v":{"$error":"#N/A"}}]
[null,null,null,null,null,null,null,{"$f":"_xlfn.IFNA(VLOOKUP(Table2[[#This Row],[Produktionstrin]],Table8[],2,FALSE),\"\")","v":""},null,null,null,{"$f":"IF(VLOOKUP(Table2[[#This Row],[Teams (jobformidler)]],Table15[#All],2,FALSE)=1,1,0)","v":{"$error":"#N/A"}}]
[null,null,null,null,null,null,null,{"$f":"_xlfn.IFNA(VLOOKUP(Table2[[#This Row],[Produktionstrin]],Table8[],2,FALSE),\"\")","v":""},null,null,null,{"$f":"IF(VLOOKUP(Table2[[#This Row],[Teams (jobformidler)]],Table15[#All],2,FALSE)=1,1,0)","v":{"$error":"#N/A"}}]
[null,null,null,null,null,null,null,{"$f":"_xlfn.IFNA(VLOOKUP(Table2[[#This Row],[Produktionstrin]],Table8[],2,FALSE),\"\")","v":""},null,null,null,{"$f":"IF(VLOOKUP(Table2[[#This Row],[Teams (jobformidler)]],Table15[#All],2,FALSE)=1,1,0)","v":{"$error":"#N/A"}}]
[null,null,null,null,null,null,null,{"$f":"_xlfn.IFNA(VLOOKUP(Table2[[#This Row],[Produktionstrin]],Table8[],2,FALSE),\"\")","v":""},null,null,null,{"$f":"IF(VLOOKUP(Table2[[#This Row],[Teams (jobformidler)]],Table15[#All],2,FALSE)=1,1,0)","v":{"$error":"#N/A"}}]
[null,null,null,null,null,null,null,{"$f":"_xlfn.IFNA(VLOOKUP(Table2[[#This Row],[Produktionstrin]],Table8[],2,FALSE),\"\")","v":""},null,null,null,{"$f":"IF(VLOOKUP(Table2[[#This Row],[Teams (jobformidler)]],Table15[#All],2,FALSE)=1,1,0)","v":{"$error":"#N/A"}}]
[null,null,null,null,null,null,null,{"$f":"_xlfn.IFNA(VLOOKUP(Table2[[#This Row],[Produktionstrin]],Table8[],2,FALSE),\"\")","v":""},null,null,null,{"$f":"IF(VLOOKUP(Table2[[#This Row],[Teams (jobformidler)]],Table15[#All],2,FALSE)=1,1,0)","v":{"$error":"#N/A"}}]
[null,null,null,null,null,null,null,{"$f":"_xlfn.IFNA(VLOOKUP(Table2[[#This Row],[Produktionstrin]],Table8[],2,FALSE),\"\")","v":""},null,null,null,{"$f":"IF(VLOOKUP(Table2[[#This Row],[Teams (jobformidler)]],Table15[#All],2,FALSE)=1,1,0)","v":{"$error":"#N/A"}}]
[null,null,null,null,null,null,null,{"$f":"_xlfn.IFNA(VLOOKUP(Table2[[#This Row],[Produktionstrin]],Table8[],2,FALSE),\"\")","v":""},null,null,null,{"$f":"IF(VLOOKUP(Table2[[#This Row],[Teams (jobformidler)]],Table15[#All],2,FALSE)=1,1,0)","v":{"$error":"#N/A"}}]
[null,null,null,null,null,null,null,{"$f":"_xlfn.IFNA(VLOOKUP(Table2[[#This Row],[Produktionstrin]],Table8[],2,FALSE),\"\")","v":""},null,null,null,{"$f":"IF(VLOOKUP(Table2[[#This Row],[Teams (jobformidler)]],Table15[#All],2,FALSE)=1,1,0)","v":{"$error":"#N/A"}}]
[null,null,null,null,null,null,null,{"$f":"_xlfn.IFNA(VLOOKUP(Table2[[#This Row],[Produktionstrin]],Table8[],2,FALSE),\"\")","v":""},null,null,null,{"$f":"IF(VLOOKUP(Table2[[#This Row],[Teams (jobformidler)]],Table15[#All],2,FALSE)=1,1,0)","v":{"$error":"#N/A"}}]
[null,null,null,null,null,null,null,{"$f":"_xlfn.IFNA(VLOOKUP(Table2[[#This Row],[Produktionstrin]],Table8[],2,FALSE),\"\")","v":""},null,null,null,{"$f":"IF(VLOOKUP(Table2[[#This Row],[Teams (jobformidler)]],Table15[#All],2,FALSE)=1,1,0)","v":{"$error":"#N/A"}}]
[null,null,null,null,null,null,null,{"$f":"_xlfn.IFNA(VLOOKUP(Table2[[#This Row],[Produktionstrin]],Table8[],2,FALSE),\"\")","v":""},null,null,null,{"$f":"IF(VLOOKUP(Table2[[#This Row],[Teams (jobformidler)]],Table15[#All],2,FALSE)=1,1,0)","v":{"$error":"#N/A"}}]
[null,null,null,null,null,null,null,{"$f":"_xlfn.IFNA(VLOOKUP(Table2[[#This Row],[Produktionstrin]],Table8[],2,FALSE),\"\")","v":""},null,null,null,{"$f":"IF(VLOOKUP(Table2[[#This Row],[Teams (jobformidler)]],Table15[#All],2,FALSE)=1,1,0)","v":{"$error":"#N/A"}}]
[null,null,null,null,null,null,null,{"$f":"_xlfn.IFNA(VLOOKUP(Table2[[#This Row],[Produktionstrin]],Table8[],2,FALSE),\"\")","v":""},null,null,null,{"$f":"IF(VLOOKUP(Table2[[#This Row],[Teams (jobformidler)]],Table15[#All],2,FALSE)=1,1,0)","v":{"$error":"#N/A"}}]
[null,null,null,null,null,null,null,{"$f":"_xlfn.IFNA(VLOOKUP(Table2[[#This Row],[Produktionstrin]],Table8[],2,FALSE),\"\")","v":""},null,null,null,{"$f":"IF(VLOOKUP(Table2[[#This Row],[Teams (jobformidler)]],Table15[#All],2,FALSE)=1,1,0)","v":{"$error":"#N/A"}}]
[null,null,null,null,null,null,null,{"$f":"_xlfn.IFNA(VLOOKUP(Table2[[#This Row],[Produktionstrin]],Table8[],2,FALSE),\"\")","v":""},null,null,null,{"$f":"IF(VLOOKUP(Table2[[#This Row],[Teams (jobformidler)]],Table15[#All],2,FALSE)=1,1,0)","v":{"$error":"#N/A"}}]
[null,null,null,null,null,null,null,{"$f":"_xlfn.IFNA(VLOOKUP(Table2[[#This Row],[Produktionstrin]],Table8[],2,FALSE),\"\")","v":""},null,null,null,{"$f":"IF(VLOOKUP(Table2[[#This Row],[Teams (jobformidler)]],Table15[#All],2,FALSE)=1,1,0)","v":{"$error":"#N/A"}}]
[null,null,null,null,null,null,null,{"$f":"_xlfn.IFNA(VLOOKUP(Table2[[#This Row],[Produktionstrin]],Table8[],2,FALSE),\"\")","v":""},null,null,null,{"$f":"IF(VLOOKUP(Table2[[#This Row],[Teams (jobformidler)]],Table15[#All],2,FALSE)=1,1,0)","v":{"$error":"#N/A"}}]
[null,null,null,null,null,null,null,{"$f":"_xlfn.IFNA(VLOOKUP(Table2[[#This Row],[Produktionstrin]],Table8[],2,FALSE),\"\")","v":""},null,null,null,{"$f":"IF(VLOOKUP(Table2[[#This Row],[Teams (jobformidler)]],Table15[#All],2,FALSE)=1,1,0)","v":{"$error":"#N/A"}}]
[null,null,null,null,null,null,null,{"$f":"_xlfn.IFNA(VLOOKUP(Table2[[#This Row],[Produktionstrin]],Table8[],2,FALSE),\"\")","v":""},null,null,null,{"$f":"IF(VLOOKUP(Table2[[#This Row],[Teams (jobformidler)]],Table15[#All],2,FALSE)=1,1,0)","v":{"$error":"#N/A"}}]
[null,null,null,null,null,null,null,{"$f":"_xlfn.IFNA(VLOOKUP(Table2[[#This Row],[Produktionstrin]],Table8[],2,FALSE),\"\")","v":""},null,null,null,{"$f":"IF(VLOOKUP(Table2[[#This Row],[Teams (jobformidler)]],Table15[#All],2,FALSE)=1,1,0)","v":{"$error":"#N/A"}}]
[null,null,null,null,null,null,null,{"$f":"_xlfn.IFNA(VLOOKUP(Table2[[#This Row],[Produktionstrin]],Table8[],2,FALSE),\"\")","v":""},null,null,null,{"$f":"IF(VLOOKUP(Table2[[#This Row],[Teams (jobformidler)]],Table15[#All],2,FALSE)=1,1,0)","v":{"$error":"#N/A"}}]
[null,null,null,null,null,null,null,{"$f":"_xlfn.IFNA(VLOOKUP(Table2[[#This Row],[Produktionstrin]],Table8[],2,FALSE),\"\")","v":""},null,null,null,{"$f":"IF(VLOOKUP(Table2[[#This Row],[Teams (jobformidler)]],Table15[#All],2,FALSE)=1,1,0)","v":{"$error":"#N/A"}}]
[null,null,null,null,null,null,null,{"$f":"_xlfn.IFNA(VLOOKUP(Table2[[#This Row],[Produktionstrin]],Table8[],2,FALSE),\"\")","v":""},null,null,null,{"$f":"IF(VLOOKUP(Table2[[#This Row],[Teams (jobformidler)]],Table15[#All],2,FALSE)=1,1,0)","v":{"$error":"#N/A"}}]
[null,null,null,null,null,null,null,{"$f":"_xlfn.IFNA(VLOOKUP(Table2[[#This Row],[Produktionstrin]],Table8[],2,FALSE),\"\")","v":""},null,null,null,{"$f":"IF(VLOOKUP(Table2[[#This Row],[Teams (jobformidler)]],Table15[#All],2,FALSE)=1,1,0)","v":{"$error":"#N/A"}}]
[null,null,null,null,null,null,null,{"$f":"_xlfn.IFNA(VLOOKUP(Table2[[#This Row],[Produktionstrin]],Table8[],2,FALSE),\"\")","v":""},null,null,null,{"$f":"IF(VLOOKUP(Table2[[#This Row],[Teams (jobformidler)]],Table15[#All],2,FALSE)=1,1,0)","v":{"$error":"#N/A"}}]
[null,null,null,null,null,null,null,{"$f":"_xlfn.IFNA(VLOOKUP(Table2[[#This Row],[Produktionstrin]],Table8[],2,FALSE),\"\")","v":""},null,null,null,{"$f":"IF(VLOOKUP(Table2[[#This Row],[Teams (jobformidler)]],Table15[#All],2,FALSE)=1,1,0)","v":{"$error":"#N/A"}}]
[null,null,null,null,null,null,null,{"$f":"_xlfn.IFNA(VLOOKUP(Table2[[#This Row],[Produktionstrin]],Table8[],2,FALSE),\"\")","v":""},null,null,null,{"$f":"IF(VLOOKUP(Table2[[#This Row],[Teams (jobformidler)]],Table15[#All],2,FALSE)=1,1,0)","v":{"$error":"#N/A"}}]
[null,null,null,null,null,null,null,{"$f":"_xlfn.IFNA(VLOOKUP(Table2[[#This Row],[Produktionstrin]],Table8[],2,FALSE),\"\")","v":""},null,null,null,{"$f":"IF(VLOOKUP(Table2[[#This Row],[Teams (jobformidler)]],Table15[#All],2,FALSE)=1,1,0)","v":{"$error":"#N/A"}}]
[null,null,null,null,null,null,null,{"$f":"_xlfn.IFNA(VLOOKUP(Table2[[#This Row],[Produktionstrin]],Table8[],2,FALSE),\"\")","v":""},null,null,null,{"$f":"IF(VLOOKUP(Table2[[#This Row],[Teams (jobformidler)]],Table15[#All],2,FALSE)=1,1,0)","v":{"$error":"#N/A"}}]
[null,null,null,null,null,null,null,{"$f":"_xlfn.IFNA(VLOOKUP(Table2[[#This Row],[Produktionstrin]],Table8[],2,FALSE),\"\")","v":""},null,null,null,{"$f":"IF(VLOOKUP(Table2[[#This Row],[Teams (jobformidler)]],Table15[#All],2,FALSE)=1,1,0)","v":{"$error":"#N/A"}}]
[null,null,null,null,null,null,null,{"$f":"_xlfn.IFNA(VLOOKUP(Table2[[#This Row],[Produktionstrin]],Table8[],2,FALSE),\"\")","v":""},null,null,null,{"$f":"IF(VLOOKUP(Table2[[#This Row],[Teams (jobformidler)]],Table15[#All],2,FALSE)=1,1,0)","v":{"$error":"#N/A"}}]
[null,null,null,null,null,null,null,{"$f":"_xlfn.IFNA(VLOOKUP(Table2[[#This Row],[Produktionstrin]],Table8[],2,FALSE),\"\")","v":""},null,null,null,{"$f":"IF(VLOOKUP(Table2[[#This Row],[Teams (jobformidler)]],Table15[#All],2,FALSE)=1,1,0)","v":{"$error":"#N/A"}}]
[null,null,null,null,null,null,null,{"$f":"_xlfn.IFNA(VLOOKUP(Table2[[#This Row],[Produktionstrin]],Table8[],2,FALSE),\"\")","v":""},null,null,null,{"$f":"IF(VLOOKUP(Table2[[#This Row],[Teams (jobformidler)]],Table15[#All],2,FALSE)=1,1,0)","v":{"$error":"#N/A"}}]
[null,null,null,null,null,null,null,{"$f":"_xlfn.IFNA(VLOOKUP(Table2[[#This Row],[Produktionstrin]],Table8[],2,FALSE),\"\")","v":""},null,null,null,{"$f":"IF(VLOOKUP(Table2[[#This Row],[Teams (jobformidler)]],Table15[#All],2,FALSE)=1,1,0)","v":{"$error":"#N/A"}}]
[null,null,null,null,null,null,null,{"$f":"_xlfn.IFNA(VLOOKUP(Table2[[#This Row],[Produktionstrin]],Table8[],2,FALSE),\"\")","v":""},null,null,null,{"$f":"IF(VLOOKUP(Table2[[#This Row],[Teams (jobformidler)]],Table15[#All],2,FALSE)=1,1,0)","v":{"$error":"#N/A"}}]
[null,null,null,null,null,null,null,{"$f":"_xlfn.IFNA(VLOOKUP(Table2[[#This Row],[Produktionstrin]],Table8[],2,FALSE),\"\")","v":""},null,null,null,{"$f":"IF(VLOOKUP(Table2[[#This Row],[Teams (jobformidler)]],Table15[#All],2,FALSE)=1,1,0)","v":{"$error":"#N/A"}}]
[null,null,null,null,null,null,null,{"$f":"_xlfn.IFNA(VLOOKUP(Table2[[#This Row],[Produktionstrin]],Table8[],2,FALSE),\"\")","v":""},null,null,null,{"$f":"IF(VLOOKUP(Table2[[#This Row],[Teams (jobformidler)]],Table15[#All],2,FALSE)=1,1,0)","v":{"$error":"#N/A"}}]
[null,null,null,null,null,null,null,{"$f":"_xlfn.IFNA(VLOOKUP(Table2[[#This Row],[Produktionstrin]],Table8[],2,FALSE),\"\")","v":""},null,null,null,{"$f":"IF(VLOOKUP(Table2[[#This Row],[Teams (jobformidler)]],Table15[#All],2,FALSE)=1,1,0)","v":{"$error":"#N/A"}}]
[null,null,null,null,null,null,null,{"$f":"_xlfn.IFNA(VLOOKUP(Table2[[#This Row],[Produktionstrin]],Table8[],2,FALSE),\"\")","v":""},null,null,null,{"$f":"IF(VLOOKUP(Table2[[#This Row],[Teams (jobformidler)]],Table15[#All],2,FALSE)=1,1,0)","v":{"$error":"#N/A"}}]
[null,null,null,null,null,null,null,{"$f":"_xlfn.IFNA(VLOOKUP(Table2[[#This Row],[Produktionstrin]],Table8[],2,FALSE),\"\")","v":""},null,null,null,{"$f":"IF(VLOOKUP(Table2[[#This Row],[Teams (jobformidler)]],Table15[#All],2,FALSE)=1,1,0)","v":{"$error":"#N/A"}}]
[null,null,null,null,null,null,null,{"$f":"_xlfn.IFNA(VLOOKUP(Table2[[#This Row],[Produktionstrin]],Table8[],2,FALSE),\"\")","v":""},null,null,null,{"$f":"IF(VLOOKUP(Table2[[#This Row],[Teams (jobformidler)]],Table15[#All],2,FALSE)=1,1,0)","v":{"$error":"#N/A"}}]
[null,null,null,null,null,null,null,{"$f":"_xlfn.IFNA(VLOOKUP(Table2[[#This Row],[Produktionstrin]],Table8[],2,FALSE),\"\")","v":""},null,null,null,{"$f":"IF(VLOOKUP(Table2[[#This Row],[Teams (jobformidler)]],Table15[#All],2,FALSE)=1,1,0)","v":{"$error":"#N/A"}}]
[null,null,null,null,null,null,null,{"$f":"_xlfn.IFNA(VLOOKUP(Table2[[#This Row],[Produktionstrin]],Table8[],2,FALSE),\"\")","v":""},null,null,null,{"$f":"IF(VLOOKUP(Table2[[#This Row],[Teams (jobformidler)]],Table15[#All],2,FALSE)=1,1,0)","v":{"$error":"#N/A"}}]
[null,null,null,null,null,null,null,{"$f":"_xlfn.IFNA(VLOOKUP(Table2[[#This Row],[Produktionstrin]],Table8[],2,FALSE),\"\")","v":""},null,null,null,{"$f":"IF(VLOOKUP(Table2[[#This Row],[Teams (jobformidler)]],Table15[#All],2,FALSE)=1,1,0)","v":{"$error":"#N/A"}}]
[null,null,null,null,null,null,null,{"$f":"_xlfn.IFNA(VLOOKUP(Table2[[#This Row],[Produktionstrin]],Table8[],2,FALSE),\"\")","v":""},null,null,null,{"$f":"IF(VLOOKUP(Table2[[#This Row],[Teams (jobformidler)]],Table15[#All],2,FALSE)=1,1,0)","v":{"$error":"#N/A"}}]
[null,null,null,null,null,null,null,{"$f":"_xlfn.IFNA(VLOOKUP(Table2[[#This Row],[Produktionstrin]],Table8[],2,FALSE),\"\")","v":""},null,null,null,{"$f":"IF(VLOOKUP(Table2[[#This Row],[Teams (jobformidler)]],Table15[#All],2,FALSE)=1,1,0)","v":{"$error":"#N/A"}}]
[null,null,null,null,null,null,null,{"$f":"_xlfn.IFNA(VLOOKUP(Table2[[#This Row],[Produktionstrin]],Table8[],2,FALSE),\"\")","v":""},null,null,null,{"$f":"IF(VLOOKUP(Table2[[#This Row],[Teams (jobformidler)]],Table15[#All],2,FALSE)=1,1,0)","v":{"$error":"#N/A"}}]
[null,null,null,null,null,null,null,{"$f":"_xlfn.IFNA(VLOOKUP(Table2[[#This Row],[Produktionstrin]],Table8[],2,FALSE),\"\")","v":""},null,null,null,{"$f":"IF(VLOOKUP(Table2[[#This Row],[Teams (jobformidler)]],Table15[#All],2,FALSE)=1,1,0)","v":{"$error":"#N/A"}}]
[null,null,null,null,null,null,null,{"$f":"_xlfn.IFNA(VLOOKUP(Table2[[#This Row],[Produktionstrin]],Table8[],2,FALSE),\"\")","v":""},null,null,null,{"$f":"IF(VLOOKUP(Table2[[#This Row],[Teams (jobformidler)]],Table15[#All],2,FALSE)=1,1,0)","v":{"$error":"#N/A"}}]
[null,null,null,null,null,null,null,{"$f":"_xlfn.IFNA(VLOOKUP(Table2[[#This Row],[Produktionstrin]],Table8[],2,FALSE),\"\")","v":""},null,null,null,{"$f":"IF(VLOOKUP(Table2[[#This Row],[Teams (jobformidler)]],Table15[#All],2,FALSE)=1,1,0)","v":{"$error":"#N/A"}}]
[null,null,null,null,null,null,null,{"$f":"_xlfn.IFNA(VLOOKUP(Table2[[#This Row],[Produktionstrin]],Table8[],2,FALSE),\"\")","v":""},null,null,null,{"$f":"IF(VLOOKUP(Table2[[#This Row],[Teams (jobformidler)]],Table15[#All],2,FALSE)=1,1,0)","v":{"$error":"#N/A"}}]
[null,null,null,null,null,null,null,{"$f":"_xlfn.IFNA(VLOOKUP(Table2[[#This Row],[Produktionstrin]],Table8[],2,FALSE),\"\")","v":""},null,null,null,{"$f":"IF(VLOOKUP(Table2[[#This Row],[Teams (jobformidler)]],Table15[#All],2,FALSE)=1,1,0)","v":{"$error":"#N/A"}}]
[null,null,null,null,null,null,null,{"$f":"_xlfn.IFNA(VLOOKUP(Table2[[#This Row],[Produktionstrin]],Table8[],2,FALSE),\"\")","v":""},null,null,null,{"$f":"IF(VLOOKUP(Table2[[#This Row],[Teams (jobformidler)]],Table15[#All],2,FALSE)=1,1,0)","v":{"$error":"#N/A"}}]
[null,null,null,null,null,null,null,{"$f":"_xlfn.IFNA(VLOOKUP(Table2[[#This Row],[Produktionstrin]],Table8[],2,FALSE),\"\")","v":""},null,null,null,{"$f":"IF(VLOOKUP(Table2[[#This Row],[Teams (jobformidler)]],Table15[#All],2,FALSE)=1,1,0)","v":{"$error":"#N/A"}}]
[null,null,null,null,null,null,null,{"$f":"_xlfn.IFNA(VLOOKUP(Table2[[#This Row],[Produktionstrin]],Table8[],2,FALSE),\"\")","v":""},null,null,null,{"$f":"IF(VLOOKUP(Table2[[#This Row],[Teams (jobformidler)]],Table15[#All],2,FALSE)=1,1,0)","v":{"$error":"#N/A"}}]
[null,null,null,null,null,null,null,{"$f":"_xlfn.IFNA(VLOOKUP(Table2[[#This Row],[Produktionstrin]],Table8[],2,FALSE),\"\")","v":""},null,null,null,{"$f":"IF(VLOOKUP(Table2[[#This Row],[Teams (jobformidler)]],Table15[#All],2,FALSE)=1,1,0)","v":{"$error":"#N/A"}}]
[null,null,null,null,null,null,null,{"$f":"_xlfn.IFNA(VLOOKUP(Table2[[#This Row],[Produktionstrin]],Table8[],2,FALSE),\"\")","v":""},null,null,null,{"$f":"IF(VLOOKUP(Table2[[#This Row],[Teams (jobformidler)]],Table15[#All],2,FALSE)=1,1,0)","v":{"$error":"#N/A"}}]
[null,null,null,null,null,null,null,{"$f":"_xlfn.IFNA(VLOOKUP(Table2[[#This Row],[Produktionstrin]],Table8[],2,FALSE),\"\")","v":""},null,null,null,{"$f":"IF(VLOOKUP(Table2[[#This Row],[Teams (jobformidler)]],Table15[#All],2,FALSE)=1,1,0)","v":{"$error":"#N/A"}}]
[null,null,null,null,null,null,null,{"$f":"_xlfn.IFNA(VLOOKUP(Table2[[#This Row],[Produktionstrin]],Table8[],2,FALSE),\"\")","v":""},null,null,null,{"$f":"IF(VLOOKUP(Table2[[#This Row],[Teams (jobformidler)]],Table15[#All],2,FALSE)=1,1,0)","v":{"$error":"#N/A"}}]
[null,null,null,null,null,null,null,{"$f":"_xlfn.IFNA(VLOOKUP(Table2[[#This Row],[Produktionstrin]],Table8[],2,FALSE),\"\")","v":""},null,null,null,{"$f":"IF(VLOOKUP(Table2[[#This Row],[Teams (jobformidler)]],Table15[#All],2,FALSE)=1,1,0)","v":{"$error":"#N/A"}}]
[null,null,null,null,null,null,null,{"$f":"_xlfn.IFNA(VLOOKUP(Table2[[#This Row],[Produktionstrin]],Table8[],2,FALSE),\"\")","v":""},null,null,null,{"$f":"IF(VLOOKUP(Table2[[#This Row],[Teams (jobformidler)]],Table15[#All],2,FALSE)=1,1,0)","v":{"$error":"#N/A"}}]
[null,null,null,null,null,null,null,{"$f":"_xlfn.IFNA(VLOOKUP(Table2[[#This Row],[Produktionstrin]],Table8[],2,FALSE),\"\")","v":""},null,null,null,{"$f":"IF(VLOOKUP(Table2[[#This Row],[Teams (jobformidler)]],Table15[#All],2,FALSE)=1,1,0)","v":{"$error":"#N/A"}}]
[null,null,null,null,null,null,null,{"$f":"_xlfn.IFNA(VLOOKUP(Table2[[#This Row],[Produktionstrin]],Table8[],2,FALSE),\"\")","v":""},null,null,null,{"$f":"IF(VLOOKUP(Table2[[#This Row],[Teams (jobformidler)]],Table15[#All],2,FALSE)=1,1,0)","v":{"$error":"#N/A"}}]
[null,null,null,null,null,null,null,{"$f":"_xlfn.IFNA(VLOOKUP(Table2[[#This Row],[Produktionstrin]],Table8[],2,FALSE),\"\")","v":""},null,null,null,{"$f":"IF(VLOOKUP(Table2[[#This Row],[Teams (jobformidler)]],Table15[#All],2,FALSE)=1,1,0)","v":{"$error":"#N/A"}}]
[null,null,null,null,null,null,null,{"$f":"_xlfn.IFNA(VLOOKUP(Table2[[#This Row],[Produktionstrin]],Table8[],2,FALSE),\"\")","v":""},null,null,null,{"$f":"IF(VLOOKUP(Table2[[#This Row],[Teams (jobformidler)]],Table15[#All],2,FALSE)=1,1,0)","v":{"$error":"#N/A"}}]
[null,null,null,null,null,null,null,{"$f":"_xlfn.IFNA(VLOOKUP(Table2[[#This Row],[Produktionstrin]],Table8[],2,FALSE),\"\")","v":""},null,null,null,{"$f":"IF(VLOOKUP(Table2[[#This Row],[Teams (jobformidler)]],Table15[#All],2,FALSE)=1,1,0)","v":{"$error":"#N/A"}}]
[null,null,null,null,null,null,null,{"$f":"_xlfn.IFNA(VLOOKUP(Table2[[#This Row],[Produktionstrin]],Table8[],2,FALSE),\"\")","v":""},null,null,null,{"$f":"IF(VLOOKUP(Table2[[#This Row],[Teams (jobformidler)]],Table15[#All],2,FALSE)=1,1,0)","v":{"$error":"#N/A"}}]
[null,null,null,null,null,null,null,{"$f":"_xlfn.IFNA(VLOOKUP(Table2[[#This Row],[Produktionstrin]],Table8[],2,FALSE),\"\")","v":""},null,null,null,{"$f":"IF(VLOOKUP(Table2[[#This Row],[Teams (jobformidler)]],Table15[#All],2,FALSE)=1,1,0)","v":{"$error":"#N/A"}}]
[null,null,null,null,null,null,null,{"$f":"_xlfn.IFNA(VLOOKUP(Table2[[#This Row],[Produktionstrin]],Table8[],2,FALSE),\"\")","v":""},null,null,null,{"$f":"IF(VLOOKUP(Table2[[#This Row],[Teams (jobformidler)]],Table15[#All],2,FALSE)=1,1,0)","v":{"$error":"#N/A"}}]
[null,null,null,null,null,null,null,{"$f":"_xlfn.IFNA(VLOOKUP(Table2[[#This Row],[Produktionstrin]],Table8[],2,FALSE),\"\")","v":""},null,null,null,{"$f":"IF(VLOOKUP(Table2[[#This Row],[Teams (jobformidler)]],Table15[#All],2,FALSE)=1,1,0)","v":{"$error":"#N/A"}}]
[null,null,null,null,null,null,null,{"$f":"_xlfn.IFNA(VLOOKUP(Table2[[#This Row],[Produktionstrin]],Table8[],2,FALSE),\"\")","v":""},null,null,null,{"$f":"IF(VLOOKUP(Table2[[#This Row],[Teams (jobformidler)]],Table15[#All],2,FALSE)=1,1,0)","v":{"$error":"#N/A"}}]
[null,null,null,null,null,null,null,{"$f":"_xlfn.IFNA(VLOOKUP(Table2[[#This Row],[Produktionstrin]],Table8[],2,FALSE),\"\")","v":""},null,null,null,{"$f":"IF(VLOOKUP(Table2[[#This Row],[Teams (jobformidler)]],Table15[#All],2,FALSE)=1,1,0)","v":{"$error":"#N/A"}}]
[null,null,null,null,null,null,null,{"$f":"_xlfn.IFNA(VLOOKUP(Table2[[#This Row],[Produktionstrin]],Table8[],2,FALSE),\"\")","v":""},null,null,null,{"$f":"IF(VLOOKUP(Table2[[#This Row],[Teams (jobformidler)]],Table15[#All],2,FALSE)=1,1,0)","v":{"$error":"#N/A"}}]
[null,null,null,null,null,null,null,{"$f":"_xlfn.IFNA(VLOOKUP(Table2[[#This Row],[Produktionstrin]],Table8[],2,FALSE),\"\")","v":""},null,null,null,{"$f":"IF(VLOOKUP(Table2[[#This Row],[Teams (jobformidler)]],Table15[#All],2,FALSE)=1,1,0)","v":{"$error":"#N/A"}}]
[null,null,null,null,null,null,null,{"$f":"_xlfn.IFNA(VLOOKUP(Table2[[#This Row],[Produktionstrin]],Table8[],2,FALSE),\"\")","v":""},null,null,null,{"$f":"IF(VLOOKUP(Table2[[#This Row],[Teams (jobformidler)]],Table15[#All],2,FALSE)=1,1,0)","v":{"$error":"#N/A"}}]
[null,null,null,null,null,null,null,{"$f":"_xlfn.IFNA(VLOOKUP(Table2[[#This Row],[Produktionstrin]],Table8[],2,FALSE),\"\")","v":""},null,null,null,{"$f":"IF(VLOOKUP(Table2[[#This Row],[Teams (jobformidler)]],Table15[#All],2,FALSE)=1,1,0)","v":{"$error":"#N/A"}}]
[null,null,null,null,null,null,null,{"$f":"_xlfn.IFNA(VLOOKUP(Table2[[#This Row],[Produktionstrin]],Table8[],2,FALSE),\"\")","v":""},null,null,null,{"$f":"IF(VLOOKUP(Table2[[#This Row],[Teams (jobformidler)]],Table15[#All],2,FALSE)=1,1,0)","v":{"$error":"#N/A"}}]
[null,null,null,null,null,null,null,{"$f":"_xlfn.IFNA(VLOOKUP(Table2[[#This Row],[Produktionstrin]],Table8[],2,FALSE),\"\")","v":""},null,null,null,{"$f":"IF(VLOOKUP(Table2[[#This Row],[Teams (jobformidler)]],Table15[#All],2,FALSE)=1,1,0)","v":{"$error":"#N/A"}}]
[null,null,null,null,null,null,null,{"$f":"_xlfn.IFNA(VLOOKUP(Table2[[#This Row],[Produktionstrin]],Table8[],2,FALSE),\"\")","v":""},null,null,null,{"$f":"IF(VLOOKUP(Table2[[#This Row],[Teams (jobformidler)]],Table15[#All],2,FALSE)=1,1,0)","v":{"$error":"#N/A"}}]
[null,null,null,null,null,null,null,{"$f":"_xlfn.IFNA(VLOOKUP(Table2[[#This Row],[Produktionstrin]],Table8[],2,FALSE),\"\")","v":""},null,null,null,{"$f":"IF(VLOOKUP(Table2[[#This Row],[Teams (jobformidler)]],Table15[#All],2,FALSE)=1,1,0)","v":{"$error":"#N/A"}}]
[null,null,null,null,null,null,null,{"$f":"_xlfn.IFNA(VLOOKUP(Table2[[#This Row],[Produktionstrin]],Table8[],2,FALSE),\"\")","v":""},null,null,null,{"$f":"IF(VLOOKUP(Table2[[#This Row],[Teams (jobformidler)]],Table15[#All],2,FALSE)=1,1,0)","v":{"$error":"#N/A"}}]
[null,null,null,null,null,null,null,{"$f":"_xlfn.IFNA(VLOOKUP(Table2[[#This Row],[Produktionstrin]],Table8[],2,FALSE),\"\")","v":""},null,null,null,{"$f":"IF(VLOOKUP(Table2[[#This Row],[Teams (jobformidler)]],Table15[#All],2,FALSE)=1,1,0)","v":{"$error":"#N/A"}}]
[null,null,null,null,null,null,null,{"$f":"_xlfn.IFNA(VLOOKUP(Table2[[#This Row],[Produktionstrin]],Table8[],2,FALSE),\"\")","v":""},null,null,null,{"$f":"IF(VLOOKUP(Table2[[#This Row],[Teams (jobformidler)]],Table15[#All],2,FALSE)=1,1,0)","v":{"$error":"#N/A"}}]
[null,null,null,null,null,null,null,{"$f":"_xlfn.IFNA(VLOOKUP(Table2[[#This Row],[Produktionstrin]],Table8[],2,FALSE),\"\")","v":""},null,null,null,{"$f":"IF(VLOOKUP(Table2[[#This Row],[Teams (jobformidler)]],Table15[#All],2,FALSE)=1,1,0)","v":{"$error":"#N/A"}}]
[null,null,null,null,null,null,null,{"$f":"_xlfn.IFNA(VLOOKUP(Table2[[#This Row],[Produktionstrin]],Table8[],2,FALSE),\"\")","v":""},null,null,null,{"$f":"IF(VLOOKUP(Table2[[#This Row],[Teams (jobformidler)]],Table15[#All],2,FALSE)=1,1,0)","v":{"$error":"#N/A"}}]
[null,null,null,null,null,null,null,{"$f":"_xlfn.IFNA(VLOOKUP(Table2[[#This Row],[Produktionstrin]],Table8[],2,FALSE),\"\")","v":""},null,null,null,{"$f":"IF(VLOOKUP(Table2[[#This Row],[Teams (jobformidler)]],Table15[#All],2,FALSE)=1,1,0)","v":{"$error":"#N/A"}}]
[null,null,null,null,null,null,null,{"$f":"_xlfn.IFNA(VLOOKUP(Table2[[#This Row],[Produktionstrin]],Table8[],2,FALSE),\"\")","v":""},null,null,null,{"$f":"IF(VLOOKUP(Table2[[#This Row],[Teams (jobformidler)]],Table15[#All],2,FALSE)=1,1,0)","v":{"$error":"#N/A"}}]
[null,null,null,null,null,null,null,{"$f":"_xlfn.IFNA(VLOOKUP(Table2[[#This Row],[Produktionstrin]],Table8[],2,FALSE),\"\")","v":""},null,null,null,{"$f":"IF(VLOOKUP(Table2[[#This Row],[Teams (jobformidler)]],Table15[#All],2,FALSE)=1,1,0)","v":{"$error":"#N/A"}}]
[null,null,null,null,null,null,null,{"$f":"_xlfn.IFNA(VLOOKUP(Table2[[#This Row],[Produktionstrin]],Table8[],2,FALSE),\"\")","v":""},null,null,null,{"$f":"IF(VLOOKUP(Table2[[#This Row],[Teams (jobformidler)]],Table15[#All],2,FALSE)=1,1,0)","v":{"$error":"#N/A"}}]
[null,null,null,null,null,null,null,{"$f":"_xlfn.IFNA(VLOOKUP(Table2[[#This Row],[Produktionstrin]],Table8[],2,FALSE),\"\")","v":""},null,null,null,{"$f":"IF(VLOOKUP(Table2[[#This Row],[Teams (jobformidler)]],Table15[#All],2,FALSE)=1,1,0)","v":{"$error":"#N/A"}}]
[null,null,null,null,null,null,null,{"$f":"_xlfn.IFNA(VLOOKUP(Table2[[#This Row],[Produktionstrin]],Table8[],2,FALSE),\"\")","v":""},null,null,null,{"$f":"IF(VLOOKUP(Table2[[#This Row],[Teams (jobformidler)]],Table15[#All],2,FALSE)=1,1,0)","v":{"$error":"#N/A"}}]
[null,null,null,null,null,null,null,{"$f":"_xlfn.IFNA(VLOOKUP(Table2[[#This Row],[Produktionstrin]],Table8[],2,FALSE),\"\")","v":""},null,null,null,{"$f":"IF(VLOOKUP(Table2[[#This Row],[Teams (jobformidler)]],Table15[#All],2,FALSE)=1,1,0)","v":{"$error":"#N/A"}}]
[null,null,null,null,null,null,null,{"$f":"_xlfn.IFNA(VLOOKUP(Table2[[#This Row],[Produktionstrin]],Table8[],2,FALSE),\"\")","v":""},null,null,null,{"$f":"IF(VLOOKUP(Table2[[#This Row],[Teams (jobformidler)]],Table15[#All],2,FALSE)=1,1,0)","v":{"$error":"#N/A"}}]
[null,null,null,null,null,null,null,{"$f":"_xlfn.IFNA(VLOOKUP(Table2[[#This Row],[Produktionstrin]],Table8[],2,FALSE),\"\")","v":""},null,null,null,{"$f":"IF(VLOOKUP(Table2[[#This Row],[Teams (jobformidler)]],Table15[#All],2,FALSE)=1,1,0)","v":{"$error":"#N/A"}}]
[null,null,null,null,null,null,null,{"$f":"_xlfn.IFNA(VLOOKUP(Table2[[#This Row],[Produktionstrin]],Table8[],2,FALSE),\"\")","v":""},null,null,null,{"$f":"IF(VLOOKUP(Table2[[#This Row],[Teams (jobformidler)]],Table15[#All],2,FALSE)=1,1,0)","v":{"$error":"#N/A"}}]
[null,null,null,null,null,null,null,{"$f":"_xlfn.IFNA(VLOOKUP(Table2[[#This Row],[Produktionstrin]],Table8[],2,FALSE),\"\")","v":""},null,null,null,{"$f":"IF(VLOOKUP(Table2[[#This Row],[Teams (jobformidler)]],Table15[#All],2,FALSE)=1,1,0)","v":{"$error":"#N/A"}}]
[null,null,null,null,null,null,null,{"$f":"_xlfn.IFNA(VLOOKUP(Table2[[#This Row],[Produktionstrin]],Table8[],2,FALSE),\"\")","v":""},null,null,null,{"$f":"IF(VLOOKUP(Table2[[#This Row],[Teams (jobformidler)]],Table15[#All],2,FALSE)=1,1,0)","v":{"$error":"#N/A"}}]
[null,null,null,null,null,null,null,{"$f":"_xlfn.IFNA(VLOOKUP(Table2[[#This Row],[Produktionstrin]],Table8[],2,FALSE),\"\")","v":""},null,null,null,{"$f":"IF(VLOOKUP(Table2[[#This Row],[Teams (jobformidler)]],Table15[#All],2,FALSE)=1,1,0)","v":{"$error":"#N/A"}}]
[null,null,null,null,null,null,null,{"$f":"_xlfn.IFNA(VLOOKUP(Table2[[#This Row],[Produktionstrin]],Table8[],2,FALSE),\"\")","v":""},null,null,null,{"$f":"IF(VLOOKUP(Table2[[#This Row],[Teams (jobformidler)]],Table15[#All],2,FALSE)=1,1,0)","v":{"$error":"#N/A"}}]
[null,null,null,null,null,null,null,{"$f":"_xlfn.IFNA(VLOOKUP(Table2[[#This Row],[Produktionstrin]],Table8[],2,FALSE),\"\")","v":""},null,null,null,{"$f":"IF(VLOOKUP(Table2[[#This Row],[Teams (jobformidler)]],Table15[#All],2,FALSE)=1,1,0)","v":{"$error":"#N/A"}}]
[null,null,null,null,null,null,null,{"$f":"_xlfn.IFNA(VLOOKUP(Table2[[#This Row],[Produktionstrin]],Table8[],2,FALSE),\"\")","v":""},null,null,null,{"$f":"IF(VLOOKUP(Table2[[#This Row],[Teams (jobformidler)]],Table15[#All],2,FALSE)=1,1,0)","v":{"$error":"#N/A"}}]
[null,null,null,null,null,null,null,{"$f":"_xlfn.IFNA(VLOOKUP(Table2[[#This Row],[Produktionstrin]],Table8[],2,FALSE),\"\")","v":""},null,null,null,{"$f":"IF(VLOOKUP(Table2[[#This Row],[Teams (jobformidler)]],Table15[#All],2,FALSE)=1,1,0)","v":{"$error":"#N/A"}}]
[null,null,null,null,null,null,null,{"$f":"_xlfn.IFNA(VLOOKUP(Table2[[#This Row],[Produktionstrin]],Table8[],2,FALSE),\"\")","v":""},null,null,null,{"$f":"IF(VLOOKUP(Table2[[#This Row],[Teams (jobformidler)]],Table15[#All],2,FALSE)=1,1,0)","v":{"$error":"#N/A"}}]
[null,null,null,null,null,null,null,{"$f":"_xlfn.IFNA(VLOOKUP(Table2[[#This Row],[Produktionstrin]],Table8[],2,FALSE),\"\")","v":""},null,null,null,{"$f":"IF(VLOOKUP(Table2[[#This Row],[Teams (jobformidler)]],Table15[#All],2,FALSE)=1,1,0)","v":{"$error":"#N/A"}}]
[null,null,null,null,null,null,null,{"$f":"_xlfn.IFNA(VLOOKUP(Table2[[#This Row],[Produktionstrin]],Table8[],2,FALSE),\"\")","v":""},null,null,null,{"$f":"IF(VLOOKUP(Table2[[#This Row],[Teams (jobformidler)]],Table15[#All],2,FALSE)=1,1,0)","v":{"$error":"#N/A"}}]

{"sheet":"Oversigt over mål og milepæle","index":4,"n_rows":10,"n_cols":27,"rows_kept":10,"cut":false,"hidden":false,"merged":[[6,21,6,22],[6,23,6,24],[6,25,6,26],[6,9,6,10],[6,11,6,12],[6,13,6,14],[6,15,6,16],[6,17,6,18],[6,19,6,20],[4,1,4,14],[8,2,9,2],[6,3,6,4],[6,5,6,6],[6,7,6,8]]}
[]
[]
[]
[]
[null,"Her kan du angive delmål og milepæle for succes- og resultatmål"]
[]
[null,"Succes- og resultatmål",null,"Januar",null,"Februar",null,"Marts",null,"April",null,"Maj",null,"Juni",null,"Juli",null,"August",null,"September",null,"Oktober",null,"November",null,"December"]
[null,"Succesmål",null,"Forventet","Realiseret","Forventet","Realiseret","Forventet","Realiseret","Forventet","Realiseret","Forventet","Realiseret","Forventet","Realiseret","Forventet","Realiseret","Forventet","Realiseret","Forventet","Realiseret","Forventet","Realiseret","Forventet","Realiseret","Forventet","Realiseret"]
[null,"Borgere med lønnede timer, i selvforsørgelse eller uddannelse","Angiv milepæl\ni andel borgere"]
[null,"Borgere med CV og jobmål"]

{"sheet":"Statistik for jobformidlere","index":5,"n_rows":198,"n_cols":14,"rows_kept":198,"cut":false,"hidden":false,"merged":[[41,2,41,14],[20,2,20,14],[101,2,101,14],[31,11,36,12],[37,11,38,12],[22,13,22,14],[23,13,24,14],[25,13,30,14],[31,13,36,14],[37,13,38,14],[31,8,32,10],[33,8,36,10],[38,8,38,10],[37,8,37,10],[22,11,22,12],[27,2,27,5],[8,4,8,9],[24,8,24,10],[23,8,23,10],[22,8,22,10],[8,10,8,14],[9,4,10,6],[11,4,18,6],[9,7,10,9],[11,7,18,9],[11,2,18,3],[9,2,10,3],[5,2,5,5],[37,6,38,6],[37,7,38,7],[6,2,6,5],[23,6,24,6],[22,2,22,5],[23,2,23,5],[24,2,24,5],[23,7,24,7],[29,6,30,6],[31,6,32,6],[31,7,32,7],[33,6,34,6],[26,2,26,5],[28,2,28,5],[25,6,26,6],[25,7,26,7],[27,6,28,6],[27,7,28,7],[25,2,25,5],[25,11,30,12],[9,13,10,14],[11,13,18,14],[23,11,24,12],[11,10,18,12],[9,10,10,12],[28,8,28,10],[27,8,27,10],[35,6,36,6],[35,7,36,7],[38,2,38,5],[29,2,29,5],[30,2,30,5],[31,2,31,5],[32,2,32,5],[33,2,33,5],[34,2,34,5],[35,2,35,5],[36,2,36,5],[37,2,37,5],[29,7,30,7],[33,7,34,7]]}
[]
[]
[]
[]
[]
[null,null,"Hvilken jobformidler vil du se statistik for?"]
[null,null,"Ingen jobformidler"]
[]
[null,null,null,null,"Succesmål",null,null,null,null,null,"Resultatmål"]
[null,null,"Antal borgere",null,"Andel borgere med CV og jobmål",null,null,"Andel borgere med lønnede timer, i selvforsørgelse eller uddannelse",null,null,"Antal borgere fra \nresultatmålet på 15 pct. i  løntimer eller uddannelse",null,null,"Antal borgere fra resultatmålet på 20 pct. i  løntimer eller uddannelse"]
[]
[null,null,{"$f":"COUNTIFS('Oversigt over borgere'!$E$17:$E$500,'Statistik for jobformidlere'!$C$7)","v":0},null,{"$f":"Mellemregninger!$C$591","v":{"$error":"#DIV/0!"}},null,null,{"$f":"Mellemregninger!$E$591","v":{"$error":"#DIV/0!"}},null,null,{"$f":"Mellemregninger!$K$34","v":{"$error":"#DIV/0!"}},null,null,{"$f":"Mellemregninger!$K$26","v":{"$error":"#DIV/0!"}}]
[]
[]
[]
[]
[]
[]
[]
[]
[null,null,"Oversigt over produktionstrin og statuskategorier"]
[]
[null,null,"Produktionstrin",null,null,null,"Antal i produktionstrin","Andel i produktionstrin","Statuskategori",null,null,"Antal i statuskategori",null,"Andel i statuskategori"]
[null,null,"1. Job eller uddannelse",null,null,null,{"$f":"Mellemregninger!$C$371","v":0},{"$f":"Mellemregninger!$C$373","v":{"$error":"#DIV/0!"}},"1. Succes",null,null,{"$f":"Mellemregninger!$C$185","v":0},null,{"$f":"Mellemregninger!$C$187","v":{"$error":"#DIV/0!"}}]
[null,null,"Borgeren er i selvforsørget beskæftigelse eller uddannelse. Jobformidleren understøtter, at borgeren fastholdes i job eller uddannelse.  \n",null,null,null,null,null,"Borgere, der er kommet i selvforsørget beskæftigelse eller uddannelse."]
[null,null,"2. Progression i antal lønnnede timer",null,null,null,{"$f":"Mellemregninger!$D$371","v":0},{"$f":"Mellemregninger!$D$373","v":{"$error":"#DIV/0!"}},null,null,null,{"$f":"Mellemregninger!$D$185","v":0},null,{"$f":"Mellemregninger!$D$187","v":{"$error":"#DIV/0!"}}]
[null,null,"Borgeren har opnået progression i antal lønnede timer. Jobformidleren har sammen med borger og virksomhed fulgt op på arbejdsaftalen og foretaget justeringer i aftalen, for at understøtte progression i arbejdstid (antal timer). "]
[null,null,"3. Jobmatch og arbejdsaftale om lønnede timer",null,null,null,{"$f":"Mellemregninger!$E$371","v":0},{"$f":"Mellemregninger!$E$373","v":{"$error":"#DIV/0!"}},"2. I gang"]
[null,null,"Borgeren har fundet et individuelt jobmatch og er i lønnede timer evt. kombineret med virksomhedspraktik eller løntilskud. Jobformidleren har hjulpet borgeren og virksomheden med at indgå en klar aftale om ansættelsen – antal timer, opgaver, og delmål for progression i antal lønnede timer. Der er lavet en klar plan for opfølgningen under forløbet. Borgeren har en fast kontaktperson på virksomheden.\n",null,null,null,null,null,"Borgere, der er i et virksomhedsforløb og hvor der arbejdes med at sikre progression i arbejdsopgaver og lønnede timer."]
[null,null,"4. Jobmatch og arbejdsaftale om praktik",null,null,null,{"$f":"Mellemregninger!$F$371","v":0},{"$f":"Mellemregninger!$F$373","v":{"$error":"#DIV/0!"}}]
[null,null,"Borgeren har fundet et individuelt jobmatch og er i virksomhedspraktik (lønnede timer er ikke en mulighed fra start) eller løntilskud. Jobformidleren har hjulpet borgeren og virksomheden med at indgå en klar aftale om timer, opgaver, og delmål for progression under forløbet. Det fremgår klart af aftalen, hvorvidt og hvornår lønnede timer er en mulighed. Der er lavet en klar plan for opfølgningen under forløbet. Borgeren har en fast kontaktperson på virksomheden. \n"]
[null,null,"5. Kontakt til relevante virksomheder",null,null,null,{"$f":"Mellemregninger!$G$371","v":0},{"$f":"Mellemregninger!$G$373","v":{"$error":"#DIV/0!"}},"3. På spring",null,null,{"$f":"Mellemregninger!$E$185","v":0},null,{"$f":"Mellemregninger!$E$187","v":{"$error":"#DIV/0!"}}]
[null,null,"Borgeren er i personlig kontakt med relevante arbejdsgivere, fx gennem virksomhedsbesøg og dialog med virksomhedsleder (med støtte fra den personlige jobformidler)."]
[null,null,"6. Jobmål udarbejdet",null,null,null,{"$f":"Mellemregninger!$H$371","v":0},{"$f":"Mellemregninger!$H$373","v":{"$error":"#DIV/0!"}},"Borgere, der med afsæt i eget jobmål og/eller CV arbejder på at finde det rette match med en virksomhed."]
[null,null,"Borgeren har et konkret og realistisk jobmål, som er udarbejdet sammen med borgerens primære kontaktperson. "]
[null,null,"7. CV udarbejdet",null,null,null,{"$f":"Mellemregninger!$I$371","v":0},{"$f":"Mellemregninger!$I$373","v":{"$error":"#DIV/0!"}}]
[null,null,"Borgeren har et dækkende CV, som er udarbejdet sammen med borgerens primære kontaktperson."]
[null,null,"8. Personlig jobformidler",null,null,null,{"$f":"Mellemregninger!$J$371","v":0},{"$f":"Mellemregninger!$J$373","v":{"$error":"#DIV/0!"}},"4. På længere sigt",null,null,{"$f":"Mellemregninger!$F$185","v":0},null,{"$f":"Mellemregninger!$F$187","v":{"$error":"#DIV/0!"}}]
[null,null,"Borgeren har eller skal til at have en personlig jobformidler med kendskab til arbejdsmarkedet.  ",null,null,null,null,null,"Borgere, der har eller skal til at have en personlig jobformidler."]
[]
[]
[null,null,"Status på succesmål"]
[]
[null,null,"Andel af dine borgere med CV og jobmål sammenlignet med dine kollegaer og dit team samlet set"]
[]
[]
[]
[]
[]
[]
[]
[]
[]
[]
[]
[]
[]
[]
[]
[]
[]
[]
[]
[]
[]
[]
[]
[]
[]
[]
[]
[]
[]
[null,null,"Andel af dine borgere med lønnede timer, i selvforsørgelse eller uddannelse sammenlignet med dit team"]
[]
[]
[]
[]
[]
[]
[]
[]
[]
[]
[]
[]
[]
[]
[]
[]
[]
[]
[]
[]
[]
[]
[]
[]
[]
[]
[]
[null,null,"Status på statuskategorier og produktionstrin"]
[]
[null,null,"Andel af dine borgere fordelt på de fire statuskategorier"]
[]
[]
[]
[]
[]
[]
[]
[]
[]
[]
[]
[]
[]
[]
[]
[]
[]
[]
[]
[]
[]
[]
[]
[]
[]
[]
[]
[]
[]
[]
[null,null,"Andel af dine borgere fordelt på de fire statuskategorier sammenlignet med dine kollegaer og dit team samlet set"]
[]
[]
[]
[]
[]
[]
[]
[]
[]
[]
[]
[]
[]
[]
[]
[]
[]
[]
[]
[]
[]
[]
[]
[]
[]
[]
[]
[]
[]
[]
[null,null,"Andel af dine borgere fordelt på de otte produktionstrin"]
[]
[]
[]
[]
[]
[]
[]
[]
[]
[]
[]
[]
[]
[]
[]
[]
[]
[]
[]
[]
[]
[]
[]
[]
[]
[]
[]
[]
[]
[]
[]
[null,null,"Andel af dine borgere fordelt på de otte produktionstrin sammenlignet med dine kollegaer og dit team samlet set"]

{"sheet":"Mellemregning_TEAM","index":6,"n_rows":1846,"n_cols":27,"rows_kept":1846,"cut":false,"hidden":true,"merged":[[17,9,18,11]]}
[null,"Hold1",{"$f":"MATCH(B1,A:A,0)","v":152}]
[null,"Hold2",261]
[null,"Hold3",408,null,"Total"]
[null,"Hold4",597,null,"Antal borgere for at nå mål på 40 procent","Antal borgere med nuværende succesrate",null,"Antal med jobformidler","Antal uden jobformidler","Andel med jobformidler",null,"Antal borgere for at nå mål på 85%",null,null,"Antal borgere med nuværende succesrate"]
[null,"Hold5",708,null,{"$f":"'Statistik for teamledelse'!B12*0.4","v":0},{"$f":"'Statistik for teamledelse'!B12*J20","v":{"$error":"#DIV/0!"}},null,{"$f":"COUNTIFS(Table2[Teams (jobformidler)],'Statistik for teamledelse'!$B$7,Table2[Jobformidler],\"<>Ingen jobformidler\")","v":0},{"$f":"COUNTIFS(Table2[Teams (jobformidler)],'Statistik for teamledelse'!$B$7,Table2[Jobformidler],\"=Ingen jobformidler\")","v":0},{"$f":"(H5)/(SUM(H5:I5))","v":{"$error":"#DIV/0!"}},null,{"$f":"(SUM(H5:I5))*J9","v":0},null,null,{"$f":"(SUM(H5:I5))*J5","v":{"$error":"#DIV/0!"}}]
[null,"Hold6",1152]
[null,"Hold7",1334]
[null,"Hold8",1540,null,"Antal borgere fra eller til mål","Antal borgere fra/til mål",null,null,null,"Mål",null,"Antal borgere fra eller til mål",null,null,"Antal borgere fra/til mål"]
[null,"Hold9",1742,null,{"$f":"F5-E5","v":{"$error":"#DIV/0!"}},{"$f":"ROUNDUP(IF(E9<0,E9*-1,E9),0)","v":{"$error":"#DIV/0!"}},null,null,null,0.85,null,{"$f":"O5-L5","v":{"$error":"#DIV/0!"}},null,null,{"$f":"ROUNDUP(IF(L9<0,L9*-1,L9),0)","v":{"$error":"#DIV/0!"}}]
[]
[]
[]
[]
[null,"Row Labels",null,null,null,null,null,null,null,null,null,null,null,null,null,null,"Count of Produktionstrin","Column Labels"]
[null,"(blank)",null,null,null,null,null,null,null,null,null,null,null,null,null,null,"Row Labels","(blank)","Grand Total"]
[null,"Grand Total",null,null,null,null,null,null,null,null,null,null,null,null,null,null,"(blank)",{"$error":"#DIV/0!"},{"$error":"#DIV/0!"}]
[null,null,null,null,null,null,null,null,null,null,null,null,null,null,null,null,"Grand Total",{"$error":"#DIV/0!"},{"$error":"#DIV/0!"}]
[null,null,null,null,null,null,null,null,null,"Andel borgere i virksomhedsforløb mv. (virksomhedspraktik, løntilskud, job eller uddannelse)"]
[]
[null,null,null,null,null,null,null,null,null,{"$f":"((COUNTIFS('Oversigt over borgere'!$F$17:$F$500,'Statistik for teamledelse'!$B$7,'Oversigt over borgere'!$H$17:$H$500,'Statistik for teamledelse'!$J$24))+(COUNTIFS('Oversigt over borgere'!$F$17:$F$500,'Statistik for teamledelse'!$B$7,'Oversigt over borgere'!$H$17:$H$500,'Statistik for teamledelse'!$J$28)))/'Statistik for teamledelse'!$B$12","v":{"$error":"#DIV/0!"}}]
[]
[]
[]
[]
[]
[]
[]
[]
[]
[]
[]
[]
[]
[]
[null,null,null,null,null,null,null,null,null,"20 procent"]
[]
[null,null,null,null,null,null,null,null,null,"Antal borgere for at nå mål på 20 procent","Antal borgere med nuværende succesrate"]
[null,null,null,null,null,null,null,null,null,{"$f":"'Statistik for teamledelse'!B12*0.2","v":0},{"$f":"'Statistik for teamledelse'!B12*J20","v":{"$error":"#DIV/0!"}}]
[]
[]
[null,null,null,null,null,null,null,null,null,"Antal borgere fra eller til mål","Antal borgere fra/til mål"]
[null,null,null,null,null,null,null,null,null,{"$f":"K38-J38","v":{"$error":"#DIV/0!"}},{"$f":"ROUNDUP(IF(J42<0,J42*-1,J42),0)","v":{"$error":"#DIV/0!"}}]
[]
[]
[null,null,null,null,null,null,null,null,null,"15 procent"]
[]
[null,null,null,null,null,null,null,null,null,"Antal borgere for at nå mål på 20 procent","Antal borgere med nuværende succesrate"]
[null,null,null,null,null,null,null,null,null,{"$f":"'Statistik for teamledelse'!B12*0.15","v":0},{"$f":"'Statistik for teamledelse'!B12*J20","v":{"$error":"#DIV/0!"}}]
[]
[null,"Row Labels"]
[null,"(blank)",null,null,null,null,null,null,null,"Antal borgere fra eller til mål","Antal borgere fra/til mål"]
[null,"Grand Total",null,null,null,null,null,null,null,{"$f":"K48-J48","v":{"$error":"#DIV/0!"}},{"$f":"ROUNDUP(IF(J52<0,J52*-1,J52),0)","v":{"$error":"#DIV/0!"}}]
[]
[]
[]
[]
[null,null,null,null,null,null,null,null,null,null,null,null,null,null,null,null,"Count of Produktionstrin","Column Labels"]
[null,null,null,null,null,null,null,null,null,null,null,null,null,null,null,null,"Row Labels","(blank)","Grand Total"]
[null,null,null,null,null,null,null,null,null,null,null,null,null,null,null,null,"(blank)",{"$error":"#DIV/0!"},{"$error":"#DIV/0!"}]
[null,null,null,null,null,null,null,null,null,null,null,null,null,null,null,null,"Grand Total",{"$error":"#DIV/0!"},{"$error":"#DIV/0!"}]
[]
[]
[]
[]
[]
[]
[]
[]
[]
[]
[]
[]
[]
[]
[]
[]
[]
[]
[]
[]
[]
[]
[]
[]
[]
[]
[]
[]
[]
[]
[]
[]
[]
[]
[null,null,null,null,null,null,null,null,null,null,null,null,null,null,null,null,null,null,null,null,null,null,null,null,null,"Column Labels"]
[null,null,null,null,null,null,null,null,null,null,null,null,null,null,null,null,null,null,null,null,null,null,null,null,null,"(blank)","Grand Total"]
[null,null,null,null,null,null,null,null,null,null,null,null,null,null,null,null,null,null,null,null,null,null,null,null,"Count of Produktionstrin"]
[]
[null,"Row Labels"]
[null,"(blank)"]
[null,"Grand Total"]
[]
[]
[]
[]
[]
[]
[]
[]
[]
[]
[]
[]
[]
[]
[]
[]
[]
[]
[]
[]
[]
[]
[]
[]
[]
[]
[]
[]
[]
[]
[]
[]
[]
[]
[]
[]
[null,null,"1. Succes","2. I gang","3. På spring","4. På længere sigt"]
[null,{"$f":"'Statistik for teamledelse'!$B$7","v":"Team 1"},{"$f":"COUNTIFS(Table2[Statuskategori],\"=1. Succes\",Table2[Teams (jobformidler)],'Statistik for teamledelse'!$B$7)","v":0},{"$f":"COUNTIFS(Table2[Statuskategori],\"=2. I gang\",Table2[Teams (jobformidler)],'Statistik for teamledelse'!$B$7)","v":0},{"$f":"COUNTIFS(Table2[Statuskategori],\"=3. På spring\",Table2[Teams (jobformidler)],'Statistik for teamledelse'!$B$7)","v":0},{"$f":"COUNTIFS(Table2[Statuskategori],\"=4. På længere sigt\",Table2[Teams (jobformidler)],'Statistik for teamledelse'!$B$7)","v":0}]
[null,{"$f":"'Statistik for teamledelse'!$B$7","v":"Team 1"},{"$f":"C139/(SUM($C$139:$F$139))","v":{"$error":"#DIV/0!"}},{"$f":"D139/(SUM($C$139:$F$139))","v":{"$error":"#DIV/0!"}},{"$error":"#DIV/0!"},{"$error":"#DIV/0!"}]
[]
[]
[]
[]
[]
[]
[]
[]
[]
[]
[]
["Hold1","Jobformidler","1. Succes","2. I gang","3. På spring","4. På længere sigt","Total"]
[null,{"$f":"'Jobformidlere og teams'!B11","v":"Ingen jobformidler"},{"$f":"(COUNTIFS(Table2[Statuskategori],\"=1. Succes\",Table2[Jobformidler],$B153,Table2[Teams (jobformidler)],'Statistik for teamledelse'!$B$7))/(COUNTIFS(Table2[Statuskategori],\"<>\",Table2[Jobformidler],Mellemregning_TEAM!$B153,Table2[Teams (jobformidler)],'Statistik for teamledelse'!$B$7))","v":{"$error":"#DIV/0!"}},{"$f":"(COUNTIFS(Table2[Statuskategori],\"=2. I gang\",Table2[Jobformidler],$B153,Table2[Teams (jobformidler)],'Statistik for teamledelse'!$B$7)/(COUNTIFS(Table2[Statuskategori],\"<>\",Table2[Jobformidler],Mellemregning_TEAM!$B153,Table2[Teams (jobformidler)],'Statistik for teamledelse'!$B$7)))","v":{"$error":"#DIV/0!"}},{"$f":"COUNTIFS(Table2[Statuskategori],\"=3. På spring\",Table2[Jobformidler],$B153,Table2[Teams (jobformidler)],'Statistik for teamledelse'!$B$7)/(COUNTIFS(Table2[Statuskategori],\"<>\",Table2[Jobformidler],Mellemregning_TEAM!$B153,Table2[Teams (jobformidler)],'Statistik for teamledelse'!$B$7))","v":{"$error":"#DIV/0!"}},{"$f":"COUNTIFS(Table2[Statuskategori],\"=4. På længere sigt\",Table2[Jobformidler],$B153,Table2[Teams (jobformidler)],'Statistik for teamledelse'!$B$7)/(COUNTIFS(Table2[Statuskategori],\"<>\",Table2[Jobformidler],Mellemregning_TEAM!$B153,Table2[Teams (jobformidler)],'Statistik for teamledelse'!$B$7))","v":{"$error":"#DIV/0!"}},{"$f":"SUM(C153:F153)","v":{"$error":"#DIV/0!"}}]
[null,{"$f":"'Statistik for teamledelse'!$B$7","v":"Team 1"},{"$f":"(COUNTIFS(Table2[Statuskategori],\"=1. Succes\",Table2[Teams (jobformidler)],$B154,Table2[Teams (jobformidler)],'Statistik for teamledelse'!$B$7))/(COUNTIFS(Table2[Statuskategori],\"<>\",Table2[Teams (jobformidler)],Mellemregning_TEAM!$B154))","v":{"$error":"#DIV/0!"}},{"$f":"COUNTIFS(Table2[Statuskategori],\"=2. I gang\",Table2[Teams (jobformidler)],$B154,Table2[Teams (jobformidler)],'Statistik for teamledelse'!$B$7)/(COUNTIFS(Table2[Statuskategori],\"<>\",Table2[Teams (jobformidler)],Mellemregning_TEAM!$B154))","v":{"$error":"#DIV/0!"}},{"$f":"COUNTIFS(Table2[Statuskategori],\"=3. På spring\",Table2[Teams (jobformidler)],$B154,Table2[Teams (jobformidler)],'Statistik for teamledelse'!$B$7)/(COUNTIFS(Table2[Statuskategori],\"<>\",Table2[Teams (jobformidler)],Mellemregning_TEAM!$B154))","v":{"$error":"#DIV/0!"}},{"$f":"COUNTIFS(Table2[Statuskategori],\"=4. På længere sigt\",Table2[Teams (jobformidler)],$B154,Table2[Teams (jobformidler)],'Statistik for teamledelse'!$B$7)/(COUNTIFS(Table2[Statuskategori],\"<>\",Table2[Teams (jobformidler)],Mellemregning_TEAM!$B154))","v":{"$error":"#DIV/0!"}},{"$f":"SUM(C154:F154)","v":{"$error":"#DIV/0!"}}]
[]
[]
[]
[]
[]
[]
[]
[]
[]
[]
[]
[]
[]
[]
[]
[]
[]
[]
[]
[]
[]
[]
[]
[]
[]
[]
[]
[]
[]
[]
[]
[]
[]
[]
[]
[]
[]
[]
[]
[]
[]
[]
[]
[]
[]
[]
[]
[]
[null,"Row Labels","1. Succes ","2. I gang ","3. På spring ","4. På længere sigt ","Sum of Total"]
[null,"Grand Total"]
[]
[]
[]
[]
[]
[]
[]
[]
[]
[]
[]
[]
[]
[]
[]
[]
[]
[]
[]
[]
[]
[]
[]
[]
[]
[]
[]
[]
[]
[]
[]
[]
[]
[]
[]
[]
[]
[]
[]
[]
[]
[]
[]
[]
[]
[]
[]
[]
[]
[]
[]
[]
[]
[]
[]
[]
["Hold2","Teams","1. Succes","2. I gang","3. På spring","4. På længere sigt"]
[null,{"$f":"'Jobformidlere og teams'!D11","v":"Team 1"},{"$f":"(COUNTIFS(Table2[Statuskategori],Table9[[#Headers],[1. Succes]],Table2[Teams (jobformidler)],$B262))/(COUNTIFS(Table2[Statuskategori],\"<>\",Table2[Teams (jobformidler)],Mellemregning_TEAM!$B262))","v":{"$error":"#DIV/0!"}},{"$f":"(COUNTIFS(Table2[Statuskategori],Table9[[#Headers],[2. I gang]],Table2[Teams (jobformidler)],$B262))/(COUNTIFS(Table2[Statuskategori],\"<>\",Table2[Teams (jobformidler)],Mellemregning_TEAM!$B262))","v":{"$error":"#DIV/0!"}},{"$f":"(COUNTIFS(Table2[Statuskategori],Table9[[#Headers],[3. På spring]],Table2[Teams (jobformidler)],$B262))/(COUNTIFS(Table2[Statuskategori],\"<>\",Table2[Teams (jobformidler)],Mellemregning_TEAM!$B262))","v":{"$error":"#DIV/0!"}},{"$f":"(COUNTIFS(Table2[Statuskategori],Table9[[#Headers],[4. På længere sigt]],Table2[Teams (jobformidler)],$B262))/(COUNTIFS(Table2[Statuskategori],\"<>\",Table2[Teams (jobformidler)],Mellemregning_TEAM!$B262))","v":{"$error":"#DIV/0!"}}]
[null,"Alle teams",{"$f":"(COUNTIF(Table2[Statuskategori],Table9[[#Headers],[1. Succes]]))/(COUNTIF(Table2[Statuskategori],\"<>\")-COUNTIFS(Table2[Statuskategori],\"\"))","v":{"$error":"#DIV/0!"}},{"$f":"(COUNTIF(Table2[Statuskategori],Table9[[#Headers],[2. I gang]]))/(COUNTIF(Table2[Statuskategori],\"<>\")-COUNTIFS(Table2[Statuskategori],\"\"))","v":{"$error":"#DIV/0!"}},{"$f":"(COUNTIF(Table2[Statuskategori],Table9[[#Headers],[3. På spring]]))/(COUNTIF(Table2[Statuskategori],\"<>\")-COUNTIFS(Table2[Statuskategori],\"\"))","v":{"$error":"#DIV/0!"}},{"$f":"(COUNTIF(Table2[Statuskategori],Table9[[#Headers],[4. På længere sigt]]))/(COUNTIF(Table2[Statuskategori],\"<>\")-COUNTIFS(Table2[Statuskategori],\"\"))","v":{"$error":"#DIV/0!"}}]
[]
[]
[]
[]
[]
[]
[]
[]
[]
[]
[]
[]
[]
[]
[]
[]
[]
[]
[]
[]
[]
[]
[]
[]
[]
[]
[]
[]
[]
[]
[]
[]
[]
[]
[]
[]
[]
[]
[]
[]
[]
[]
[]
[]
[]
[]
[]
[]
[]
[]
[]
[]
[]
[]
[]
[]
[]
[]
[]
[null,"Row Labels","1. Succes  ","2. I gang  ","3. På spring  ","4. På længere sigt  "]
[null,"Alle teams",{"$error":"#DIV/0!"},{"$error":"#DIV/0!"},{"$error":"#DIV/0!"},{"$error":"#DIV/0!"}]
[null,"Team 1",{"$error":"#DIV/0!"},{"$error":"#DIV/0!"},{"$error":"#DIV/0!"},{"$error":"#DIV/0!"}]
[null,"Grand Total",{"$error":"#DIV/0!"},{"$error":"#DIV/0!"},{"$error":"#DIV/0!"},{"$error":"#DIV/0!"}]
[]
[]
[]
[]
[]
[]
[]
[]
[]
[]
[]
[]
[]
[]
[]
[]
[]
[]
[]
[]
[]
[]
[]
[]
[]
[]
[]
[]
[]
[]
[]
[]
[]
[]
[]
[]
[]
[]
[]
[]
[]
[]
[]
[]
[]
[]
[]
[]
[]
[]
[]
[]
[]
[]
[]
[]
[null,null,"1. Job eller uddannelse","2. Progression i antal ordinære timer","3. Jobmatch og arbejdsaftale om ordinære timer","4. Jobmatch og arbejdsaftale om praktik","5. Kontakt til relevant virksomhed","6. Jobmål udarbejdet","7. CV udarbejdet","8. Personlig jobformidler"]
[null,{"$f":"'Statistik for teamledelse'!$B$7","v":"Team 1"},{"$f":"COUNTIFS(Table2[Produktionstrin],$C$383,Table2[Teams (jobformidler)],'Statistik for teamledelse'!$B$7)","v":0},{"$f":"COUNTIFS(Table2[Produktionstrin],$D$383,Table2[Teams (jobformidler)],'Statistik for teamledelse'!$B$7)","v":0},{"$f":"COUNTIFS(Table2[Produktionstrin],$E$383,Table2[Teams (jobformidler)],'Statistik for teamledelse'!$B$7)","v":0},{"$f":"COUNTIFS(Table2[Produktionstrin],$F$383,Table2[Teams (jobformidler)],'Statistik for teamledelse'!$B$7)","v":0},{"$f":"COUNTIFS(Table2[Produktionstrin],$G$383,Table2[Teams (jobformidler)],'Statistik for teamledelse'!$B$7)","v":0},{"$f":"COUNTIFS(Table2[Produktionstrin],$H$383,Table2[Teams (jobformidler)],'Statistik for teamledelse'!$B$7)","v":0},{"$f":"COUNTIFS(Table2[Produktionstrin],$I$383,Table2[Teams (jobformidler)],'Statistik for teamledelse'!$B$7)","v":0},{"$f":"COUNTIFS(Table2[Produktionstrin],$J$383,Table2[Teams (jobformidler)],'Statistik for teamledelse'!$B$7)","v":0}]
[null,{"$f":"'Statistik for teamledelse'!$B$7","v":"Team 1"},{"$f":"C384/(SUM($C$384:$J$384))","v":{"$error":"#DIV/0!"}},{"$f":"D384/(SUM($C$384:$J$384))","v":{"$error":"#DIV/0!"}},{"$f":"E384/(SUM($C$384:$J$384))","v":{"$error":"#DIV/0!"}},{"$f":"F384/(SUM($C$384:$J$384))","v":{"$error":"#DIV/0!"}},{"$f":"G384/(SUM($C$384:$J$384))","v":{"$error":"#DIV/0!"}},{"$error":"#DIV/0!"},{"$error":"#DIV/0!"},{"$f":"J384/(SUM($C$384:$J$384))","v":{"$error":"#DIV/0!"}}]
[]
[]
[]
[]
[]
[]
[]
[]
[]
[]
[]
[]
[]
[]
[]
[]
[]
[]
[]
[]
[]
[]
["Hold3","Jobformidlere","1. Job eller uddannelse","2. Progression i antal ordinære timer","3. Jobmatch og arbejdsaftale om ordinære timer","4. Jobmatch og arbejdsaftale om praktik","5. Kontakt til relevant virksomhed","6. Jobmål udarbejdet","7. CV udarbejdet","8. Personlig jobformidler","Total"]
[null,{"$f":"'Jobformidlere og teams'!B11","v":"Ingen jobformidler"},{"$f":"(COUNTIFS(Table2[Produktionstrin],Mellemregning_TEAM!$C$408,Table2[Jobformidler],Mellemregning_TEAM!$B409,Table2[Teams (jobformidler)],'Statistik for teamledelse'!$B$7))/(COUNTIFS(Table2[Produktionstrin],\"<>\",Table2[Jobformidler],Mellemregning_TEAM!$B409,Table2[Teams (jobformidler)],'Statistik for teamledelse'!$B$7))","v":{"$error":"#DIV/0!"}},{"$f":"(COUNTIFS(Table2[Produktionstrin],Mellemregning_TEAM!$D$408,Table2[Jobformidler],Mellemregning_TEAM!$B409,Table2[Teams (jobformidler)],'Statistik for teamledelse'!$B$7))/(COUNTIFS(Table2[Produktionstrin],\"<>\",Table2[Jobformidler],Mellemregning_TEAM!$B409,Table2[Teams (jobformidler)],'Statistik for teamledelse'!$B$7))","v":{"$error":"#DIV/0!"}},{"$f":"(COUNTIFS(Table2[Produktionstrin],Mellemregning_TEAM!$E$408,Table2[Jobformidler],Mellemregning_TEAM!$B409,Table2[Teams (jobformidler)],'Statistik for teamledelse'!$B$7))/(COUNTIFS(Table2[Produktionstrin],\"<>\",Table2[Jobformidler],Mellemregning_TEAM!$B409,Table2[Teams (jobformidler)],'Statistik for teamledelse'!$B$7))","v":{"$error":"#DIV/0!"}},{"$f":"(COUNTIFS(Table2[Produktionstrin],Mellemregning_TEAM!$F$408,Table2[Jobformidler],Mellemregning_TEAM!$B409,Table2[Teams (jobformidler)],'Statistik for teamledelse'!$B$7))/(COUNTIFS(Table2[Produktionstrin],\"<>\",Table2[Jobformidler],Mellemregning_TEAM!$B409,Table2[Teams (jobformidler)],'Statistik for teamledelse'!$B$7))","v":{"$error":"#DIV/0!"}},{"$f":"(COUNTIFS(Table2[Produktionstrin],Mellemregning_TEAM!$G$408,Table2[Jobformidler],Mellemregning_TEAM!$B409,Table2[Teams (jobformidler)],'Statistik for teamledelse'!$B$7))/(COUNTIFS(Table2[Produktionstrin],\"<>\",Table2[Jobformidler],Mellemregning_TEAM!$B409,Table2[Teams (jobformidler)],'Statistik for teamledelse'!$B$7))","v":{"$error":"#DIV/0!"}},{"$f":"(COUNTIFS(Table2[Produktionstrin],Mellemregning_TEAM!$H$408,Table2[Jobformidler],Mellemregning_TEAM!$B409,Table2[Teams (jobformidler)],'Statistik for teamledelse'!$B$7))/(COUNTIFS(Table2[Produktionstrin],\"<>\",Table2[Jobformidler],Mellemregning_TEAM!$B409,Table2[Teams (jobformidler)],'Statistik for teamledelse'!$B$7))","v":{"$error":"#DIV/0!"}},{"$f":"(COUNTIFS(Table2[Produktionstrin],Mellemregning_TEAM!$I$408,Table2[Jobformidler],Mellemregning_TEAM!$B409,Table2[Teams (jobformidler)],'Statistik for teamledelse'!$B$7))/(COUNTIFS(Table2[Produktionstrin],\"<>\",Table2[Jobformidler],Mellemregning_TEAM!$B409,Table2[Teams (jobformidler)],'Statistik for teamledelse'!$B$7))","v":{"$error":"#DIV/0!"}},{"$f":"(COUNTIFS(Table2[Produktionstrin],Mellemregning_TEAM!$J$408,Table2[Jobformidler],Mellemregning_TEAM!$B409,Table2[Teams (jobformidler)],'Statistik for teamledelse'!$B$7))/(COUNTIFS(Table2[Produktionstrin],\"<>\",Table2[Jobformidler],Mellemregning_TEAM!$B409,Table2[Teams (jobformidler)],'Statistik for teamledelse'!$B$7))","v":{"$error":"#DIV/0!"}},{"$f":"SUM(Table10[[#This Row],[1. Job eller uddannelse]:[8. Personlig jobformidler]])","v":{"$error":"#DIV/0!"}}]
[null,{"$f":"B385","v":"Team 1"},{"$f":"(COUNTIFS(Table2[Produktionstrin],$C$408,Table2[Teams (jobformidler)],'Statistik for teamledelse'!$B$7))/(COUNTIFS(Table2[Produktionstrin],\"<>\",Table2[Teams (jobformidler)],'Statistik for teamledelse'!$B$7))","v":{"$error":"#DIV/0!"}},{"$f":"(COUNTIFS(Table2[Produktionstrin],$D$408,Table2[Teams (jobformidler)],'Statistik for teamledelse'!$B$7))/(COUNTIFS(Table2[Produktionstrin],\"<>\",Table2[Teams (jobformidler)],'Statistik for teamledelse'!$B$7))","v":{"$error":"#DIV/0!"}},{"$f":"(COUNTIFS(Table2[Produktionstrin],$E$408,Table2[Teams (jobformidler)],'Statistik for teamledelse'!$B$7))/(COUNTIFS(Table2[Produktionstrin],\"<>\",Table2[Teams (jobformidler)],'Statistik for teamledelse'!$B$7))","v":{"$error":"#DIV/0!"}},{"$f":"(COUNTIFS(Table2[Produktionstrin],$F$408,Table2[Teams (jobformidler)],'Statistik for teamledelse'!$B$7))/(COUNTIFS(Table2[Produktionstrin],\"<>\",Table2[Teams (jobformidler)],'Statistik for teamledelse'!$B$7))","v":{"$error":"#DIV/0!"}},{"$f":"(COUNTIFS(Table2[Produktionstrin],$G$408,Table2[Teams (jobformidler)],'Statistik for teamledelse'!$B$7))/(COUNTIFS(Table2[Produktionstrin],\"<>\",Table2[Teams (jobformidler)],'Statistik for teamledelse'!$B$7))","v":{"$error":"#DIV/0!"}},{"$f":"(COUNTIFS(Table2[Produktionstrin],$H$408,Table2[Teams (jobformidler)],'Statistik for teamledelse'!$B$7))/(COUNTIFS(Table2[Produktionstrin],\"<>\",Table2[Teams (jobformidler)],'Statistik for teamledelse'!$B$7))","v":{"$error":"#DIV/0!"}},{"$f":"(COUNTIFS(Table2[Produktionstrin],$I$408,Table2[Teams (jobformidler)],'Statistik for teamledelse'!$B$7))/(COUNTIFS(Table2[Produktionstrin],\"<>\",Table2[Teams (jobformidler)],'Statistik for teamledelse'!$B$7))","v":{"$error":"#DIV/0!"}},{"$f":"(COUNTIFS(Table2[Produktionstrin],$J$408,Table2[Teams (jobformidler)],'Statistik for teamledelse'!$B$7))/(COUNTIFS(Table2[Produktionstrin],\"<>\",Table2[Teams (jobformidler)],'Statistik for teamledelse'!$B$7))","v":{"$error":"#DIV/0!"}},{"$f":"SUM(Table10[[#This Row],[1. Job eller uddannelse]:[8. Personlig jobformidler]])","v":{"$error":"#DIV/0!"}}]
[]
[]
[]
[]
[]
[]
[]
[]
[]
[]
[]
[]
[]
[]
[]
[]
[]
[]
[]
[]
[]
[]
[]
[]
[]
[]
[]
[]
[]
[]
[]
[]
[]
[]
[]
[]
[]
[]
[]
[]
[]
[]
[]
[]
[]
[]
[]
[]
[]
[]
[]
[]
[]
[]
[]
[]
[]
[]
[]
[]
[]
[]
[]
[null,"Row Labels"," 1. Job eller uddannelse","2. Progression i antal ordinære timer ","3. Jobmatch og arbejdsaftale om ordinære timer "," 4. Jobmatch og arbejdsaftale om praktik","5. Kontakt til relevant virksomhed ","6. Jobmål udarbejdet ","7. CV udarbejdet ","8. Personlig jobformidler ","Total "]
[null,"Grand Total"]
[]
[]
[]
[]
[]
[]
[]
[]
[]
[]
[]
[]
[]
[]
[]
[]
[]
[]
[]
[]
[]
[]
[]
[]
[]
[]
[]
[]
[]
[]
[]
[]
[]
[]
[]
[]
[]
[]
[]
[]
[]
[]
[]
[]
[]
[]
[]
[]
[]
[]
[]
[]
[]
[]
[]
[]
[]
[]
[]
[]
[]
[]
[]
[]
[]
[]
[]
[]
[]
[]
[]
[]
[]
[]
[]
[]
[]
[]
[]
[]
[]
[]
[]
[]
[]
[]
[]
[]
[]
[]
[]
[]
[]
[]
[]
[]
[]
[]
[]
[]
[]
[]
[]
[]
[]
[]
[]
[]
[]
[]
[]
[]
[]
[]
[]
[]
[]
[]
[]
[]
[]
["Hold4","Teams","1. Job eller uddannelse","2. Progression i antal ordinære timer","3. Jobmatch og arbejdsaftale om ordinære timer","4. Jobmatch og arbejdsaftale om praktik","5. Kontakt til relevant virksomhed","6. Jobmål udarbejdet","7. CV udarbejdet","8. Personlig jobformidler"]
[null,{"$f":"'Jobformidlere og teams'!D11","v":"Team 1"},{"$f":"(COUNTIFS(Table2[Produktionstrin],$C$597,Table2[Teams (jobformidler)],$B598))/(COUNTIFS(Table2[Produktionstrin],\"<>\",Table2[Teams (jobformidler)],$B598))","v":{"$error":"#DIV/0!"}},{"$f":"(COUNTIFS(Table2[Produktionstrin],$D$597,Table2[Teams (jobformidler)],$B598))/(COUNTIFS(Table2[Produktionstrin],\"<>\",Table2[Teams (jobformidler)],$B598))","v":{"$error":"#DIV/0!"}},{"$f":"(COUNTIFS(Table2[Produktionstrin],$E$597,Table2[Teams (jobformidler)],$B598))/(COUNTIFS(Table2[Produktionstrin],\"<>\",Table2[Teams (jobformidler)],$B598))","v":{"$error":"#DIV/0!"}},{"$f":"(COUNTIFS(Table2[Produktionstrin],$F$597,Table2[Teams (jobformidler)],$B598))/(COUNTIFS(Table2[Produktionstrin],\"<>\",Table2[Teams (jobformidler)],$B598))","v":{"$error":"#DIV/0!"}},{"$f":"(COUNTIFS(Table2[Produktionstrin],$G$597,Table2[Teams (jobformidler)],$B598))/(COUNTIFS(Table2[Produktionstrin],\"<>\",Table2[Teams (jobformidler)],$B598))","v":{"$error":"#DIV/0!"}},{"$f":"(COUNTIFS(Table2[Produktionstrin],$H$597,Table2[Teams (jobformidler)],$B598))/(COUNTIFS(Table2[Produktionstrin],\"<>\",Table2[Teams (jobformidler)],$B598))","v":{"$error":"#DIV/0!"}},{"$f":"(COUNTIFS(Table2[Produktionstrin],$I$597,Table2[Teams (jobformidler)],$B598))/(COUNTIFS(Table2[Produktionstrin],\"<>\",Table2[Teams (jobformidler)],$B598))","v":{"$error":"#DIV/0!"}},{"$f":"(COUNTIFS(Table2[Produktionstrin],$J$597,Table2[Teams (jobformidler)],$B598))/(COUNTIFS(Table2[Produktionstrin],\"<>\",Table2[Teams (jobformidler)],$B598))","v":{"$error":"#DIV/0!"}}]
[null,"Alle teams",{"$f":"(COUNTIF(Table2[Produktionstrin],$C$597))/(COUNTIF(Table2[Produktionstrin],\"<>\"))","v":{"$error":"#DIV/0!"}},{"$f":"(COUNTIF(Table2[Produktionstrin],$D$597))/(COUNTIF(Table2[Produktionstrin],\"<>\"))","v":{"$error":"#DIV/0!"}},{"$f":"(COUNTIF(Table2[Produktionstrin],$E$597))/(COUNTIF(Table2[Produktionstrin],\"<>\"))","v":{"$error":"#DIV/0!"}},{"$f":"(COUNTIF(Table2[Produktionstrin],$F$597))/(COUNTIF(Table2[Produktionstrin],\"<>\"))","v":{"$error":"#DIV/0!"}},{"$f":"(COUNTIF(Table2[Produktionstrin],$G$597))/(COUNTIF(Table2[Produktionstrin],\"<>\"))","v":{"$error":"#DIV/0!"}},{"$f":"(COUNTIF(Table2[Produktionstrin],$H$597))/(COUNTIF(Table2[Produktionstrin],\"<>\"))","v":{"$error":"#DIV/0!"}},{"$f":"(COUNTIF(Table2[Produktionstrin],$I$597))/(COUNTIF(Table2[Produktionstrin],\"<>\"))","v":{"$error":"#DIV/0!"}},{"$f":"(COUNTIF(Table2[Produktionstrin],$J$597))/(COUNTIF(Table2[Produktionstrin],\"<>\"))","v":{"$error":"#DIV/0!"}}]
[]
[]
[]
[]
[]
[]
[]
[]
[]
[]
[]
[]
[]
[]
[]
[]
[]
[]
[]
[]
[]
[]
[]
[]
[]
[]
[]
[]
[]
[]
[]
[]
[]
[]
[]
[]
[]
[]
[]
[]
[]
[]
[]
[]
[]
[]
[]
[]
[]
[]
[]
[]
[null,"Row Labels"," 1. Job eller uddannelse","2. Progression i antal ordinære timer  ","3. Jobmatch og arbejdsaftale om ordinære timer  "," 4. Jobmatch og arbejdsaftale om praktik","5. Kontakt til relevant virksomhed  ","6. Jobmål udarbejdet  ","7. CV udarbejdet  ","8. Personlig jobformidler  "]
[null,"Alle teams",{"$error":"#DIV/0!"},{"$error":"#DIV/0!"},{"$error":"#DIV/0!"},{"$error":"#DIV/0!"},{"$error":"#DIV/0!"},{"$error":"#DIV/0!"},{"$error":"#DIV/0!"},{"$error":"#DIV/0!"}]
[null,"Team 1",{"$error":"#DIV/0!"},{"$error":"#DIV/0!"},{"$error":"#DIV/0!"},{"$error":"#DIV/0!"},{"$error":"#DIV/0!"},{"$error":"#DIV/0!"},{"$error":"#DIV/0!"},{"$error":"#DIV/0!"}]
[null,"Grand Total",{"$error":"#DIV/0!"},{"$error":"#DIV/0!"},{"$error":"#DIV/0!"},{"$error":"#DIV/0!"},{"$error":"#DIV/0!"},{"$error":"#DIV/0!"},{"$error":"#DIV/0!"},{"$error":"#DIV/0!"}]
[]
[]
[]
[]
[]
[]
[]
[]
[]
[]
[]
[]
[]
[]
[]
[]
[]
[]
[]
[]
[]
[]
[]
[]
[]
[]
[]
[]
[]
[]
[]
[]
[]
[]
[]
[]
[]
[]
[]
[]
[]
[]
[]
[]
[]
[]
[]
[]
[]
[]
[]
[]
["Hold5","Teams","Antal med jobformidler","Antal borgere i alt","Andel med jobformidler"]
[null,{"$f":"'Jobformidlere og teams'!D11","v":"Team 1"},{"$f":"COUNTIFS(Table2[Teams (jobformidler)],$B709,Table2[Jobformidler],\"<>Ingen jobformidler\")","v":0},{"$f":"COUNTIFS(Table2[Teams (jobformidler)],$B709)","v":0},{"$f":"C709/D709","v":{"$error":"#DIV/0!"}}]
[null,"Alle teams",{"$f":"SUM(C709:C709)","v":0},{"$f":"SUM(D709:D709)","v":0},{"$f":"C710/D710","v":{"$error":"#DIV/0!"}}]
[]
[]
[]
[]
[]
[]
[]
[]
[]
[]
[]
[]
[]
[]
[]
[]
[]
[]
[]
[]
[]
[]
[]
[]
[]
[]
[]
[]
[]
[]
[]
[]
[]
[]
[]
[]
[]
[]
[]
[]
[]
[]
[]
[]
[]
[]
[]
[]
[]
[]
[]
[]
[]
[]
[]
[null,"Row Labels","Andel med jobformidler "]
[null,"Alle teams",{"$error":"#DIV/0!"}]
[null,"Team 1",{"$error":"#DIV/0!"}]
[null,"Grand Total",{"$error":"#DIV/0!"}]
[]
[]
[]
[]
[]
[]
[]
[]
[]
[]
[]
[]
[]
[]
[]
[]
[]
[]
[]
[]
[]
[]
[]
[]
[]
[]
[]
[]
[]
[]
[]
[]
[]
[]
[]
[]
[]
[]
[]
[]
[]
[]
[]
[]
[]
[]
[]
[]
[]
[]
[]
[]
[]
[]
[]
[]
[]
[]
[]
[]
[]
[]
[]
[]
[]
[]
[]
[]
[]
[]
[]
[]
[]
[]
[]
[]
[]
[]
[]
[]
[]
[]
[]
[]
[]
[]
[]
[]
[]
[]
[]
[]
[]
[]
[]
[]
[]
[]
[]
[]
[]
[null,null,"Andel med CV og jobmål","Andel med Jobmål","Andel med ordinære timer, i selvforsørgelse eller uddannelse","Andel i virksomhedsforløb mv."]
[null,{"$f":"'Statistik for teamledelse'!B7:E7","v":"Team 1"},{"$f":"COUNTIFS(Table2[Har borger CV og jobmål?],\"Ja\",Table2[Teams (jobformidler)],$B$872)/COUNTIFS(Table2[Har borger CV og jobmål?],\"<>\",Table2[Teams (jobformidler)],$B$872)","v":{"$error":"#DIV/0!"}},{"$f":"COUNTIFS(#REF!,\"Ja\",Table2[Teams (jobformidler)],$B$872)/COUNTIFS(#REF!,\"<>\",Table2[Teams (jobformidler)],$B$872)","v":{"$error":"#REF!"}},{"$f":"SUM($C$385:$E$385)","v":{"$error":"#DIV/0!"}},{"$f":"SUM($C$385:$F$385)","v":{"$error":"#DIV/0!"}}]
[null,"Alle teams",{"$f":"COUNTIFS(Table2[Har borger CV og jobmål?],\"Ja\",Table2[Teams (jobformidler)],\"<>\")/COUNTIFS(Table2[Har borger CV og jobmål?],\"<>\",Table2[Teams (jobformidler)],\"<>\")","v":{"$error":"#DIV/0!"}},{"$f":"COUNTIFS(#REF!,\"Ja\",Table2[Teams (jobformidler)],\"<>\")/COUNTIFS(#REF!,\"<>\",Table2[Teams (jobformidler)],\"<>\")","v":{"$error":"#REF!"}},{"$f":"SUM(Mellemregninger!$Y$4:$Y$6)","v":{"$error":"#DIV/0!"}},{"$f":"SUM(Mellemregninger!$Y$4:$Y$7)","v":{"$error":"#DIV/0!"}}]
[]
[]
[]
[]
[]
[]
[]
[]
[]
[]
[]
[]
[]
[]
[]
[]
[]
[]
[]
[]
[]
[]
[]
[]
[]
[]
[]
[]
[]
[]
[]
[]
[]
[]
[]
[]
[]
[]
[]
[]
[]
[]
[]
[]
[]
[]
[]
[]
[]
[]
[]
[]
[]
[]
[]
[]
[]
[]
[]
[]
[]
[]
[]
[]
[]
[]
[]
[]
[]
[]
[]
[]
[]
[]
[]
[]
[]
[]
[null,"Row Labels"," 1. Job eller uddannelse"," 2. Progression i antal ordinære timer"," 3. Jobmatch og arbejdsaftale om ordinære timer"]
[null,"Alle teams",{"$error":"#DIV/0!"},{"$error":"#DIV/0!"},{"$error":"#DIV/0!"}]
[null,"Team 1",{"$error":"#DIV/0!"},{"$error":"#DIV/0!"},{"$error":"#DIV/0!"}]
[null,"Grand Total",{"$error":"#DIV/0!"},{"$error":"#DIV/0!"},{"$error":"#DIV/0!"}]
[]
[]
[]
[]
[]
[]
[]
[]
[]
[]
[]
[]
[]
[]
[]
[]
[]
[]
[]
[]
[]
[]
[]
[]
[]
[]
[]
[]
[]
[]
[]
[]
[]
[]
[]
[]
[]
[]
[]
[]
[]
[]
[]
[]
[]
[]
[]
[]
[]
[]
[]
[]
[]
[]
[]
[]
[]
[]
[]
[]
[]
[]
[]
[]
[]
[]
[]
[]
[]
[]
[]
[]
[]
[]
[]
[]
[]
[]
[]
[]
[]
[]
[]
[]
[]
[]
[]
[]
[]
[]
[]
[]
[null,"Row Labels"," 1. Job eller uddannelse","  2. Progression i antal ordinære timer","  3. Jobmatch og arbejdsaftale om ordinære timer","  4. Jobmatch og arbejdsaftale om praktik"]
[null,"Alle teams",{"$error":"#DIV/0!"},{"$error":"#DIV/0!"},{"$error":"#DIV/0!"},{"$error":"#DIV/0!"}]
[null,"Team 1",{"$error":"#DIV/0!"},{"$error":"#DIV/0!"},{"$error":"#DIV/0!"},{"$error":"#DIV/0!"}]
[null,"Grand Total",{"$error":"#DIV/0!"},{"$error":"#DIV/0!"},{"$error":"#DIV/0!"},{"$error":"#DIV/0!"}]
[]
[]
[]
[]
[]
[]
[]
[]
[]
[]
[]
[]
[]
[]
[]
[]
[]
[]
[]
[]
[]
[]
[]
[]
[]
[]
[]
[]
[]
[]
[]
[]
[]
[]
[]
[]
[]
[]
[]
[]
[]
[]
[]
[]
[]
[]
[]
[]
[]
[]
[]
[]
[]
[]
[]
[]
[]
[]
[]
[]
[]
[]
[]
[]
[]
[]
[]
[]
[]
[]
[]
[]
[]
[]
[]
[]
[]
[]
[]
[]
[]
[]
[]
[]
[]
[]
[]
[]
[]
[]
[]
[]
[]
[]
[]
[]
[]
[]
[]
[]
["Hold6","Jobformidler","Har borger CV og jobmål?"]
[null,{"$f":"'Jobformidlere og teams'!B11","v":"Ingen jobformidler"},{"$f":"(COUNTIFS(Table2[Har borger CV og jobmål?],\"Ja\",Table2[Jobformidler],$B1153,Table2[Teams (jobformidler)],$B$1154))/(COUNTIFS(Table2[Har borger CV og jobmål?],\"<>\",Table2[Jobformidler],$B1153,Table2[Teams (jobformidler)],$B$1154))","v":{"$error":"#DIV/0!"}}]
[null,{"$f":"'Statistik for teamledelse'!$B$7","v":"Team 1"},{"$f":"(COUNTIFS(Table2[Har borger CV og jobmål?],\"Ja\",Table2[Teams (jobformidler)],$B$1154))/(COUNTIFS(Table2[Har borger CV og jobmål?],\"<>\",Table2[Teams (jobformidler)],$B$1154))","v":{"$error":"#DIV/0!"}}]
[]
[]
[]
[]
[]
[]
[]
[]
[]
[]
[]
[]
[]
[]
[]
[]
[]
[]
[]
[]
[]
[]
[]
[]
[]
[]
[]
[]
[]
[]
[]
[]
[]
[]
[]
[]
[]
[]
[]
[]
[]
[]
[]
[]
[]
[]
[]
[]
[]
[]
[]
[]
[]
[]
[]
[]
[]
[]
[]
[]
[]
[]
[]
[]
[]
[]
[]
[]
[]
[]
[]
[]
[]
[]
[]
[]
[]
[]
[]
[]
[]
[]
[]
[]
[]
[]
[]
[]
[]
[]
[]
[null,"Row Labels"," Har borger CV og jobmål?"]
[null,"Grand Total"]
[]
[]
[]
[]
[]
[]
[]
[]
[]
[]
[]
[]
[]
[]
[]
[]
[]
[]
[]
[]
[]
[]
[]
[]
[]
[]
[]
[]
[]
[]
[]
[]
[]
[]
[]
[]
[]
[]
[]
[]
[]
[]
[]
[]
[]
[]
[]
[]
[]
[]
[]
[]
[]
[]
[]
[]
[]
[]
[]
[]
[]
[]
[]
[]
[]
[]
[]
[]
[]
[]
[]
[]
[]
[]
[]
[]
[]
[]
[]
[]
[]
[]
[]
[]
[]
[]
["Hold7","Team","Har borger CV og jobmål?"]
[null,{"$f":"'Jobformidlere og teams'!D11","v":"Team 1"},{"$f":"(COUNTIFS(Table2[Har borger CV og jobmål?],\"Ja\",Table2[Teams (jobformidler)],$B1335))/(COUNTIFS(Table2[Har borger CV og jobmål?],\"<>\",Table2[Teams (jobformidler)],$B1335))","v":{"$error":"#DIV/0!"}}]
[null,"Alle teams",{"$f":"(COUNTIFS(Table2[Har borger CV og jobmål?],\"Ja\",Table2[Teams (jobformidler)],\"<>\"))/(COUNTIFS(Table2[Har borger CV og jobmål?],\"<>\",Table2[Teams (jobformidler)],\"<>\"))","v":{"$error":"#DIV/0!"}}]
[]
[]
[]
[]
[]
[]
[]
[]
[]
[]
[]
[]
[]
[]
[]
[]
[]
[]
[]
[]
[]
[]
[]
[]
[]
[]
[]
[]
[]
[]
[]
[]
[]
[]
[]
[]
[]
[]
[]
[]
[]
[]
[]
[]
[]
[]
[]
[]
[]
[]
[]
[]
[]
[]
[]
[]
[]
[]
[]
[]
[]
[]
[]
[]
[]
[]
[]
[]
[]
[]
[]
[]
[]
[]
[]
[]
[]
[]
[]
[]
[]
[]
[]
[]
[]
[]
[]
[]
[]
[]
[]
[]
[]
[null,"Row Labels"," Har borger CV og jobmål?"]
[null,"Alle teams",{"$error":"#DIV/0!"}]
[null,"Team 1",{"$error":"#DIV/0!"}]
[null,"Grand Total",{"$error":"#DIV/0!"}]
[]
[]
[]
[]
[]
[]
[]
[]
[]
[]
[]
[]
[]
[]
[]
[]
[]
[]
[]
[]
[]
[]
[]
[]
[]
[]
[]
[]
[]
[]
[]
[]
[]
[]
[]
[]
[]
[]
[]
[]
[]
[]
[]
[]
[]
[]
[]
[]
[]
[]
[]
[]
[]
[]
[]
[]
[]
[]
[]
[]
[]
[]
[]
[]
[]
[]
[]
[]
[]
[]
[]
[]
[]
[]
[]
[]
[]
[]
[]
[]
[]
[]
[]
[]
[]
[]
[]
[]
[]
[]
[]
[]
[]
[]
[]
[]
[]
[]
[]
[]
[]
[]
[]
[]
[]
[]
["Hold8","Jobformidler","Har borger et jobmål?"]
[null,{"$f":"'Jobformidlere og teams'!B11","v":"Ingen jobformidler"},{"$f":"(COUNTIFS(#REF!,\"Ja\",Table2[Jobformidler],$B1541,Table2[Teams (jobformidler)],$B$1542))/(COUNTIFS(#REF!,\"<>\",Table2[Jobformidler],$B1541,Table2[Teams (jobformidler)],$B$1542))","v":{"$error":"#REF!"}}]
[null,{"$f":"'Statistik for teamledelse'!$B$7","v":"Team 1"},{"$f":"(COUNTIFS(#REF!,\"Ja\",Table2[Teams (jobformidler)],$B$1542))/(COUNTIFS(#REF!,\"<>\",Table2[Teams (jobformidler)],$B$1542))","v":{"$error":"#REF!"}}]
[]
[]
[]
[]
[]
[]
[]
[]
[]
[]
[]
[]
[]
[]
[]
[]
[]
[]
[]
[]
[]
[]
[]
[]
[]
[]
[]
[]
[]
[]
[]
[]
[]
[]
[]
[]
[]
[]
[]
[]
[]
[]
[]
[]
[]
[]
[]
[]
[]
[]
[]
[]
[]
[]
[]
[]
[]
[]
[]
[]
[]
[]
[]
[]
[]
[]
[]
[]
[]
[]
[]
[]
[]
[]
[]
[]
[]
[]
[]
[]
[]
[]
[]
[]
[]
[]
[]
[]
[]
[]
[]
[]
[]
[]
[null,"Row Labels"," Har borger et jobmål?"]
[null,"Grand Total"]
[]
[]
[]
[]
[]
[]
[]
[]
[]
[]
[]
[]
[]
[]
[]
[]
[]
[]
[]
[]
[]
[]
[]
[]
[]
[]
[]
[]
[]
[]
[]
[]
[]
[]
[]
[]
[]
[]
[]
[]
[]
[]
[]
[]
[]
[]
[]
[]
[]
[]
[]
[]
[]
[]
[]
[]
[]
[]
[]
[]
[]
[]
[]
[]
[]
[]
[]
[]
[]
[]
[]
[]
[]
[]
[]
[]
[]
[]
[]
[]
[]
[]
[]
[]
[]
[]
[]
[]
[]
[]
[]
[]
[]
[]
[]
[]
[]
[]
[]
[]
[]
[]
[]
["Hold9","Team","Har borger et jobmål?"]
[null,{"$f":"'Jobformidlere og teams'!D11","v":"Team 1"},{"$f":"(COUNTIFS(#REF!,\"Ja\",Table2[Teams (jobformidler)],$B1743))/(COUNTIFS(#REF!,\"<>\",Table2[Teams (jobformidler)],$B1743))","v":{"$error":"#REF!"}}]
[null,"Alle teams",{"$f":"(COUNTIFS(#REF!,\"Ja\",Table2[Teams (jobformidler)],\"<>\"))/(COUNTIFS(#REF!,\"<>\",Table2[Teams (jobformidler)],\"<>\"))","v":{"$error":"#REF!"}}]
[]
[]
[]
[]
[]
[]
[]
[]
[]
[]
[]
[]
[]
[]
[]
[]
[]
[]
[]
[]
[]
[]
[]
[]
[]
[]
[]
[]
[]
[]
[]
[]
[]
[]
[]
[]
[]
[]
[]
[]
[]
[]
[]
[]
[]
[]
[]
[]
[]
[]
[]
[]
[]
[]
[]
[]
[]
[]
[]
[]
[]
[]
[]
[]
[]
[]
[]
[]
[]
[]
[]
[]
[]
[]
[]
[]
[]
[]
[]
[]
[]
[]
[]
[]
[]
[]
[]
[]
[]
[]
[]
[]
[]
[]
[]
[]
[]
[]
[null,"Row Labels","  Har borger et jobmål?"]
[null,"Alle teams",{"$error":"#REF!"}]
[null,"Team 1",{"$error":"#REF!"}]
[null,"Grand Total",{"$error":"#REF!"}]

{"sheet":"Statistik for teamledelse","index":7,"n_rows":305,"n_cols":17,"rows_kept":305,"cut":false,"hidden":false,"merged":[[41,1,41,17],[22,5,22,6],[23,5,24,6],[27,5,28,6],[29,5,30,6],[22,7,22,8],[23,7,24,8],[25,7,26,8],[27,7,28,8],[29,7,30,8],[33,9,34,11],[35,9,36,11],[37,9,37,11],[38,9,38,11],[23,12,24,14],[22,15,22,17],[129,1,129,17],[31,12,36,14],[37,12,38,14],[25,15,30,17],[31,15,36,17],[37,15,38,17],[31,7,32,8],[33,7,34,8],[35,7,36,8],[37,7,38,8],[31,5,32,6],[33,5,34,6],[35,5,36,6],[37,5,38,6],[31,9,32,11],[25,5,26,6],[23,15,24,17],[28,9,28,11],[27,9,27,11],[25,9,26,11],[25,12,30,14],[29,9,30,11],[8,9,8,17],[8,3,8,8],[11,14,18,15],[9,14,10,15],[11,16,18,17],[9,16,10,17],[9,3,10,5],[11,3,18,5],[11,6,18,8],[9,6,10,8],[11,9,18,13],[9,9,10,13],[11,1,18,2],[5,1,5,4],[6,1,6,4],[37,1,37,4],[38,1,38,4],[9,1,10,2],[20,1,20,17],[24,9,24,11],[23,9,23,11],[22,9,22,11],[22,12,22,14],[23,1,23,4],[24,1,24,4],[25,1,25,4],[26,1,26,4],[27,1,27,4],[28,1,28,4],[29,1,29,4],[30,1,30,4],[31,1,31,4],[22,1,22,4],[32,1,32,4],[33,1,33,4],[34,1,34,4],[35,1,35,4],[36,1,36,4]]}
[]
[]
[]
[]
[]
[null,"Hvilket team vil du se statistik for?"]
[null,"Team 1"]
[]
[null,null,null,"Succesmål",null,null,null,null,null,"Resultatmål"]
[null,"Antal borgere",null,"Andel borgere med CV og jobmål",null,null,"Andel borgere med lønnede timer, i selvforsørgelse eller uddannelse",null,null,"Andel borgere med en jobformidler",null,null,null,null,"Antal borgere fra resultatmålet på 15 procent i løntimer eller uddannelse",null,"Antal borgere fra resultatmålet på 20 procent i løntimer eller uddannelse"]
[]
[null,{"$f":"COUNTIFS('Oversigt over borgere'!$F$17:$F$500,'Statistik for teamledelse'!$B$7)","v":0},null,{"$f":"Mellemregning_TEAM!$C$872","v":{"$error":"#DIV/0!"}},null,null,{"$f":"Mellemregning_TEAM!$E$872","v":{"$error":"#DIV/0!"}},null,null,{"$f":"Mellemregning_TEAM!$J$5","v":{"$error":"#DIV/0!"}},null,null,null,null,{"$f":"Mellemregning_TEAM!$K$52","v":{"$error":"#DIV/0!"}},null,{"$f":"Mellemregning_TEAM!$K$42","v":{"$error":"#DIV/0!"}}]
[]
[]
[]
[]
[]
[]
[]
[]
[null,"Oversigt over produktionstrin og statuskategorier"]
[]
[null,"Produktionstrin",null,null,null,"Antal i produktionstrin",null,"Andel i produktionstrin",null,"Statuskategori",null,null,"Antal i statuskategori",null,null,"Andel i statuskategori"]
[null,"1. Job eller uddannelse",null,null,null,{"$f":"Mellemregning_TEAM!$C$384","v":0},null,{"$f":"Mellemregning_TEAM!$C$385","v":{"$error":"#DIV/0!"}},null,"1. Succes",null,null,{"$f":"Mellemregning_TEAM!$C$139","v":0},null,null,{"$f":"Mellemregning_TEAM!$C$140","v":{"$error":"#DIV/0!"}}]
[null,"Borgeren er i selvforsørget beskæftigelse eller uddannelse. Jobformidleren understøtter, at borgeren fastholdes i job eller uddannelse.  ",null,null,null,null,null,null,null,"Borgere, der er kommet i selvforsørget beskæftigelse eller uddannelse."]
[null,"2. Progression i antal lønnede timer",null,null,null,{"$f":"Mellemregning_TEAM!$D$384","v":0},null,{"$f":"Mellemregning_TEAM!$D$385","v":{"$error":"#DIV/0!"}},null,null,null,null,{"$f":"Mellemregning_TEAM!$D$139","v":0},null,null,{"$f":"Mellemregning_TEAM!$D$140","v":{"$error":"#DIV/0!"}}]
[null,"Borgeren har opnået progression i antal lønnede timer. Jobformidleren har sammen med borger og virksomhed fulgt op på arbejdsaftalen og foretaget justeringer i aftalen, for at understøtte progression i arbejdstid (antal timer). "]
[null,"3. Jobmatch og arbejdsaftale om lønnede timer",null,null,null,{"$f":"Mellemregning_TEAM!$E$384","v":0},null,{"$f":"Mellemregning_TEAM!$E$385","v":{"$error":"#DIV/0!"}},null,"2. I gang"]
[null,"Borgeren har fundet et individuelt jobmatch og er i lønnede timer evt. kombineret med virksomhedspraktik eller løntilskud. Jobformidleren har hjulpet borgeren og virksomheden med at indgå en klar aftale om ansættelsen – antal timer, opgaver, og delmål for progression i antal lønnede timer. Der er lavet en klar plan for opfølgningen under forløbet. Borgeren har en fast kontaktperson på virksomheden.\n",null,null,null,null,null,null,null,"Borgere, der er i et virksomhedsforløb og hvor der arbejdes med at sikre progression i arbejdsopgaver og lønnede timer."]
[null,"4. Jobmatch og arbejdsaftale om praktik",null,null,null,{"$f":"Mellemregning_TEAM!$F$384","v":0},null,{"$f":"Mellemregning_TEAM!$F$385","v":{"$error":"#DIV/0!"}}]
[null,"Borgeren har fundet et individuelt jobmatch og er i virksomhedspraktik (lønnede timer er ikke en mulighed fra start) eller løntilskud. Jobformidleren har hjulpet borgeren og virksomheden med at indgå en klar aftale om timer, opgaver, og delmål for progression under forløbet. Det fremgår klart af aftalen, hvorvidt og hvornår lønnede timer er en mulighed. Der er lavet en klar plan for opfølgningen under forløbet. Borgeren har en fast kontaktperson på virksomheden. \n"]
[null,"5. Kontakt til relevante virksomheder",null,null,null,{"$f":"Mellemregning_TEAM!$G$384","v":0},null,{"$f":"Mellemregning_TEAM!$G$385","v":{"$error":"#DIV/0!"}},null,"3. På spring",null,null,{"$f":"Mellemregning_TEAM!$E$139","v":0},null,null,{"$f":"Mellemregning_TEAM!$E$140","v":{"$error":"#DIV/0!"}}]
[null,"Borgeren er i personlig kontakt med relevante arbejdsgivere, fx gennem virksomhedsbesøg og dialog med virksomhedsleder (med støtte fra den personlige jobformidler)."]
[null,"6. Jobmål udarbejdet",null,null,null,{"$f":"Mellemregning_TEAM!$H$384","v":0},null,{"$f":"Mellemregning_TEAM!$H$385","v":{"$error":"#DIV/0!"}},null,"Borgere, der med afsæt i eget jobmål og/eller CV arbejder på at finde det rette match med en virksomhed."]
[null,"Borgeren har et konkret og realistisk jobmål, som er udarbejdet sammen med borgerens primære kontaktperson. "]
[null,"7. CV udarbejdet",null,null,null,{"$f":"Mellemregning_TEAM!$I$384","v":0},null,{"$f":"Mellemregning_TEAM!$I$385","v":{"$error":"#DIV/0!"}}]
[null,"Borgeren har et dækkende CV, som er udarbejdet sammen med borgerens primære kontaktperson."]
[null,"8. Personlig jobformidler",null,null,null,{"$f":"Mellemregning_TEAM!$J$384","v":0},null,{"$f":"Mellemregning_TEAM!$J$385","v":{"$error":"#DIV/0!"}},null,"4. På længere sigt",null,null,{"$f":"Mellemregning_TEAM!$F$139","v":0},null,null,{"$f":"Mellemregning_TEAM!$F$140","v":{"$error":"#DIV/0!"}}]
[null,"Borgeren har eller skal til at have en personlig jobformidler med kendskab til arbejdsmarkedet.  ",null,null,null,null,null,null,null,"Borgere, der har eller skal til at have en personlig jobformidler."]
[]
[]
[null,"Status på succesmål"]
[]
[null,"Andel af borgere med CV og jobmål pr. jobformidler i dit team og teamet samlet set"]
[]
[]
[]
[]
[]
[]
[]
[]
[]
[]
[]
[]
[]
[]
[]
[]
[]
[]
[]
[]
[]
[]
[]
[]
[]
[]
[]
[]
[null,"Andel af borgere med CV og jobmål i dit team sammenlignet med de andre teams og alle teams samlet set"]
[]
[]
[]
[]
[]
[]
[]
[]
[]
[]
[]
[]
[]
[]
[]
[]
[]
[]
[]
[]
[]
[]
[]
[]
[]
[]
[]
[null,"Andel borgere med lønnede timer, i selvforsørgelse eller uddannelse i dit team sammenlignet med alle teams samlet set"]
[]
[]
[]
[]
[]
[]
[]
[]
[]
[]
[]
[]
[]
[]
[]
[]
[]
[]
[]
[]
[]
[]
[]
[]
[]
[]
[]
[]
[null,"Status på resultatmål"]
[]
[]
[null,"Andel borgere med jobformidler i dit team sammenlignet med de andre teams og alle teams samlet set"]
[]
[]
[]
[]
[]
[]
[]
[]
[]
[]
[]
[]
[]
[]
[]
[]
[]
[]
[]
[]
[]
[]
[]
[]
[]
[]
[]
[]
[null,"Status på statuskategorier og produktionstrin"]
[]
[null,"Andel borgere fordelt på de fire statuskategorier for dit team"]
[]
[]
[]
[]
[]
[]
[]
[]
[]
[]
[]
[]
[]
[]
[]
[]
[]
[]
[]
[]
[]
[]
[]
[]
[]
[]
[null,"Andel borgere fordelt på de fire statuskategorier pr. jobformidler i dit team og teamet samlet set"]
[]
[]
[]
[]
[]
[]
[]
[]
[]
[]
[]
[]
[]
[]
[]
[]
[]
[]
[]
[]
[]
[]
[]
[]
[]
[]
[]
[]
[null,"Andel borgere fordelt på de fire statuskategorier pr. team og alle teams samlet set"]
[]
[]
[]
[]
[]
[]
[]
[]
[]
[]
[]
[]
[]
[]
[]
[]
[]
[]
[]
[]
[]
[]
[]
[]
[]
[]
[]
[null,"Andel borgere fordelt på de otte produktionstrin for dit team"]
[]
[]
[]
[]
[]
[]
[]
[]
[]
[]
[]
[]
[]
[]
[]
[]
[]
[]
[]
[]
[]
[]
[]
[]
[]
[]
[]
[null,"Andel borgere fordelt på de otte produktionstrin pr. jobformidler i dit team og teamet samlet set"]
[]
[]
[]
[]
[]
[]
[]
[]
[]
[]
[]
[]
[]
[]
[]
[]
[]
[]
[]
[]
[]
[]
[]
[]
[]
[]
[]
[]
[null,"Andel borgere fordelt på de otte produktionstrin pr. team og alle teams samlet set"]

{"sheet":"Mellemregninger","index":8,"n_rows":1168,"n_cols":60,"rows_kept":1168,"cut":false,"hidden":true,"merged":[[13,5,13,9],[14,5,15,7],[14,8,15,9]]}
[]
[null,"Kategori","Antal","Procent",null,"Total",null,null,null,"Jobformidler"]
[null,"1. Succes",{"$f":"COUNTIFS(Table2[Statuskategori],Mellemregninger!B3)","v":0},{"$f":"C3/SUM($C$3:$C$6)","v":{"$error":"#DIV/0!"}},null,"Antal borgere for at nå mål på 40 procent","Antal borgere med nuværende succesrate",null,null,"Antal borgere for at nå mål på 40 procent","Antal borgere med nuværende succesrate",null,null,null,null,"Antal borgere","Antal borgere ingen sb","Antal borgere med jobformidler",null,"Antal borgere fra at nå resultatmål på 85%","Antal borgere nuværende succesrate",null,"Kategori","Antal","Procent",null,{"$f":"SUM(Y4:Y11)","v":{"$error":"#DIV/0!"}},null,"Andel med CV og jobmål","Andel med Jobmål","Andel med ordinære timer, i selvforsørgelse eller uddannelse","Andel i virksomhedsforløb mv."]
[null,"2. I gang",{"$f":"COUNTIFS(Table2[Statuskategori],Mellemregninger!B4)","v":0},{"$f":"C4/SUM($C$3:$C$6)","v":{"$error":"#DIV/0!"}},null,{"$f":"SUM(C3:C6)*0.4","v":0},{"$f":"(SUM(C3:C6))*(SUM(D3:D4))","v":{"$error":"#DIV/0!"}},null,null,{"$f":"('Statistik for jobformidlere'!C12)*0.4","v":0},{"$f":"'Statistik for jobformidlere'!C12*F17","v":{"$error":"#DIV/0!"}},null,null,null,null,{"$f":"COUNTA(Table2[Borgers CPR])","v":0},{"$f":"COUNTIF(Table2[Jobformidler],\"=Ingen jobformidler\")","v":0},{"$f":"P4-Q4","v":0},null,{"$f":"P4*Q7","v":0},{"$f":"P4*P7","v":{"$error":"#DIV/0!"}},null,"1. Job eller uddannelse",{"$f":"COUNTIFS(Table2[Produktionstrin],Mellemregninger!W4)","v":0},{"$f":"X4/(SUM($X$4:$X$11))","v":{"$error":"#DIV/0!"}},null,null,"Alle teams",{"$f":"COUNTIFS(Table2[Har borger CV og jobmål?],\"Ja\")/COUNTIFS(Table2[Har borger CV og jobmål?],\"<>\")","v":{"$error":"#DIV/0!"}},{"$f":"COUNTIFS(#REF!,\"Ja\")/COUNTIFS(#REF!,\"<>\")","v":{"$error":"#REF!"}},{"$f":"SUM(Y4:Y6)","v":{"$error":"#DIV/0!"}},{"$f":"SUM(Y4:Y7)","v":{"$error":"#DIV/0!"}}]
[null,"3. På spring",{"$f":"COUNTIFS(Table2[Statuskategori],Mellemregninger!B5)","v":0},{"$error":"#DIV/0!"},null,null,null,null,null,null,null,null,null,null,null,null,null,null,null,null,null,null,"2. Progression i antal ordinære timer",{"$f":"COUNTIFS(Table2[Produktionstrin],Mellemregninger!W5)","v":0},{"$f":"X5/(SUM($X$4:$X$11))","v":{"$error":"#DIV/0!"}}]
[null,"4. På længere sigt",{"$f":"COUNTIFS(Table2[Statuskategori],Mellemregninger!B6)","v":0},{"$error":"#DIV/0!"},null,null,null,null,null,"Antal borgere fra eller til mål","Antal borgere fra/til mål",null,null,null,null,"Andel borgere med jobformidler",null,null,null,"Antal borgere fra/til mål","Antal borgere fra/til mål",null,"3. Jobmatch og arbejdsaftale om ordinære timer",{"$f":"COUNTIFS(Table2[Produktionstrin],Mellemregninger!W6)","v":0},{"$error":"#DIV/0!"}]
[null,null,null,null,null,"Antal borgere fra eller til mål","Antal borgere fra/til mål",null,null,{"$f":"K4-J4","v":{"$error":"#DIV/0!"}},{"$f":"ROUNDUP(IF(J7<0,J7*-1,J7),0)","v":{"$error":"#DIV/0!"}},null,null,null,null,{"$f":"R4/P4","v":{"$error":"#DIV/0!"}},0.85,null,null,{"$f":"U4-T4","v":{"$error":"#DIV/0!"}},{"$f":"ROUNDUP(IF(T7<0,T7*-1,T7),0)","v":{"$error":"#DIV/0!"}},null,"4. Jobmatch og arbejdsaftale om praktik",{"$f":"COUNTIFS(Table2[Produktionstrin],Mellemregninger!W7)","v":0},{"$error":"#DIV/0!"}]
[null,"Hold1",{"$f":"MATCH(B8,A:A,0)","v":220},null,null,{"$f":"G4-F4","v":{"$error":"#DIV/0!"}},{"$f":"ROUNDUP(IF(F8<0,F8*-1,F8),0)","v":{"$error":"#DIV/0!"}},null,null,null,null,null,null,null,null,null,null,null,null,null,null,null,"5. Kontakt til relevant virksomhed",{"$f":"COUNTIFS(Table2[Produktionstrin],Mellemregninger!W8)","v":0},{"$error":"#DIV/0!"}]
[null,"Hold2",{"$f":"MATCH(B9,A:A,0)","v":427},null,null,null,null,null,null,null,null,null,null,null,null,null,null,null,null,null,null,null,"6. Jobmål udarbejdet",{"$f":"COUNTIFS(Table2[Produktionstrin],Mellemregninger!W9)","v":0},{"$error":"#DIV/0!"}]
[null,"Hold3",{"$f":"MATCH(B10,A:A,0)","v":855},null,null,null,null,null,null,null,null,null,null,null,null,null,null,null,null,null,null,null,"7. CV udarbejdet",{"$f":"COUNTIFS(Table2[Produktionstrin],Mellemregninger!W10)","v":0},{"$f":"X10/(SUM($X$4:$X$11))","v":{"$error":"#DIV/0!"}}]
[null,"Hold4",{"$f":"MATCH(B11,A:A,0)","v":1055},null,null,null,null,null,null,null,null,null,null,null,null,null,null,null,null,null,null,null,"8. Personlig jobformidler",{"$f":"COUNTIFS(Table2[Produktionstrin],Mellemregninger!W11)","v":0},{"$f":"X11/(SUM($X$4:$X$11))","v":{"$error":"#DIV/0!"}}]
[null,"Count of Borgers CPR","Count of Borgers CPR2",null,null,null,null,null,null,null,null,null,null,null,null,null,null,null,null,null,null,null,null,null,null,null,"Row Labels","Count of Borgers CPR_prod","Count of Borgers CPR2_prod",null,null,null,null,null,"Count of Borgers CPR","Column Labels"]
[null,null,{"$error":"#DIV/0!"},null,null,null,null,null,null,null,null,null,null,null,null,null,null,null,null,null,null,null,null,null,null,null,"(blank)",null,{"$error":"#DIV/0!"},null,null,null,null,null,"Row Labels","(blank)","Grand Total",null,null,null,null,null,null,null,null,null,null,null,null,null,null,null,null,null,null,null,null,null,"Column Labels"]
[null,null,null,null,null,"Resultatmål",null,null,null,null,null,null,null,null,null,null,null,null,null,null,null,null,null,null,null,null,"Grand Total",null,{"$error":"#DIV/0!"},null,null,null,null,null,"(blank)",null,null,null,null,null,null,null,null,null,null,null,null,null,null,null,null,null,null,null,null,null,null,null,"(blank)","Grand Total"]
[null,null,null,null,null,"Andel borgere i virksomhedsforløb mv. (virksomhedspraktik, løntilskud, job eller uddannelse)",null,null,"Antal borgere fra resultatmålet på 40% i virksomhedsforløb",null,null,null,null,null,null,null,null,null,null,null,null,null,null,null,null,null,null,null,null,null,null,null,null,null,"Grand Total",null,null,null,null,null,null,null,null,null,null,null,null,null,null,null,null,null,null,null,null,null,null,"Count of Produktionstrin",{"$error":"#DIV/0!"},{"$error":"#DIV/0!"}]
[]
[null,null,null,null,null,{"$f":"((COUNTIFS('Oversigt over borgere'!$E$17:$E$302,'Statistik for jobformidlere'!$C$7,'Oversigt over borgere'!$H$17:$H$302,'Statistik for jobformidlere'!$I$24))+(COUNTIFS('Oversigt over borgere'!$E$17:$E$302,'Statistik for jobformidlere'!$C$7,'Oversigt over borgere'!$H$17:$H$302,'Statistik for jobformidlere'!$I$28)))/'Statistik for jobformidlere'!$C$12","v":{"$error":"#DIV/0!"}},null,null,null,{"$f":"Mellemregninger!$K$7","v":{"$error":"#DIV/0!"}}]
[]
[]
[null,null,null,null,null,"20 procent",null,null,null,"Jobformidler"]
[null,"Row Labels","Count of Borgers CPR",null,null,"Antal borgere for at nå mål på 40 procent","Antal borgere med nuværende succesrate",null,null,"20 procent"]
[null,"(blank)",null,null,null,{"$f":"SUM(C3:C6)*0.2","v":0},{"$f":"(SUM(C3:C6))*(SUM(D3:D4))","v":{"$error":"#DIV/0!"}},null,null,"Antal borgere for at nå mål på 20 procent","Antal borgere med nuværende succesrate"]
[null,"Grand Total",null,null,null,null,null,null,null,{"$f":"('Statistik for jobformidlere'!$C$12)*0.2","v":0},{"$f":"'Statistik for jobformidlere'!C12*F17","v":{"$error":"#DIV/0!"}}]
[]
[null,null,null,null,null,"Antal borgere fra eller til mål","Antal borgere fra/til mål",null,null,"Antal borgere fra eller til mål","Antal borgere fra/til mål"]
[null,null,null,null,null,{"$f":"G22-F22","v":{"$error":"#DIV/0!"}},{"$f":"ROUNDUP(IF(F26<0,F26*-1,F26),0)","v":{"$error":"#DIV/0!"}},null,null,{"$f":"K23-J23","v":{"$error":"#DIV/0!"}},{"$f":"ROUNDUP(IF(J26<0,J26*-1,J26),0)","v":{"$error":"#DIV/0!"}}]
[]
[]
[null,null,null,null,null,"15 procent",null,null,null,"15 procent"]
[null,null,null,null,null,"Antal borgere for at nå mål på 40 procent","Antal borgere med nuværende succesrate",null,null,"Antal borgere for at nå mål på 15 procent","Antal borgere med nuværende succesrate"]
[null,null,null,null,null,{"$f":"SUM(C3:C6)*0.15","v":0},{"$f":"(SUM(C3:C6))*(SUM(D3:D4))","v":{"$error":"#DIV/0!"}},null,null,{"$f":"('Statistik for jobformidlere'!$C$12)*0.15","v":0},{"$f":"'Statistik for jobformidlere'!C12*F17","v":{"$error":"#DIV/0!"}}]
[]
[null,null,null,null,null,null,null,null,null,"Antal borgere fra eller til mål","Antal borgere fra/til mål"]
[null,null,null,null,null,"Antal borgere fra eller til mål","Antal borgere fra/til mål",null,null,{"$f":"K31-J31","v":{"$error":"#DIV/0!"}},{"$f":"ROUNDUP(IF(J34<0,J34*-1,J34),0)","v":{"$error":"#DIV/0!"}}]
[null,null,null,null,null,{"$f":"G31-F31","v":{"$error":"#DIV/0!"}},{"$f":"ROUNDUP(IF(F35<0,F35*-1,F35),0)","v":{"$error":"#DIV/0!"}}]
[]
[]
[]
[]
[]
[]
[]
[]
[]
[]
[]
[]
[]
[]
[]
[]
[]
[]
[]
[]
[]
[]
[]
[]
[]
[]
[]
[]
[]
[]
[]
[]
[]
[]
[]
[null,null,null,null,null,null,null,null,null,null,null,null,null,null,null,null,null,null,null,null,null,null,null,null,null,null,null,null,null,null,null,null,null,null,"Count of Produktionstrin","Column Labels"]
[null,null,null,null,null,null,null,null,null,null,null,null,null,null,null,null,null,null,null,null,null,null,null,null,null,null,null,null,null,null,null,null,null,null,"Row Labels","(blank)","Grand Total"]
[null,"Row Labels",null,null,null,null,null,null,null,null,null,null,null,null,null,null,null,null,null,null,null,null,null,null,null,null,null,null,null,null,null,null,null,null,"(blank)",{"$error":"#DIV/0!"},{"$error":"#DIV/0!"}]
[null,"(blank)",null,null,null,null,null,null,null,null,null,null,null,null,null,null,null,null,null,null,null,null,null,null,null,null,null,null,null,null,null,null,null,null,"Grand Total",{"$error":"#DIV/0!"},{"$error":"#DIV/0!"}]
[null,"Grand Total"]
[]
[]
[]
[]
[]
[]
[]
[]
[]
[]
[]
[]
[]
[]
[]
[]
[]
[]
[]
[]
[]
[]
[]
[]
[]
[]
[]
[]
[]
[]
[]
[]
[]
[]
[]
[]
[]
[]
[]
[null,"Row Labels"]
[null,"(blank)"]
[null,"Grand Total"]
[]
[]
[]
[]
[]
[]
[]
[]
[]
[]
[]
[]
[]
[]
[]
[]
[]
[]
[]
[]
[]
[]
[]
[]
[]
[]
[]
[]
[]
[]
[]
[]
[]
[]
[]
[]
[]
[]
[]
[]
[]
[]
[]
[]
[]
[]
[]
[]
[]
[]
[]
[]
[]
[]
[]
[]
[]
[]
[]
[]
[]
[]
[]
[]
[]
[]
[null,null,"1. Succes","2. I gang","3. På spring","4. På længere sigt"]
[null,{"$f":"'Statistik for jobformidlere'!$C$7","v":"Ingen jobformidler"},{"$f":"COUNTIFS(Table2[Jobformidler],Mellemregninger!$B$185,Table2[Statuskategori],Mellemregninger!$C$184)","v":0},{"$f":"COUNTIFS(Table2[Jobformidler],Mellemregninger!$B$185,Table2[Statuskategori],Mellemregninger!$D$184)","v":0},{"$f":"COUNTIFS(Table2[Jobformidler],Mellemregninger!$B$185,Table2[Statuskategori],Mellemregninger!$E$184)","v":0},{"$f":"COUNTIFS(Table2[Jobformidler],Mellemregninger!$B$185,Table2[Statuskategori],Mellemregninger!$F$184)","v":0}]
[null,{"$f":"VLOOKUP($B$185,Table2[[#All],[Jobformidler]:[Teams (jobformidler)]],2,FALSE)","v":{"$error":"#N/A"}},{"$f":"COUNTIFS(Table2[Team],1,Table2[Statuskategori],Mellemregninger!C$184)","v":0},{"$f":"COUNTIFS(Table2[Team],1,Table2[Statuskategori],Mellemregninger!D$184)","v":0},{"$f":"COUNTIFS(Table2[Team],1,Table2[Statuskategori],Mellemregninger!E$184)","v":0},{"$f":"COUNTIFS(Table2[Team],1,Table2[Statuskategori],Mellemregninger!F$184)","v":0}]
[null,{"$f":"B185","v":"Ingen jobformidler"},{"$f":"C185/(SUM($C$185:$F$185))","v":{"$error":"#DIV/0!"}},{"$f":"D185/(SUM($C$185:$F$185))","v":{"$error":"#DIV/0!"}},{"$error":"#DIV/0!"},{"$error":"#DIV/0!"}]
[null,{"$f":"B186","v":{"$error":"#N/A"}},{"$f":"C186/(SUM($C$186:$F$186))","v":{"$error":"#DIV/0!"}},{"$f":"D186/(SUM($C$186:$F$186))","v":{"$error":"#DIV/0!"}},{"$error":"#DIV/0!"},{"$error":"#DIV/0!"}]
[]
[]
[]
[]
[]
[]
[]
[]
[]
[]
[]
[]
[]
[]
[]
[]
[]
[]
[]
[]
[]
[]
[]
[]
[]
[]
[]
[]
[]
[]
[]
["Hold1","Jobformidlere","1. Succes","2. I gang","3. På spring","4. På længere sigt","Total"]
[null,{"$f":"'Jobformidlere og teams'!B11","v":"Ingen jobformidler"},{"$f":"(COUNTIFS(Table2[Statuskategori],Mellemregninger!$C$220,Table2[Jobformidler],Mellemregninger!$B221))/(COUNTIFS(Table2[Statuskategori],\"<>\",Table2[Jobformidler],Mellemregninger!$B221))","v":{"$error":"#DIV/0!"}},{"$f":"(COUNTIFS(Table2[Statuskategori],Mellemregninger!$D$220,Table2[Jobformidler],Mellemregninger!$B221))/(COUNTIFS(Table2[Statuskategori],\"<>\",Table2[Jobformidler],Mellemregninger!$B221))","v":{"$error":"#DIV/0!"}},{"$f":"(COUNTIFS(Table2[Statuskategori],Mellemregninger!$E$220,Table2[Jobformidler],Mellemregninger!$B221))/(COUNTIFS(Table2[Statuskategori],\"<>\",Table2[Jobformidler],Mellemregninger!$B221))","v":{"$error":"#DIV/0!"}},{"$f":"(COUNTIFS(Table2[Statuskategori],Mellemregninger!$F$220,Table2[Jobformidler],Mellemregninger!$B221))/(COUNTIFS(Table2[Statuskategori],\"<>\",Table2[Jobformidler],Mellemregninger!$B221))","v":{"$error":"#DIV/0!"}},{"$f":"SUM(Table4[[#This Row],[1. Succes]:[4. På længere sigt]])","v":{"$error":"#DIV/0!"}}]
[null,{"$f":"B186","v":{"$error":"#N/A"}},{"$f":"(COUNTIFS(Table2[Statuskategori],Mellemregninger!$C$220,Table2[Teams (jobformidler)],Mellemregninger!$B222))/(COUNTIFS(Table2[Statuskategori],\"<>\",Table2[Teams (jobformidler)],Mellemregninger!$B222))","v":{"$error":"#DIV/0!"}},{"$f":"(COUNTIFS(Table2[Statuskategori],Mellemregninger!$D$220,Table2[Teams (jobformidler)],Mellemregninger!$B222))/(COUNTIFS(Table2[Statuskategori],\"<>\",Table2[Teams (jobformidler)],Mellemregninger!$B222))","v":{"$error":"#DIV/0!"}},{"$f":"(COUNTIFS(Table2[Statuskategori],Mellemregninger!$E$220,Table2[Teams (jobformidler)],Mellemregninger!$B222))/(COUNTIFS(Table2[Statuskategori],\"<>\",Table2[Teams (jobformidler)],Mellemregninger!$B222))","v":{"$error":"#DIV/0!"}},{"$f":"(COUNTIFS(Table2[Statuskategori],Mellemregninger!$F$220,Table2[Teams (jobformidler)],Mellemregninger!$B222))/(COUNTIFS(Table2[Statuskategori],\"<>\",Table2[Teams (jobformidler)],Mellemregninger!$B222))","v":{"$error":"#DIV/0!"}},{"$f":"SUM(Table4[[#This Row],[1. Succes]:[4. På længere sigt]])","v":{"$error":"#DIV/0!"}}]
[]
[]
[]
[]
[]
[]
[]
[]
[]
[]
[]
[]
[]
[]
[]
[]
[]
[]
[]
[]
[]
[]
[]
[]
[]
[]
[]
[]
[]
[]
[]
[]
[]
[]
[]
[]
[]
[]
[]
[]
[]
[]
[]
[]
[]
[]
[]
[]
[]
[]
[]
[]
[]
[]
[]
[]
[]
[]
[]
[null,"Row Labels"," 1. Succes"," 2. I gang"," 3. På spring"," 4. På længere sigt"," Total"]
[null,"Grand Total"]
[]
[]
[]
[]
[]
[]
[]
[]
[]
[]
[]
[]
[]
[]
[]
[]
[]
[]
[]
[]
[]
[]
[]
[]
[]
[]
[]
[]
[]
[]
[]
[]
[]
[]
[]
[]
[]
[]
[]
[]
[]
[]
[]
[]
[]
[]
[]
[]
[]
[]
[]
[]
[]
[]
[]
[]
[]
[]
[]
[]
[]
[]
[]
[]
[]
[]
[]
[]
[]
[]
[]
[]
[]
[]
[]
[]
[]
[]
[]
[]
[]
[]
[]
[]
[]
[]
[null,null,"1. Job eller uddannelse","2. Progression i antal lønnede timer","3. Jobmatch og arbejdsaftale om lønnede  timer","4. Jobmatch og arbejdsaftale om praktik","5. Kontakt til relevant virksomhed","6. Jobmål udarbejdet","7. CV udarbejdet","8. Personlig jobformidler"]
[null,{"$f":"'Statistik for jobformidlere'!$C$7","v":"Ingen jobformidler"},{"$f":"COUNTIFS(Table2[Jobformidler],'Statistik for jobformidlere'!$C$7,Table2[Produktionstrin],Mellemregninger!$C$370)","v":0},{"$f":"COUNTIFS(Table2[Jobformidler],'Statistik for jobformidlere'!$C$7,Table2[Produktionstrin],Mellemregninger!$D$370)","v":0},{"$f":"COUNTIFS(Table2[Jobformidler],'Statistik for jobformidlere'!$C$7,Table2[Produktionstrin],Mellemregninger!$E$370)","v":0},{"$f":"COUNTIFS(Table2[Jobformidler],'Statistik for jobformidlere'!$C$7,Table2[Produktionstrin],Mellemregninger!$F$370)","v":0},{"$f":"COUNTIFS(Table2[Jobformidler],'Statistik for jobformidlere'!$C$7,Table2[Produktionstrin],Mellemregninger!$G$370)","v":0},{"$f":"COUNTIFS(Table2[Jobformidler],'Statistik for jobformidlere'!$C$7,Table2[Produktionstrin],Mellemregninger!$H$370)","v":0},{"$f":"COUNTIFS(Table2[Jobformidler],'Statistik for jobformidlere'!$C$7,Table2[Produktionstrin],Mellemregninger!$I$370)","v":0},{"$f":"COUNTIFS(Table2[Jobformidler],'Statistik for jobformidlere'!$C$7,Table2[Produktionstrin],Mellemregninger!$J$370)","v":0}]
[null,{"$f":"$B$186","v":{"$error":"#N/A"}},{"$f":"COUNTIFS(Table2[Teams (jobformidler)],$B$372,Table2[Produktionstrin],Mellemregninger!$C$370)","v":0},{"$f":"COUNTIFS(Table2[Teams (jobformidler)],$B$372,Table2[Produktionstrin],Mellemregninger!$D$370)","v":0},{"$f":"COUNTIFS(Table2[Teams (jobformidler)],$B$372,Table2[Produktionstrin],Mellemregninger!$E$370)","v":0},{"$f":"COUNTIFS(Table2[Teams (jobformidler)],$B$372,Table2[Produktionstrin],Mellemregninger!$F$370)","v":0},{"$f":"COUNTIFS(Table2[Teams (jobformidler)],$B$372,Table2[Produktionstrin],Mellemregninger!$G$370)","v":0},{"$f":"COUNTIFS(Table2[Teams (jobformidler)],$B$372,Table2[Produktionstrin],Mellemregninger!$H$370)","v":0},{"$f":"COUNTIFS(Table2[Teams (jobformidler)],$B$372,Table2[Produktionstrin],Mellemregninger!$I$370)","v":0},{"$f":"COUNTIFS(Table2[Teams (jobformidler)],$B$372,Table2[Produktionstrin],Mellemregninger!$J$370)","v":0}]
[null,{"$f":"$B$371","v":"Ingen jobformidler"},{"$f":"C371/(SUM($C$371:$J$371))","v":{"$error":"#DIV/0!"}},{"$f":"D371/(SUM($C$371:$J$371))","v":{"$error":"#DIV/0!"}},{"$error":"#DIV/0!"},{"$error":"#DIV/0!"},{"$error":"#DIV/0!"},{"$error":"#DIV/0!"},{"$error":"#DIV/0!"},{"$error":"#DIV/0!"}]
[null,{"$f":"$B$372","v":{"$error":"#N/A"}},{"$f":"C372/(SUM($C$372:$J$372))","v":{"$error":"#DIV/0!"}},{"$f":"D372/(SUM($C$372:$J$372))","v":{"$error":"#DIV/0!"}},{"$error":"#DIV/0!"},{"$error":"#DIV/0!"},{"$error":"#DIV/0!"},{"$error":"#DIV/0!"},{"$error":"#DIV/0!"},{"$error":"#DIV/0!"}]
[]
[]
[]
[]
[]
[]
[]
[]
[]
[]
[]
[]
[]
[]
[]
[]
[]
[]
[]
[]
[]
[]
[]
[]
[]
[]
[]
[]
[]
[]
[]
[]
[]
[]
[]
[]
[]
[]
[]
[]
[]
[]
[]
[]
[]
[]
[]
[]
[]
[]
[]
[]
["Hold2","Jobformidlere","1. Job eller uddannelse","2. Progression i antal ordinære timer","3. Jobmatch og arbejdsaftale om ordinære timer","4. Jobmatch og arbejdsaftale om praktik","5. Kontakt til relevant virksomhed","6. Jobmål udarbejdet","7. CV udarbejdet","8. Personlig jobformidler","Total"]
[null,{"$f":"'Jobformidlere og teams'!B11","v":"Ingen jobformidler"},{"$f":"(COUNTIFS(Table2[Produktionstrin],Mellemregninger!$C$427,Table2[Jobformidler],Mellemregninger!$B428))/(COUNTIFS(Table2[Produktionstrin],\"<>\",Table2[Jobformidler],Mellemregninger!$B428))","v":{"$error":"#DIV/0!"}},{"$f":"(COUNTIFS(Table2[Produktionstrin],Mellemregninger!$D$427,Table2[Jobformidler],Mellemregninger!$B428))/(COUNTIFS(Table2[Produktionstrin],\"<>\",Table2[Jobformidler],Mellemregninger!$B428))","v":{"$error":"#DIV/0!"}},{"$f":"(COUNTIFS(Table2[Produktionstrin],Mellemregninger!$E$427,Table2[Jobformidler],Mellemregninger!$B428))/(COUNTIFS(Table2[Produktionstrin],\"<>\",Table2[Jobformidler],Mellemregninger!$B428))","v":{"$error":"#DIV/0!"}},{"$f":"(COUNTIFS(Table2[Produktionstrin],Mellemregninger!$F$427,Table2[Jobformidler],Mellemregninger!$B428))/(COUNTIFS(Table2[Produktionstrin],\"<>\",Table2[Jobformidler],Mellemregninger!$B428))","v":{"$error":"#DIV/0!"}},{"$f":"(COUNTIFS(Table2[Produktionstrin],Mellemregninger!$G$427,Table2[Jobformidler],Mellemregninger!$B428))/(COUNTIFS(Table2[Produktionstrin],\"<>\",Table2[Jobformidler],Mellemregninger!$B428))","v":{"$error":"#DIV/0!"}},{"$f":"(COUNTIFS(Table2[Produktionstrin],Mellemregninger!$H$427,Table2[Jobformidler],Mellemregninger!$B428))/(COUNTIFS(Table2[Produktionstrin],\"<>\",Table2[Jobformidler],Mellemregninger!$B428))","v":{"$error":"#DIV/0!"}},{"$f":"(COUNTIFS(Table2[Produktionstrin],Mellemregninger!$I$427,Table2[Jobformidler],Mellemregninger!$B428))/(COUNTIFS(Table2[Produktionstrin],\"<>\",Table2[Jobformidler],Mellemregninger!$B428))","v":{"$error":"#DIV/0!"}},{"$f":"(COUNTIFS(Table2[Produktionstrin],Mellemregninger!$J$427,Table2[Jobformidler],Mellemregninger!$B428))/(COUNTIFS(Table2[Produktionstrin],\"<>\",Table2[Jobformidler],Mellemregninger!$B428))","v":{"$error":"#DIV/0!"}},{"$f":"SUM(C428:J428)","v":{"$error":"#DIV/0!"}}]
[null,{"$f":"$B$372","v":{"$error":"#N/A"}},{"$f":"(COUNTIFS(Table2[Produktionstrin],Mellemregninger!$C$427,Table2[Teams (jobformidler)],$B429))/(COUNTIFS(Table2[Produktionstrin],\"<>\",Table2[Teams (jobformidler)],Mellemregninger!$B429))","v":{"$error":"#DIV/0!"}},{"$f":"(COUNTIFS(Table2[Produktionstrin],Mellemregninger!$D$427,Table2[Teams (jobformidler)],$B429))/(COUNTIFS(Table2[Produktionstrin],\"<>\",Table2[Teams (jobformidler)],Mellemregninger!$B429))","v":{"$error":"#DIV/0!"}},{"$f":"(COUNTIFS(Table2[Produktionstrin],Mellemregninger!$E$427,Table2[Teams (jobformidler)],$B429))/(COUNTIFS(Table2[Produktionstrin],\"<>\",Table2[Teams (jobformidler)],Mellemregninger!$B429))","v":{"$error":"#DIV/0!"}},{"$f":"(COUNTIFS(Table2[Produktionstrin],Mellemregninger!$F$427,Table2[Teams (jobformidler)],$B429))/(COUNTIFS(Table2[Produktionstrin],\"<>\",Table2[Teams (jobformidler)],Mellemregninger!$B429))","v":{"$error":"#DIV/0!"}},{"$f":"(COUNTIFS(Table2[Produktionstrin],Mellemregninger!$G$427,Table2[Teams (jobformidler)],$B429))/(COUNTIFS(Table2[Produktionstrin],\"<>\",Table2[Teams (jobformidler)],Mellemregninger!$B429))","v":{"$error":"#DIV/0!"}},{"$f":"(COUNTIFS(Table2[Produktionstrin],Mellemregninger!$H$427,Table2[Teams (jobformidler)],$B429))/(COUNTIFS(Table2[Produktionstrin],\"<>\",Table2[Teams (jobformidler)],Mellemregninger!$B429))","v":{"$error":"#DIV/0!"}},{"$f":"(COUNTIFS(Table2[Produktionstrin],Mellemregninger!$I$427,Table2[Teams (jobformidler)],$B429))/(COUNTIFS(Table2[Produktionstrin],\"<>\",Table2[Teams (jobformidler)],Mellemregninger!$B429))","v":{"$error":"#DIV/0!"}},{"$f":"(COUNTIFS(Table2[Produktionstrin],Mellemregninger!$J$427,Table2[Teams (jobformidler)],$B429))/(COUNTIFS(Table2[Produktionstrin],\"<>\",Table2[Teams (jobformidler)],Mellemregninger!$B429))","v":{"$error":"#DIV/0!"}},{"$f":"SUM(C429:J429)","v":{"$error":"#DIV/0!"}}]
[]
[]
[]
[]
[]
[]
[]
[]
[]
[]
[]
[]
[]
[]
[]
[]
[]
[]
[]
[]
[]
[]
[]
[]
[]
[]
[]
[]
[]
[]
[]
[]
[]
[]
[]
[]
[]
[]
[]
[]
[]
[]
[]
[]
[null,null,"Ja","Nej","Total"]
[null,{"$f":"'Statistik for jobformidlere'!$C$7","v":"Ingen jobformidler"},{"$f":"COUNTIFS(Table2[Jobformidler],Mellemregninger!$B$475,Table2[Step-up-indsats],Mellemregninger!$C$474)","v":0},{"$f":"COUNTIFS(Table2[Jobformidler],Mellemregninger!$B$475,Table2[Step-up-indsats],Mellemregninger!$D$474)","v":0},{"$f":"SUM(C475:D475)","v":0}]
[null,{"$f":"$B$372","v":{"$error":"#N/A"}},{"$f":"COUNTIFS(Table2[Teams (jobformidler)],Mellemregninger!$B$476,Table2[Step-up-indsats],Mellemregninger!$C$474)","v":0},{"$f":"COUNTIFS(Table2[Teams (jobformidler)],Mellemregninger!$B$476,Table2[Step-up-indsats],Mellemregninger!$D$474)","v":0},{"$f":"SUM(C476:D476)","v":0}]
[null,{"$f":"$B$475","v":"Ingen jobformidler"},{"$f":"$C$475/$E$475","v":{"$error":"#DIV/0!"}},{"$f":"$D$475/$E$475","v":{"$error":"#DIV/0!"}}]
[null,{"$f":"$B$476","v":{"$error":"#N/A"}},{"$f":"$C$476/$E$476","v":{"$error":"#DIV/0!"}},{"$f":"$D$476/$E$476","v":{"$error":"#DIV/0!"}}]
[]
[]
[]
[]
[]
[]
[]
[]
[]
[]
[]
[]
[]
[]
[]
[]
[]
[]
[]
[]
[]
[]
[]
[]
[]
[]
[]
[]
[]
[]
[null,"Row Labels"," 1. Job eller uddannelse","  2. Progression i antal ordinære timer","  3. Jobmatch og arbejdsaftale om ordinære timer","  4. Jobmatch og arbejdsaftale om praktik","  5. Kontakt til relevant virksomhed","  6. Jobmål udarbejdet","  7. CV udarbejdet","  8. Personlig jobformidler","  Total"]
[null,"Grand Total"]
[]
[]
[]
[]
[]
[]
[]
[]
[]
[]
[]
[]
[]
[]
[]
[]
[]
[]
[]
[]
[]
[]
[]
[]
[]
[]
[]
[]
[]
[]
[]
[]
[]
[]
[]
[]
[]
[]
[]
[]
[]
[]
[]
[]
[]
[]
[]
[]
[]
[]
[]
[]
[]
[]
[]
[]
[]
[]
[]
[]
[]
[]
[]
[]
[]
[]
[]
[]
[]
[]
[]
[]
[]
[]
[]
[]
[]
[]
[]
[null,null,"Andel med CV og jobmål","Andel med Jobmål","Andel med ordinære timer, i selvforsørgelse eller uddannelse","Andel i virksomhedsforløb mv."]
[null,{"$f":"'Statistik for jobformidlere'!$C$7","v":"Ingen jobformidler"},{"$f":"COUNTIFS(Table2[Har borger CV og jobmål?],\"Ja\",Table2[Jobformidler],Mellemregninger!$B$475,Table2[Teams (jobformidler)],Mellemregninger!$B$476)/COUNTIFS(Table2[Har borger CV og jobmål?],\"<>\",Table2[Jobformidler],Mellemregninger!$B$475,Table2[Teams (jobformidler)],Mellemregninger!$B$476)","v":{"$error":"#DIV/0!"}},{"$f":"COUNTIFS(#REF!,\"Ja\",Table2[Jobformidler],Mellemregninger!$B$475,Table2[Teams (jobformidler)],Mellemregninger!$B$476)/COUNTIFS(#REF!,\"<>\",Table2[Jobformidler],Mellemregninger!$B$475,Table2[Teams (jobformidler)],Mellemregninger!$B$476)","v":{"$error":"#REF!"}},{"$f":"SUM($C$373:$E$373)","v":{"$error":"#DIV/0!"}},{"$f":"SUM($C$373:$F$373)","v":{"$error":"#DIV/0!"}}]
[null,{"$f":"$B$476","v":{"$error":"#N/A"}},{"$f":"COUNTIFS(Table2[Har borger CV og jobmål?],\"Ja\",Table2[Teams (jobformidler)],Mellemregninger!$B$592)/COUNTIFS(Table2[Har borger CV og jobmål?],\"<>\",Table2[Teams (jobformidler)],Mellemregninger!$B$592)","v":{"$error":"#DIV/0!"}},{"$f":"COUNTIFS(#REF!,\"Ja\",Table2[Teams (jobformidler)],Mellemregninger!$B$592)/COUNTIFS(#REF!,\"<>\",Table2[Teams (jobformidler)],Mellemregninger!$B$592)","v":{"$error":"#REF!"}},{"$f":"SUM($C$374:$E$374)","v":{"$error":"#DIV/0!"}},{"$f":"SUM($C$374:$F$374)","v":{"$error":"#DIV/0!"}}]
[]
[]
[]
[]
[]
[]
[]
[]
[]
[]
[]
[]
[]
[]
[]
[]
[]
[]
[]
[]
[]
[]
[]
[]
[]
[]
[]
[]
[]
[]
[]
[]
[]
[]
[]
[]
[]
[]
[]
[]
[]
[]
[]
[]
[null,"Row Labels"," 1. Job eller uddannelse"," 2. Progression i antal ordinære timer"," 3. Jobmatch og arbejdsaftale om ordinære timer","Sum of Total"]
[null,"Grand Total"]
[]
[]
[]
[]
[]
[]
[]
[]
[]
[]
[]
[]
[]
[]
[]
[]
[]
[]
[]
[]
[]
[]
[]
[]
[]
[]
[]
[]
[]
[]
[]
[]
[]
[]
[]
[]
[]
[]
[]
[]
[]
[]
[]
[]
[]
[]
[]
[]
[]
[]
[]
[]
[]
[]
[]
[]
[]
[]
[]
[]
[]
[]
[]
[]
[]
[]
[]
[]
[]
[]
[]
[]
[]
[]
[]
[]
[]
[]
[]
[]
[]
[]
[]
[]
[]
[]
[]
[]
[]
[null,"Row Labels"," 1. Job eller uddannelse","  2. Progression i antal ordinære timer","  3. Jobmatch og arbejdsaftale om ordinære timer","  4. Jobmatch og arbejdsaftale om praktik","  Total"]
[null,"Grand Total"]
[]
[]
[]
[]
[]
[]
[]
[]
[]
[]
[]
[]
[]
[]
[]
[]
[]
[]
[]
[]
[]
[]
[]
[]
[]
[]
[]
[]
[]
[]
[]
[]
[]
[]
[]
[]
[]
[]
[]
[]
[]
[]
[]
[]
[]
[]
[]
[]
[]
[]
[]
[]
[]
[]
[]
[]
[]
[]
[]
[]
[]
[]
[]
[]
[]
[]
[]
[]
[]
[]
[]
[]
[]
[]
[]
[]
[]
[]
[]
[]
[]
[]
[]
[]
[]
[]
[]
[]
[]
[]
[]
[]
[]
[]
[]
[]
[]
[]
[]
[]
[]
[]
[]
[]
[]
[]
[]
[]
[]
[]
[]
[]
[]
[]
[]
[]
[]
[]
[]
[]
[]
[]
[]
[]
[]
["Hold3","Jobformidler","Har borger CV og jobmål?"]
[null,{"$f":"'Jobformidlere og teams'!$B11","v":"Ingen jobformidler"},{"$f":"(COUNTIFS(Table2[Har borger CV og jobmål?],\"Ja\",Table2[Jobformidler],$B856))/(COUNTIFS(Table2[Har borger CV og jobmål?],\"<>\",Table2[Jobformidler],$B856))","v":{"$error":"#DIV/0!"}}]
[null,{"$f":"$B$372","v":{"$error":"#N/A"}},{"$f":"(COUNTIFS(Table2[Har borger CV og jobmål?],\"Ja\",Table2[Teams (jobformidler)],$B$857)/(COUNTIFS(Table2[Har borger CV og jobmål?],\"<>\",Table2[Teams (jobformidler)],$B$857)))","v":{"$error":"#DIV/0!"}}]
[]
[]
[]
[]
[]
[]
[]
[]
[]
[]
[]
[]
[]
[]
[]
[]
[]
[]
[]
[]
[]
[]
[]
[]
[]
[]
[]
[]
[]
[]
[]
[]
[]
[]
[]
[]
[]
[]
[]
[]
[]
[]
[]
[]
[]
[]
[]
[]
[]
[]
[]
[]
[]
[]
[]
[]
[]
[]
[]
[]
[]
[]
[]
[]
[]
[]
[]
[]
[]
[]
[]
[]
[]
[]
[]
[]
[]
[]
[]
[]
[]
[]
[]
[]
[]
[]
[]
[]
[null,"Row Labels"," Har borger CV og jobmål?"]
[null,"Grand Total"]
[]
[]
[]
[]
[]
[]
[]
[]
[]
[]
[]
[]
[]
[]
[]
[]
[]
[]
[]
[]
[]
[]
[]
[]
[]
[]
[]
[]
[]
[]
[]
[]
[]
[]
[]
[]
[]
[]
[]
[]
[]
[]
[]
[]
[]
[]
[]
[]
[]
[]
[]
[]
[]
[]
[]
[]
[]
[]
[]
[]
[]
[]
[]
[]
[]
[]
[]
[]
[]
[]
[]
[]
[]
[]
[]
[]
[]
[]
[]
[]
[]
[]
[]
[]
[]
[]
[]
[]
[]
[]
[]
[]
[]
[]
[]
[]
[]
[]
[]
[]
[]
[]
[]
[]
[]
[]
[]
["Hold4","Jobformidler","Har borger et jobmål?"]
[null,{"$f":"'Jobformidlere og teams'!B11","v":"Ingen jobformidler"},{"$f":"(COUNTIFS(#REF!,\"Ja\",Table2[Jobformidler],$B1056))/(COUNTIFS(#REF!,\"<>\",Table2[Jobformidler],$B1056))","v":{"$error":"#REF!"}}]
[null,{"$f":"B857","v":{"$error":"#N/A"}},{"$f":"(COUNTIFS(#REF!,\"Ja\",Table2[Teams (jobformidler)],$B$1057))/(COUNTIFS(Table2[Har borger CV og jobmål?],\"<>\",Table2[Teams (jobformidler)],$B$1057))","v":{"$error":"#REF!"}}]
[]
[]
[]
[]
[]
[]
[]
[]
[]
[]
[]
[]
[]
[]
[]
[]
[]
[]
[]
[]
[]
[]
[]
[]
[]
[]
[]
[]
[]
[]
[]
[]
[]
[]
[]
[]
[]
[]
[]
[]
[]
[]
[]
[]
[]
[]
[]
[]
[]
[]
[]
[]
[]
[]
[]
[]
[]
[]
[]
[]
[]
[]
[]
[]
[]
[]
[]
[]
[]
[]
[]
[]
[]
[]
[]
[]
[]
[]
[]
[]
[]
[]
[]
[]
[]
[]
[]
[]
[]
[]
[]
[]
[]
[]
[]
[]
[]
[]
[]
[]
[]
[]
[]
[]
[]
[]
[]
[]
[]
[null,"Row Labels"," Har borger et jobmål?"]
[null,"Grand Total"]

{"sheet":"Statistik overordnet ledelse","index":9,"n_rows":204,"n_cols":18,"rows_kept":204,"cut":false,"hidden":false,"merged":[[129,2,129,18],[25,6,26,7],[25,2,25,5],[26,2,26,5],[27,2,27,5],[28,2,28,5],[34,2,34,5],[29,2,29,5],[30,2,30,5],[31,2,31,5],[32,2,32,5],[27,8,28,9],[29,8,30,9],[29,10,32,12],[33,10,33,12],[34,10,34,12],[37,2,37,18],[97,2,97,18],[21,10,22,12],[23,10,23,12],[24,10,24,12],[25,10,26,12],[27,10,28,12],[21,8,22,9],[23,8,24,9],[25,8,26,9],[29,6,30,7],[27,6,28,7],[21,6,22,7],[31,8,32,9],[31,6,32,7],[27,16,32,18],[4,10,4,18],[18,13,18,15],[19,13,20,15],[21,13,26,15],[5,10,6,12],[5,17,6,18],[18,10,18,12],[19,10,19,12],[20,10,20,12],[16,2,16,18],[7,17,14,18],[7,2,14,3],[4,4,4,9],[5,4,6,6],[7,4,14,6],[5,7,6,9],[33,16,34,18],[5,2,6,3],[7,10,14,12],[18,8,18,9],[19,8,20,9],[33,13,34,15],[27,13,32,15],[33,2,33,5],[33,8,34,9],[33,6,34,7],[18,2,18,5],[19,2,19,5],[20,2,20,5],[5,13,6,16],[7,13,14,16],[18,6,18,7],[7,7,14,9],[23,6,24,7],[23,2,23,5],[24,2,24,5],[18,16,18,18],[19,16,20,18],[21,16,26,18],[21,2,21,5],[22,2,22,5],[19,6,20,7]]}
[]
[]
[]
[]
[null,null,null,null,"Succesmål",null,null,null,null,null,"Resultatmål"]
[null,null,"Antal borgere",null,"Andel borgere med CV og jobmål",null,null,"Andel borgere med lønnede timer, i selvforsørgelse eller uddannelse",null,null,"Andel borgere med en jobformidler",null,null,"Antal borgere fra resultatmålet på 15 pct. i  løntimer eller uddannelse",null,null,null,"Antal borgere fra resultatmålet på 20 pct. i løntimer eller uddannelse"]
[]
[null,null,{"$f":"COUNTA('Oversigt over borgere'!$C$17:$C$500)","v":0},null,{"$f":"Mellemregninger!$AC$4","v":{"$error":"#DIV/0!"}},null,null,{"$f":"Mellemregninger!$AE$4","v":{"$error":"#DIV/0!"}},null,null,{"$f":"Mellemregninger!$P$7","v":{"$error":"#DIV/0!"}},null,null,{"$f":"Mellemregninger!$G$35","v":{"$error":"#DIV/0!"}},null,null,null,{"$f":"Mellemregninger!$G$26","v":{"$error":"#DIV/0!"}}]
[]
[]
[]
[]
[]
[]
[]
[]
[null,null,"Oversigt over produktionstrin og statuskategorier"]
[]
[null,null,"Produktionstrin",null,null,null,"Antal i produktionstrin",null,"Andel i produktionstrin",null,"Statuskategori",null,null,"Antal i statuskategori",null,null,"Andel i statuskategori"]
[null,null,"1. Job eller uddannelse",null,null,null,{"$f":"COUNTIFS('Oversigt over borgere'!$G$17:$G$298,'Statistik overordnet ledelse'!$C$20)","v":0},null,{"$f":"G20/(SUM($G$20:$G$35))","v":{"$error":"#DIV/0!"}},null,"1. Succes",null,null,{"$f":"COUNTIFS('Oversigt over borgere'!$H$17:$H$298,'Statistik overordnet ledelse'!$K$20)","v":0},null,null,{"$f":"N20/(SUM($N$20:$N$35))","v":{"$error":"#DIV/0!"}}]
[null,null,"Borgeren er i selvforsørget beskæftigelse eller uddannelse. Jobformidleren understøtter, at borgeren fastholdes i job eller uddannelse.  \n",null,null,null,null,null,null,null,"Borgere, der er kommet i selvforsørget beskæftigelse eller uddannelse."]
[null,null,"2. Progression i antal lønnede timer",null,null,null,{"$f":"COUNTIFS('Oversigt over borgere'!$G$17:$G$298,'Statistik overordnet ledelse'!$C$22)","v":0},null,{"$f":"G22/(SUM($G$20:$G$35))","v":{"$error":"#DIV/0!"}},null,null,null,null,{"$f":"COUNTIFS('Oversigt over borgere'!$H$17:$H$298,$K$24)","v":0},null,null,{"$f":"N22/(SUM($N$20:$N$35))","v":{"$error":"#DIV/0!"}}]
[null,null,"Borgeren har opnået progression i antal lønnede timer. Jobformidleren har sammen med borger og virksomhed fulgt op på arbejdsaftalen og foretaget justeringer i aftalen, for at understøtte progression i arbejdstid (antal timer). "]
[null,null,"3. Jobmatch og arbejdsaftale om lønnede timer",null,null,null,{"$f":"COUNTIFS('Oversigt over borgere'!$G$17:$G$298,'Statistik overordnet ledelse'!$C$24)","v":0},null,{"$f":"G24/(SUM($G$20:$G$35))","v":{"$error":"#DIV/0!"}},null,"2. I gang"]
[null,null,"Borgeren har fundet et individuelt jobmatch og er i lønnede timer evt. kombineret med virksomhedspraktik eller løntilskud. Jobformidleren har hjulpet borgeren og virksomheden med at indgå en klar aftale om ansættelsen – antal timer, opgaver, og delmål for progression i antal lønnede timer. Der er lavet en klar plan for opfølgningen under forløbet. Borgeren har en fast kontaktperson på virksomheden.\n",null,null,null,null,null,null,null,"Borgere, der er i et virksomhedsforløb og hvor der arbejdes med at sikre progression i arbejdsopgaver og lønnede timer."]
[null,null,"4. Jobmatch og arbejdsaftale om praktik",null,null,null,{"$f":"COUNTIFS('Oversigt over borgere'!$G$17:$G$298,'Statistik overordnet ledelse'!$C$26)","v":0},null,{"$f":"G26/(SUM($G$20:$G$35))","v":{"$error":"#DIV/0!"}}]
[null,null,"Borgeren har fundet et individuelt jobmatch og er i virksomhedspraktik (lønnede timer er ikke en mulighed fra start) eller løntilskud. Jobformidleren har hjulpet borgeren og virksomheden med at indgå en klar aftale om timer, opgaver, og delmål for progression under forløbet. Det fremgår klart af aftalen, hvorvidt og hvornår lønnede timer er en mulighed. Der er lavet en klar plan for opfølgningen under forløbet. Borgeren har en fast kontaktperson på virksomheden. \n"]
[null,null,"5. Kontakt til relevante virksomheder",null,null,null,{"$f":"COUNTIFS('Oversigt over borgere'!$G$17:$G$298,'Statistik overordnet ledelse'!$C$28)","v":0},null,{"$f":"G28/(SUM($G$20:$G$35))","v":{"$error":"#DIV/0!"}},null,"3. På spring",null,null,{"$f":"COUNTIFS('Oversigt over borgere'!$H$17:$H$298,'Statistik overordnet ledelse'!$K$28)","v":0},null,null,{"$f":"N28/(SUM($N$20:$N$35))","v":{"$error":"#DIV/0!"}}]
[null,null,"Borgeren er i personlig kontakt med relevante arbejdsgivere, fx gennem virksomhedsbesøg og dialog med virksomhedsleder (med støtte fra den personlige jobformidler)."]
[null,null,"6. Jobmål udarbejdet",null,null,null,{"$f":"COUNTIFS('Oversigt over borgere'!$G$17:$G$298,'Statistik overordnet ledelse'!$C$30)","v":0},null,{"$f":"G30/(SUM($G$20:$G$35))","v":{"$error":"#DIV/0!"}},null,"Borgere, der med afsæt i eget jobmål og/eller CV arbejder på at finde det rette match med en virksomhed."]
[null,null,"Borgeren har et konkret og realistisk jobmål, som er udarbejdet sammen med borgerens primære kontaktperson. "]
[null,null,"7. CV udarbejdet",null,null,null,{"$f":"COUNTIFS('Oversigt over borgere'!$G$17:$G$298,'Statistik overordnet ledelse'!$C$32)","v":0},null,{"$f":"G32/(SUM($G$20:$G$35))","v":{"$error":"#DIV/0!"}}]
[null,null,"Borgeren har et dækkende CV, som er udarbejdet sammen med borgerens primære kontaktperson."]
[null,null,"8. Personlig jobformidler",null,null,null,{"$f":"COUNTIFS('Oversigt over borgere'!$G$17:$G$298,'Statistik overordnet ledelse'!$C$34)","v":0},null,{"$f":"G34/(SUM($G$20:$G$35))","v":{"$error":"#DIV/0!"}},null,"4. På længere sigt",null,null,{"$f":"COUNTIFS('Oversigt over borgere'!$H$17:$H$298,'Statistik overordnet ledelse'!$K$34)","v":0},null,null,{"$f":"N34/(SUM($N$20:$N$35))","v":{"$error":"#DIV/0!"}}]
[null,null,"Borgeren har eller skal til at have en personlig jobformidler med kendskab til arbejdsmarkedet.  ",null,null,null,null,null,null,null,"Borgere, der har eller skal til at have en personlig jobformidler."]
[]
[]
[null,null,"Status på succesmål"]
[]
[null,null,"Andel af borgere med CV og jobmål pr. team og alle teams samlet set"]
[]
[]
[]
[]
[]
[]
[]
[]
[]
[]
[]
[]
[]
[]
[]
[]
[]
[]
[]
[]
[]
[]
[]
[]
[]
[]
[]
[]
[null,null,"Andel borgere med lønnede timer, i selvforsørgelse eller uddannelse"]
[]
[]
[]
[]
[]
[]
[]
[]
[]
[]
[]
[]
[]
[]
[]
[]
[]
[]
[]
[]
[]
[]
[]
[]
[]
[]
[]
[]
[null,null,"Status på resultatmål"]
[]
[]
[null,null,"Andel borgere med jobformidler pr. team og alle teams samlet set"]
[]
[]
[]
[]
[]
[]
[]
[]
[]
[]
[]
[]
[]
[]
[]
[]
[]
[]
[]
[]
[]
[]
[]
[]
[]
[]
[]
[]
[null,null,"Status på statuskategorier og produktionstrin"]
[]
[]
[null,null,"Andel borgere fordelt på de fire statuskategorier for alle teams"]
[]
[]
[]
[]
[]
[]
[]
[]
[]
[]
[]
[]
[]
[]
[]
[]
[]
[]
[]
[]
[]
[]
[]
[]
[]
[null,null,"Andel borgere fordelt på de fire statuskategorier pr. team"]
[]
[]
[]
[]
[]
[]
[]
[]
[]
[]
[]
[]
[]
[]
[]
[]
[]
[]
[]
[]
[]
[]
[null,null,"Andel borgere fordelt på de otte produktionstrin for alle teams samlet set"]
[]
[]
[]
[]
[]
[]
[]
[]
[]
[]
[]
[]
[]
[]
[]
[]
[]
[]
[]
[]
[]
[null,null,"Andel borgere fordelt på de otte produktionstrin pr. team og alle teams samlet set"]

{"sheet":"Lookup","index":10,"n_rows":22,"n_cols":9,"rows_kept":22,"cut":false,"hidden":true,"merged":[]}
[]
[null,"Aktivitetskategorier"]
[null,"1. Succes"]
[null,"2. I gang"]
[null,"3. På spring"]
[null,"4. På længere sigt"]
[]
[null,{"$f":"NOW()","v":"2020-02-12T11:09:50.660"}]
[null,{"$f":"NOW()","v":"2020-02-12T11:09:50.660"}]
[null,43868.620629398145]
[]
[]
[]
[null,"Produktionstrin","Aktivitetskategori",null,null,"Step-up-indsats",null,"Teams","Active"]
[null,"1. Job eller uddannelse","1. Succes",null,null,"Ja",null,"Team 1",{"$f":"IF(COUNTIFS('Oversigt over borgere'!F:F,Table15[[#This Row],[Teams]],'Oversigt over borgere'!E:E,'Statistik for jobformidlere'!$C$7),1,0)","v":0}]
[null,"2. Progression i antal lønnede timer","2. I gang",null,null,"Nej",null,"Team 2",{"$f":"IF(COUNTIFS('Oversigt over borgere'!F:F,Table15[[#This Row],[Teams]],'Oversigt over borgere'!E:E,'Statistik for jobformidlere'!$C$7),1,0)","v":0}]
[null,"3. Jobmatch og arbejdsaftale om lønnede timer","2. I gang",null,null,null,null,"Team 3",{"$f":"IF(COUNTIFS('Oversigt over borgere'!F:F,Table15[[#This Row],[Teams]],'Oversigt over borgere'!E:E,'Statistik for jobformidlere'!$C$7),1,0)","v":0}]
[null,"4. Jobmatch og arbejdsaftale om praktik","2. I gang",null,null,null,null,"Team 4",{"$f":"IF(COUNTIFS('Oversigt over borgere'!F:F,Table15[[#This Row],[Teams]],'Oversigt over borgere'!E:E,'Statistik for jobformidlere'!$C$7),1,0)","v":0}]
[null,"5. Kontakt til relevant virksomhed","3. På spring",null,null,null,null,"Team 5",{"$f":"IF(COUNTIFS('Oversigt over borgere'!F:F,Table15[[#This Row],[Teams]],'Oversigt over borgere'!E:E,'Statistik for jobformidlere'!$C$7),1,0)","v":0}]
[null,"6. Jobmål udarbejdet","3. På spring",null,null,null,null,"Team 6",{"$f":"IF(COUNTIFS('Oversigt over borgere'!F:F,Table15[[#This Row],[Teams]],'Oversigt over borgere'!E:E,'Statistik for jobformidlere'!$C$7),1,0)","v":0}]
[null,"7. CV udarbejdet","3. På spring"]
[null,"8. Personlig jobformidler","4. På længere sigt"]